Department Family,Entity,Date,Expense Type,Expense area,Supplier,Transaction Number,Amount,VAT registration Number
Department of Health,Salisbury NHS Foundation Trust,04/12/2020,ENERGY - ELECTRICITY,Facilities,SCOTTISH POWER,107195872,9127.12,
Department of Health,Salisbury NHS Foundation Trust,04/12/2020,ENERGY - ELECTRICITY,Facilities,SCOTTISH POWER,107195872,77769.06,
Department of Health,Salisbury NHS Foundation Trust,04/12/2020,ENERGY - ELECTRICITY,Facilities,SCOTTISH POWER,107195872,456.36,
Department of Health,Salisbury NHS Foundation Trust,04/12/2020,ENERGY - ELECTRICITY,Facilities,SCOTTISH POWER,107195872,15553.81,
Department of Health,Salisbury NHS Foundation Trust,04/12/2020,ENERGY - WATER,Facilities,BWBSL,1056503227,36071.96,
Department of Health,Salisbury NHS Foundation Trust,04/12/2020,ENERGY - SEWERAGE,Facilities,BWBSL,1056503227,14230.2,
Department of Health,Salisbury NHS Foundation Trust,04/12/2020,ENERGY - GAS,Facilities,TOTAL GAS AND POWER LTD,225174670/20,67085.9,
Department of Health,Salisbury NHS Foundation Trust,04/12/2020,ENERGY - GAS,Facilities,TOTAL GAS AND POWER LTD,225174670/20,315.78,
Department of Health,Salisbury NHS Foundation Trust,04/12/2020,ENERGY - GAS,Facilities,TOTAL GAS AND POWER LTD,225174670/20,12154.05,
Department of Health,Salisbury NHS Foundation Trust,23/12/2020,ETS UNITARY CHARGE,Finance charges & Reserves,SALISBURY HEALTHCARE FACILITIES LTD,490,327090.62,
Department of Health,Salisbury NHS Foundation Trust,23/12/2020,VAT CONT OP OF HOSPITALS,Balance Sheet,SALISBURY HEALTHCARE FACILITIES LTD,490,65418.12,
Department of Health,Salisbury NHS Foundation Trust,23/12/2020,PREPAYMENTS < ONE YEAR,Balance Sheet,WILTSHIRE HEALTH & CARE LLP,20003206,31696,
Department of Health,Salisbury NHS Foundation Trust,23/12/2020,POSTAGE & CARRIAGE,Facilities,PITNEY BOWES LTD,BH795476,26825.7,
Department of Health,Salisbury NHS Foundation Trust,23/12/2020,ENERGY - ELECTRICITY,Facilities,SCOTTISH POWER,107253099,9533.09,
Department of Health,Salisbury NHS Foundation Trust,23/12/2020,ENERGY - ELECTRICITY,Facilities,SCOTTISH POWER,107253099,81487.38,
Department of Health,Salisbury NHS Foundation Trust,23/12/2020,ENERGY - ELECTRICITY,Facilities,SCOTTISH POWER,107253099,476.65,
Department of Health,Salisbury NHS Foundation Trust,23/12/2020,ENERGY - ELECTRICITY,Facilities,SCOTTISH POWER,107253099,16297.48,
Department of Health,Salisbury NHS Foundation Trust,04/12/2020,LAB EQUIP-LABORATORY APPARATUS,Clinical Support,BECKMAN COULTER,1476939,97344.77,
Department of Health,Salisbury NHS Foundation Trust,04/12/2020,VAT CONT LABORATORY SERVICES,Balance Sheet,BECKMAN COULTER,1476939,19468.95,
Department of Health,Salisbury NHS Foundation Trust,04/12/2020,NETWORKING COSTS,Capital,DELL PRODUCTS,7402664404,56500,
Department of Health,Salisbury NHS Foundation Trust,04/12/2020,NETWORKING COSTS,Capital,DELL PRODUCTS,7402664404,11300,
Department of Health,Salisbury NHS Foundation Trust,04/12/2020,LAB REAGENTS-BUFFERS COMPUND SOLNS,Clinical Support,OXFORD GENE TECHNOLOGY,SIN007075,77369.6,
Department of Health,Salisbury NHS Foundation Trust,04/12/2020,LAB REAGENTS-BUFFERS COMPUND SOLNS,Clinical Support,OXFORD GENE TECHNOLOGY,SIN007075,118,
Department of Health,Salisbury NHS Foundation Trust,04/12/2020,LAB REAGENTS-BUFFERS COMPUND SOLNS,Clinical Support,OXFORD GENE TECHNOLOGY,SIN007075,15473.92,
Department of Health,Salisbury NHS Foundation Trust,04/12/2020,LAB REAGENTS-BUFFERS COMPUND SOLNS,Clinical Support,OXFORD GENE TECHNOLOGY,SIN007075,23.6,
Department of Health,Salisbury NHS Foundation Trust,11/12/2020,DI & RADIO-RADIOLOGY EQUIPMENT,Clinical Support,NHS SUPPLY CHAIN,2121003648,27704.77,
Department of Health,Salisbury NHS Foundation Trust,11/12/2020,DI & RADIO-RADIOLOGY EQUIPMENT,Surgery,NHS SUPPLY CHAIN,2121003648,4269.13,
Department of Health,Salisbury NHS Foundation Trust,11/12/2020,DI & RADIO-RADIOLOGY EQUIPMENT,Medicine,NHS SUPPLY CHAIN,2121003648,10412.5,
Department of Health,Salisbury NHS Foundation Trust,11/12/2020,VAT CONT MTCE REPAIR EQUIP,Balance Sheet,NHS SUPPLY CHAIN,2121003648,8477.28,
Department of Health,Salisbury NHS Foundation Trust,11/12/2020,VAT CONT MTCE REPAIR EQUIP,Balance Sheet,NHS SUPPLY CHAIN,2121003648,0.02,
Department of Health,Salisbury NHS Foundation Trust,11/12/2020,DRESSINGS  -  PROCEDURE PACKS,Facilities,PRO-LAB DIAGNOSTICS,199830,41895.2,
Department of Health,Salisbury NHS Foundation Trust,11/12/2020,DRESSINGS  -  PROCEDURE PACKS,Facilities,PRO-LAB DIAGNOSTICS,199830,50,
Department of Health,Salisbury NHS Foundation Trust,11/12/2020,DRESSINGS  -  PROCEDURE PACKS,Facilities,PRO-LAB DIAGNOSTICS,199830,8379.04,
Department of Health,Salisbury NHS Foundation Trust,11/12/2020,DRESSINGS  -  PROCEDURE PACKS,Facilities,PRO-LAB DIAGNOSTICS,199830,10,
Department of Health,Salisbury NHS Foundation Trust,04/12/2020,DRUGS,Clinical Support,JANSSEN-CILAG LTD,930704304,21591.03,
Department of Health,Salisbury NHS Foundation Trust,04/12/2020,DRUGS,Clinical Support,JANSSEN-CILAG LTD,930704304,4318.21,
Department of Health,Salisbury NHS Foundation Trust,11/12/2020,MEDSURGCONS-OTHER,Medicine,NHS LOGISTICS,1121148635,350,
Department of Health,Salisbury NHS Foundation Trust,11/12/2020,DRESSINGS  -  PROCEDURE PACKS,Corporate - Finance & Procurement,NHS LOGISTICS,1121148635,87.07,
Department of Health,Salisbury NHS Foundation Trust,11/12/2020,DRESSINGS  -  PROCEDURE PACKS,Corporate - Finance & Procurement,NHS LOGISTICS,1121148635,82.23,
Department of Health,Salisbury NHS Foundation Trust,11/12/2020,DRESSINGS  -  PROCEDURE PACKS,Corporate - Finance & Procurement,NHS LOGISTICS,1121148635,415.92,
Department of Health,Salisbury NHS Foundation Trust,11/12/2020,DRESSINGS  -  PROCEDURE PACKS,Corporate - Finance & Procurement,NHS LOGISTICS,1121148635,456,
Department of Health,Salisbury NHS Foundation Trust,11/12/2020,DRESSINGS  -  PROCEDURE PACKS,Corporate - Finance & Procurement,NHS LOGISTICS,1121148635,169.93,
Department of Health,Salisbury NHS Foundation Trust,11/12/2020,DRESSINGS  -  PROCEDURE PACKS,Corporate - Finance & Procurement,NHS LOGISTICS,1121148635,364.3,
Department of Health,Salisbury NHS Foundation Trust,11/12/2020,DRESSINGS  -  PROCEDURE PACKS,Corporate - Finance & Procurement,NHS LOGISTICS,1121148635,99.8,
Department of Health,Salisbury NHS Foundation Trust,11/12/2020,DRESSINGS  -  PROCEDURE PACKS,Corporate - Finance & Procurement,NHS LOGISTICS,1121148635,65.03,
Department of Health,Salisbury NHS Foundation Trust,11/12/2020,DRESSINGS  -  PROCEDURE PACKS,Corporate - Finance & Procurement,NHS LOGISTICS,1121148635,483,
Department of Health,Salisbury NHS Foundation Trust,11/12/2020,DRESSINGS  -  PROCEDURE PACKS,Corporate - Finance & Procurement,NHS LOGISTICS,1121148635,197.1,
Department of Health,Salisbury NHS Foundation Trust,11/12/2020,DRESSINGS  -  PROCEDURE PACKS,Clinical Support,NHS LOGISTICS,1121148635,44.57,
Department of Health,Salisbury NHS Foundation Trust,11/12/2020,DRESSINGS  -  PROCEDURE PACKS,Clinical Support,NHS LOGISTICS,1121148635,44.57,
Department of Health,Salisbury NHS Foundation Trust,11/12/2020,DRESSINGS  -  PROCEDURE PACKS,Corporate - Finance & Procurement,NHS LOGISTICS,1121148635,257.6,
Department of Health,Salisbury NHS Foundation Trust,11/12/2020,DRESSINGS  -  PROCEDURE PACKS,Corporate - Finance & Procurement,NHS LOGISTICS,1121148635,305.27,
Department of Health,Salisbury NHS Foundation Trust,11/12/2020,DRESSINGS  -  PROCEDURE PACKS,Corporate - Finance & Procurement,NHS LOGISTICS,1121148635,207.96,
Department of Health,Salisbury NHS Foundation Trust,11/12/2020,DRESSINGS  -  PROCEDURE PACKS,Corporate - Finance & Procurement,NHS LOGISTICS,1121148635,332.7,
Department of Health,Salisbury NHS Foundation Trust,11/12/2020,DRESSINGS  -  PROCEDURE PACKS,Corporate - Finance & Procurement,NHS LOGISTICS,1121148635,297.38,
Department of Health,Salisbury NHS Foundation Trust,11/12/2020,DRESSINGS  -  PROCEDURE PACKS,Corporate - Finance & Procurement,NHS LOGISTICS,1121148635,182.15,
Department of Health,Salisbury NHS Foundation Trust,11/12/2020,DRESSINGS  -  PROCEDURE PACKS,Corporate - Finance & Procurement,NHS LOGISTICS,1121148635,199.6,
Department of Health,Salisbury NHS Foundation Trust,11/12/2020,DRESSINGS  -  PROCEDURE PACKS,Corporate - Finance & Procurement,NHS LOGISTICS,1121148635,130.07,
Department of Health,Salisbury NHS Foundation Trust,11/12/2020,DRESSINGS  -  PROCEDURE PACKS,Corporate - Finance & Procurement,NHS LOGISTICS,1121148635,255.6,
Department of Health,Salisbury NHS Foundation Trust,11/12/2020,DRESSINGS  -  PROCEDURE PACKS,Corporate - Finance & Procurement,NHS LOGISTICS,1121148635,218.9,
Department of Health,Salisbury NHS Foundation Trust,11/12/2020,MEDSURGCONS-OTHER,Surgery,NHS LOGISTICS,1121148635,85,
Department of Health,Salisbury NHS Foundation Trust,11/12/2020,DRESSINGS  -  PROCEDURE PACKS,Corporate - Finance & Procurement,NHS LOGISTICS,1121148635,193.2,
Department of Health,Salisbury NHS Foundation Trust,11/12/2020,DRESSINGS  -  PROCEDURE PACKS,Corporate - Finance & Procurement,NHS LOGISTICS,1121148635,217.67,
Department of Health,Salisbury NHS Foundation Trust,11/12/2020,DRESSINGS  -  PROCEDURE PACKS,Corporate - Finance & Procurement,NHS LOGISTICS,1121148635,381.58,
Department of Health,Salisbury NHS Foundation Trust,11/12/2020,DRESSINGS  -  PROCEDURE PACKS,Corporate - Finance & Procurement,NHS LOGISTICS,1121148635,332.73,
Department of Health,Salisbury NHS Foundation Trust,11/12/2020,DRESSINGS  -  PROCEDURE PACKS,Corporate - Finance & Procurement,NHS LOGISTICS,1121148635,304,
Department of Health,Salisbury NHS Foundation Trust,11/12/2020,DRESSINGS  -  PROCEDURE PACKS,Corporate - Finance & Procurement,NHS LOGISTICS,1121148635,166.35,
Department of Health,Salisbury NHS Foundation Trust,11/12/2020,DRESSINGS  -  PROCEDURE PACKS,Corporate - Finance & Procurement,NHS LOGISTICS,1121148635,84.97,
Department of Health,Salisbury NHS Foundation Trust,11/12/2020,DRESSINGS  -  PROCEDURE PACKS,Corporate - Finance & Procurement,NHS LOGISTICS,1121148635,149.7,
Department of Health,Salisbury NHS Foundation Trust,11/12/2020,DRESSINGS  -  PROCEDURE PACKS,Corporate - Finance & Procurement,NHS LOGISTICS,1121148635,127.8,
Department of Health,Salisbury NHS Foundation Trust,11/12/2020,DRESSINGS  -  PROCEDURE PACKS,Corporate - Finance & Procurement,NHS LOGISTICS,1121148635,291.87,
Department of Health,Salisbury NHS Foundation Trust,11/12/2020,PATIENT APPLIANCES,Musculo-Skeletal,NHS LOGISTICS,1121148635,39.96,
Department of Health,Salisbury NHS Foundation Trust,11/12/2020,PATIENT APPLIANCES,Musculo-Skeletal,NHS LOGISTICS,1121148635,39.96,
Department of Health,Salisbury NHS Foundation Trust,11/12/2020,MEDSURGCONS-OTHER,Medicine,NHS LOGISTICS,1121148635,25.4,
Department of Health,Salisbury NHS Foundation Trust,11/12/2020,ADULTS HEARING AIDS,Surgery,NHS LOGISTICS,1121148635,270,
Department of Health,Salisbury NHS Foundation Trust,11/12/2020,ADULTS HEARING AIDS,Surgery,NHS LOGISTICS,1121148635,180,
Department of Health,Salisbury NHS Foundation Trust,11/12/2020,MEDSURGCONS-OTHER,Musculo-Skeletal,NHS LOGISTICS,1121148635,25.4,
Department of Health,Salisbury NHS Foundation Trust,11/12/2020,MEDSURGCONS-OTHER,Musculo-Skeletal,NHS LOGISTICS,1121148635,25.35,
Department of Health,Salisbury NHS Foundation Trust,11/12/2020,DISPOSABLE THEATRE DRAPES WIPES,Clinical Support,NHS LOGISTICS,1121148635,12.6,
Department of Health,Salisbury NHS Foundation Trust,11/12/2020,ADULTS HEARING AIDS,Surgery,NHS LOGISTICS,1121148635,270,
Department of Health,Salisbury NHS Foundation Trust,11/12/2020,PATIENTS BEDWEAR UNISEX,Medicine,NHS LOGISTICS,1121148635,70,
Department of Health,Salisbury NHS Foundation Trust,11/12/2020,PAPER GENERAL STATIONERY SUNDRIES,Surgery,NHS LOGISTICS,1121148635,40.15,
Department of Health,Salisbury NHS Foundation Trust,11/12/2020,MEDSURGCONS-OTHER,Medicine,NHS LOGISTICS,1121148635,25.35,
Department of Health,Salisbury NHS Foundation Trust,11/12/2020,SURGICAL INSTRUMENTS - GENERAL,Clinical Support,NHS LOGISTICS,1121148635,55.39,
Department of Health,Salisbury NHS Foundation Trust,11/12/2020,PAPER GENERAL STATIONERY SUNDRIES,Corporate - OD and People,NHS LOGISTICS,1121148635,40.15,
Department of Health,Salisbury NHS Foundation Trust,11/12/2020,ELECTRICAL EQUIPMENT,Facilities,NHS LOGISTICS,1121148635,1.48,
Department of Health,Salisbury NHS Foundation Trust,11/12/2020,SURGICAL INSTRUMENTS - GENERAL,Musculo-Skeletal,NHS LOGISTICS,1121148635,71.23,
Department of Health,Salisbury NHS Foundation Trust,11/12/2020,SURGICAL INSTRUMENTS - GENERAL,Musculo-Skeletal,NHS LOGISTICS,1121148635,267.54,
Department of Health,Salisbury NHS Foundation Trust,11/12/2020,MEDSURGCONS-OTHER,Medicine,NHS LOGISTICS,1121148635,350,
Department of Health,Salisbury NHS Foundation Trust,11/12/2020,TISSUES HAND TOWELS & TOILET PAPER,Clinical Support,NHS LOGISTICS,1121148635,21.03,
Department of Health,Salisbury NHS Foundation Trust,11/12/2020,DRESSINGS  -  PROCEDURE PACKS,Clinical Support,NHS LOGISTICS,1121148635,3.5,
Department of Health,Salisbury NHS Foundation Trust,11/12/2020,DRESSINGS  -  PROCEDURE PACKS,Clinical Support,NHS LOGISTICS,1121148635,12.4,
Department of Health,Salisbury NHS Foundation Trust,11/12/2020,TISSUES HAND TOWELS & TOILET PAPER,Clinical Support,NHS LOGISTICS,1121148635,21.03,
Department of Health,Salisbury NHS Foundation Trust,11/12/2020,PAPER GENERAL STATIONERY SUNDRIES,Facilities,NHS LOGISTICS,1121148635,32.12,
Department of Health,Salisbury NHS Foundation Trust,11/12/2020,ADULTS HEARING AIDS,Surgery,NHS LOGISTICS,1121148635,115,
Department of Health,Salisbury NHS Foundation Trust,11/12/2020,MEDSURGCONS-OTHER,Musculo-Skeletal,NHS LOGISTICS,1121148635,25.35,
Department of Health,Salisbury NHS Foundation Trust,11/12/2020,MEDSURGCONS-OTHER,Musculo-Skeletal,NHS LOGISTICS,1121148635,42.75,
Department of Health,Salisbury NHS Foundation Trust,11/12/2020,PAPER GENERAL STATIONERY SUNDRIES,Surgery,NHS LOGISTICS,1121148635,16.06,
Department of Health,Salisbury NHS Foundation Trust,11/12/2020,MEDSURGCONS-OTHER,Medicine,NHS LOGISTICS,1121148635,25.35,
Department of Health,Salisbury NHS Foundation Trust,11/12/2020,DRESSINGS - PRE STERILE,Surgery,NHS LOGISTICS,1121148635,14.78,
Department of Health,Salisbury NHS Foundation Trust,11/12/2020,MEDSURGCONS-OTHER,Musculo-Skeletal,NHS LOGISTICS,1121148635,7.14,
Department of Health,Salisbury NHS Foundation Trust,11/12/2020,MEDSURGCONS-OTHER,Musculo-Skeletal,NHS LOGISTICS,1121148635,14.29,
Department of Health,Salisbury NHS Foundation Trust,11/12/2020,HEALTHCARE - WEAR,Surgery,NHS LOGISTICS,1121148635,265,
Department of Health,Salisbury NHS Foundation Trust,11/12/2020,HEALTHCARE - WEAR,Surgery,NHS LOGISTICS,1121148635,265,
Department of Health,Salisbury NHS Foundation Trust,11/12/2020,HEALTHCARE - WEAR,Surgery,NHS LOGISTICS,1121148635,265,
Department of Health,Salisbury NHS Foundation Trust,11/12/2020,MEDSURGCONS-OTHER,Medicine,NHS LOGISTICS,1121148635,67,
Department of Health,Salisbury NHS Foundation Trust,11/12/2020,SURGICAL INSTRUMENTS - DISPOSABLE,Medicine,NHS LOGISTICS,1121148635,12.3,
Department of Health,Salisbury NHS Foundation Trust,11/12/2020,TISSUES HAND TOWELS & TOILET PAPER,Clinical Support,NHS LOGISTICS,1121148635,2.43,
Department of Health,Salisbury NHS Foundation Trust,11/12/2020,TISSUES HAND TOWELS & TOILET PAPER,Clinical Support,NHS LOGISTICS,1121148635,21.03,
Department of Health,Salisbury NHS Foundation Trust,11/12/2020,OTHER MEDICAL SUPPLIES,Clinical Support,NHS LOGISTICS,1121148635,8.28,
Department of Health,Salisbury NHS Foundation Trust,11/12/2020,OTHER MEDICAL SUPPLIES,Clinical Support,NHS LOGISTICS,1121148635,7.18,
Department of Health,Salisbury NHS Foundation Trust,11/12/2020,OTHER MEDICAL SUPPLIES,Clinical Support,NHS LOGISTICS,1121148635,4.4,
Department of Health,Salisbury NHS Foundation Trust,11/12/2020,MEDSURGCONS-SUTURES,Medicine,NHS LOGISTICS,1121148635,113.04,
Department of Health,Salisbury NHS Foundation Trust,11/12/2020,PATIENTS BEDWEAR UNISEX,Medicine,NHS LOGISTICS,1121148635,70,
Department of Health,Salisbury NHS Foundation Trust,11/12/2020,SERVICES FROM NHS BODIES,Clinical Support,NHS LOGISTICS,1121148635,45,
Department of Health,Salisbury NHS Foundation Trust,11/12/2020,MEDSURGCONS-OTHER,Clinical Support,NHS LOGISTICS,1121148635,28.4,
Department of Health,Salisbury NHS Foundation Trust,11/12/2020,DRESSINGS - PRE STERILE,Surgery,NHS LOGISTICS,1121148635,139.98,
Department of Health,Salisbury NHS Foundation Trust,11/12/2020,DRESSINGS - PRE STERILE,Clinical Support,NHS LOGISTICS,1121148635,69.99,
Department of Health,Salisbury NHS Foundation Trust,11/12/2020,PAPER GENERAL STATIONERY SUNDRIES,Clinical Support,NHS LOGISTICS,1121148635,48.18,
Department of Health,Salisbury NHS Foundation Trust,11/12/2020,HEALTHCARE - WEAR,Surgery,NHS LOGISTICS,1121148635,144.78,
Department of Health,Salisbury NHS Foundation Trust,11/12/2020,MEDSURGCONS-LAPAROSCOPIC EQUIPMENT,Surgery,NHS LOGISTICS,1121148635,109.8,
Department of Health,Salisbury NHS Foundation Trust,11/12/2020,M & S EQUIPELECTEQUIPINST - OTHER,Surgery,NHS LOGISTICS,1121148635,114.48,
Department of Health,Salisbury NHS Foundation Trust,11/12/2020,DRESSINGS  -  PROCEDURE PACKS,Surgery,NHS LOGISTICS,1121148635,252,
Department of Health,Salisbury NHS Foundation Trust,11/12/2020,M & S EQUIPELECTEQUIPINST - OTHER,Surgery,NHS LOGISTICS,1121148635,63,
Department of Health,Salisbury NHS Foundation Trust,11/12/2020,MEDSURGCONS-LAPAROSCOPIC EQUIPMENT,Surgery,NHS LOGISTICS,1121148635,180,
Department of Health,Salisbury NHS Foundation Trust,11/12/2020,MEDSURGCONS-LAPAROSCOPIC EQUIPMENT,Surgery,NHS LOGISTICS,1121148635,162,
Department of Health,Salisbury NHS Foundation Trust,11/12/2020,PAPER GENERAL STATIONERY SUNDRIES,Facilities,NHS LOGISTICS,1121148635,8.03,
Department of Health,Salisbury NHS Foundation Trust,11/12/2020,PAPER GENERAL STATIONERY SUNDRIES,Musculo-Skeletal,NHS LOGISTICS,1121148635,16.06,
Department of Health,Salisbury NHS Foundation Trust,11/12/2020,PAPER GENERAL STATIONERY SUNDRIES,Musculo-Skeletal,NHS LOGISTICS,1121148635,64.16,
Department of Health,Salisbury NHS Foundation Trust,11/12/2020,MEDSURGCONS-OTHER,Medicine,NHS LOGISTICS,1121148635,19.75,
Department of Health,Salisbury NHS Foundation Trust,11/12/2020,SURGICAL INSTRUMENTS - DISPOSABLE,Musculo-Skeletal,NHS LOGISTICS,1121148635,39.6,
Department of Health,Salisbury NHS Foundation Trust,11/12/2020,OTHER MEDICAL SUPPLIES,Medicine,NHS LOGISTICS,1121148635,116.52,
Department of Health,Salisbury NHS Foundation Trust,11/12/2020,PAPER GENERAL STATIONERY SUNDRIES,Clinical Support,NHS LOGISTICS,1121148635,40.15,
Department of Health,Salisbury NHS Foundation Trust,11/12/2020,DRESSINGS  -  PROCEDURE PACKS,Surgery,NHS LOGISTICS,1121148635,29.4,
Department of Health,Salisbury NHS Foundation Trust,11/12/2020,DRESSINGS - PRE STERILE,Surgery,NHS LOGISTICS,1121148635,44.66,
Department of Health,Salisbury NHS Foundation Trust,11/12/2020,MED PROSTH - OTHER,Medicine,NHS LOGISTICS,1121148635,110,
Department of Health,Salisbury NHS Foundation Trust,11/12/2020,MEDSURGCONS-OTHER,Medicine,NHS LOGISTICS,1121148635,10,
Department of Health,Salisbury NHS Foundation Trust,11/12/2020,MED PROSTH - PACEMAKERS,Medicine,NHS LOGISTICS,1121148635,1650,
Department of Health,Salisbury NHS Foundation Trust,11/12/2020,MEDSURGCONS-SUTURES,Musculo-Skeletal,NHS LOGISTICS,1121148635,114.54,
Department of Health,Salisbury NHS Foundation Trust,11/12/2020,BAGS SACKS - OTHER,Facilities,NHS LOGISTICS,1121148635,12.15,
Department of Health,Salisbury NHS Foundation Trust,11/12/2020,LIQUID REFRESHMENTS,Facilities,NHS LOGISTICS,1121148635,10.8,
Department of Health,Salisbury NHS Foundation Trust,11/12/2020,CLEANING MATERIAL PRODUCTS SUNDRIES,Facilities,NHS LOGISTICS,1121148635,48.64,
Department of Health,Salisbury NHS Foundation Trust,11/12/2020,BAGS SACKS - OTHER,Facilities,NHS LOGISTICS,1121148635,100.8,
Department of Health,Salisbury NHS Foundation Trust,11/12/2020,BAGS SACKS - OTHER,Facilities,NHS LOGISTICS,1121148635,48.96,
Department of Health,Salisbury NHS Foundation Trust,11/12/2020,CONTOUTSERVICES - OTHER,Facilities,NHS LOGISTICS,1121148635,235.01,
Department of Health,Salisbury NHS Foundation Trust,11/12/2020,CLEANING MATERIAL PRODUCTS SUNDRIES,Facilities,NHS LOGISTICS,1121148635,295,
Department of Health,Salisbury NHS Foundation Trust,11/12/2020,CLEANING MATERIAL PRODUCTS SUNDRIES,Facilities,NHS LOGISTICS,1121148635,8,
Department of Health,Salisbury NHS Foundation Trust,11/12/2020,CLEANING MATERIAL PRODUCTS SUNDRIES,Facilities,NHS LOGISTICS,1121148635,63.72,
Department of Health,Salisbury NHS Foundation Trust,11/12/2020,TISSUES HAND TOWELS & TOILET PAPER,Facilities,NHS LOGISTICS,1121148635,189.72,
Department of Health,Salisbury NHS Foundation Trust,11/12/2020,TISSUES HAND TOWELS & TOILET PAPER,Facilities,NHS LOGISTICS,1121148635,757.92,
Department of Health,Salisbury NHS Foundation Trust,11/12/2020,CLEANING MATERIAL PRODUCTS SUNDRIES,Facilities,NHS LOGISTICS,1121148635,8.2,
Department of Health,Salisbury NHS Foundation Trust,11/12/2020,DISPOSABLE THEATRE DRAPES WIPES,Facilities,NHS LOGISTICS,1121148635,145.92,
Department of Health,Salisbury NHS Foundation Trust,11/12/2020,PAPER GENERAL STATIONERY SUNDRIES,Medicine,NHS LOGISTICS,1121148635,24.09,
Department of Health,Salisbury NHS Foundation Trust,11/12/2020,BAGS SACKS - OTHER,Facilities,NHS LOGISTICS,1121148635,100.8,
Department of Health,Salisbury NHS Foundation Trust,11/12/2020,MEDSURGCONS-OTHER,Corporate - Medical,NHS LOGISTICS,1121148635,23.92,
Department of Health,Salisbury NHS Foundation Trust,11/12/2020,MEDSURGCONS-OTHER,Corporate - Medical,NHS LOGISTICS,1121148635,7.94,
Department of Health,Salisbury NHS Foundation Trust,11/12/2020,MEDSURGCONS-OTHER,Corporate - Medical,NHS LOGISTICS,1121148635,25.35,
Department of Health,Salisbury NHS Foundation Trust,11/12/2020,MEDSURGCONS-OTHER,Corporate - Medical,NHS LOGISTICS,1121148635,13.52,
Department of Health,Salisbury NHS Foundation Trust,11/12/2020,MEDSURGCONS-OTHER,Corporate - Medical,NHS LOGISTICS,1121148635,21.72,
Department of Health,Salisbury NHS Foundation Trust,11/12/2020,MEDSURGCONS-OTHER,Corporate - Medical,NHS LOGISTICS,1121148635,3.06,
Department of Health,Salisbury NHS Foundation Trust,11/12/2020,MEDSURGCONS-OTHER,Corporate - Medical,NHS LOGISTICS,1121148635,4.78,
Department of Health,Salisbury NHS Foundation Trust,11/12/2020,DRESSINGS - PRE STERILE,Corporate - Medical,NHS LOGISTICS,1121148635,23.64,
Department of Health,Salisbury NHS Foundation Trust,11/12/2020,CONTOUTSERVICES - OTHER,Surgery,NHS LOGISTICS,1121148635,17.36,
Department of Health,Salisbury NHS Foundation Trust,11/12/2020,DISPOSABLE THEATRE DRAPES WIPES,Corporate - Finance & Procurement,NHS LOGISTICS,1121148635,58.53,
Department of Health,Salisbury NHS Foundation Trust,11/12/2020,OTHER MEDICAL SUPPLIES,Corporate - Medical,NHS LOGISTICS,1121148635,13.92,
Department of Health,Salisbury NHS Foundation Trust,11/12/2020,OTHER MEDICAL SUPPLIES,Corporate - Medical,NHS LOGISTICS,1121148635,6.63,
Department of Health,Salisbury NHS Foundation Trust,11/12/2020,OTHER MEDICAL SUPPLIES,Corporate - Medical,NHS LOGISTICS,1121148635,7.04,
Department of Health,Salisbury NHS Foundation Trust,11/12/2020,DRESSINGS - PRE STERILE,Corporate - Medical,NHS LOGISTICS,1121148635,7.83,
Department of Health,Salisbury NHS Foundation Trust,11/12/2020,DRESSINGS - PRE STERILE,Corporate - Medical,NHS LOGISTICS,1121148635,4.8,
Department of Health,Salisbury NHS Foundation Trust,11/12/2020,DRESSINGS - PRE STERILE,Corporate - Medical,NHS LOGISTICS,1121148635,3.34,
Department of Health,Salisbury NHS Foundation Trust,11/12/2020,DRESSINGS - PRE STERILE,Corporate - Medical,NHS LOGISTICS,1121148635,2.84,
Department of Health,Salisbury NHS Foundation Trust,11/12/2020,MED SURG EQUIP REP MAINT CLEANING,Corporate - Medical,NHS LOGISTICS,1121148635,83.5,
Department of Health,Salisbury NHS Foundation Trust,11/12/2020,MED SURG EQUIP REP MAINT CLEANING,Corporate - Medical,NHS LOGISTICS,1121148635,8.23,
Department of Health,Salisbury NHS Foundation Trust,11/12/2020,MEDSURGCONS-OTHER,Corporate - Medical,NHS LOGISTICS,1121148635,5.32,
Department of Health,Salisbury NHS Foundation Trust,11/12/2020,MEDSURGCONS-OTHER,Corporate - Medical,NHS LOGISTICS,1121148635,3.53,
Department of Health,Salisbury NHS Foundation Trust,11/12/2020,MEDSURGCONS-OTHER,Corporate - Medical,NHS LOGISTICS,1121148635,6.16,
Department of Health,Salisbury NHS Foundation Trust,11/12/2020,MEDSURGCONS-OTHER,Corporate - Medical,NHS LOGISTICS,1121148635,3.24,
Department of Health,Salisbury NHS Foundation Trust,11/12/2020,DISPOSABLE THEATRE DRAPES WIPES,Corporate - Medical,NHS LOGISTICS,1121148635,11.22,
Department of Health,Salisbury NHS Foundation Trust,11/12/2020,PAPER GENERAL STATIONERY SUNDRIES,Surgery,NHS LOGISTICS,1121148635,32.12,
Department of Health,Salisbury NHS Foundation Trust,11/12/2020,TUBES,Clinical Support,NHS LOGISTICS,1121148635,5.24,
Department of Health,Salisbury NHS Foundation Trust,11/12/2020,TOILETRIES PERSONAL HYGIENE PRODUCT,Clinical Support,NHS LOGISTICS,1121148635,12.87,
Department of Health,Salisbury NHS Foundation Trust,11/12/2020,TISSUES HAND TOWELS & TOILET PAPER,Clinical Support,NHS LOGISTICS,1121148635,31.54,
Department of Health,Salisbury NHS Foundation Trust,11/12/2020,DRESSINGS - PRE STERILE,Clinical Support,NHS LOGISTICS,1121148635,7.83,
Department of Health,Salisbury NHS Foundation Trust,11/12/2020,MEDSURGCONS-OTHER,Clinical Support,NHS LOGISTICS,1121148635,3.38,
Department of Health,Salisbury NHS Foundation Trust,11/12/2020,MEDSURGCONS-OTHER,Clinical Support,NHS LOGISTICS,1121148635,14.54,
Department of Health,Salisbury NHS Foundation Trust,11/12/2020,DRESSINGS  -  PROCEDURE PACKS,Clinical Support,NHS LOGISTICS,1121148635,3.24,
Department of Health,Salisbury NHS Foundation Trust,11/12/2020,OTHER MEDICAL SUPPLIES,Clinical Support,NHS LOGISTICS,1121148635,3.58,
Department of Health,Salisbury NHS Foundation Trust,11/12/2020,DRESSINGS - PRE STERILE,Clinical Support,NHS LOGISTICS,1121148635,5.28,
Department of Health,Salisbury NHS Foundation Trust,11/12/2020,MEDSURGCONS-OTHER,Clinical Support,NHS LOGISTICS,1121148635,7.78,
Department of Health,Salisbury NHS Foundation Trust,11/12/2020,NON DISPOSABLE BED LINEN,Clinical Support,NHS LOGISTICS,1121148635,26.25,
Department of Health,Salisbury NHS Foundation Trust,11/12/2020,MEDSURGCONS-OTHER,Clinical Support,NHS LOGISTICS,1121148635,5.4,
Department of Health,Salisbury NHS Foundation Trust,11/12/2020,DISPOSABLE THEATRE DRAPES WIPES,Clinical Support,NHS LOGISTICS,1121148635,58.53,
Department of Health,Salisbury NHS Foundation Trust,11/12/2020,MEDSURGCONS-SUTURES,Clinical Support,NHS LOGISTICS,1121148635,45.83,
Department of Health,Salisbury NHS Foundation Trust,11/12/2020,ELECTRICAL EQUIPMENT,Clinical Support,NHS LOGISTICS,1121148635,8.88,
Department of Health,Salisbury NHS Foundation Trust,11/12/2020,OTHER MEDICAL SUPPLIES,Medicine,NHS LOGISTICS,1121148635,1.9,
Department of Health,Salisbury NHS Foundation Trust,11/12/2020,OTHER MEDICAL SUPPLIES,Medicine,NHS LOGISTICS,1121148635,4.64,
Department of Health,Salisbury NHS Foundation Trust,11/12/2020,DRESSINGS - PRE STERILE,Medicine,NHS LOGISTICS,1121148635,0.68,
Department of Health,Salisbury NHS Foundation Trust,11/12/2020,ANAESTHETIC EQUIPMENT ACCESSORIES,Medicine,NHS LOGISTICS,1121148635,62.5,
Department of Health,Salisbury NHS Foundation Trust,11/12/2020,TISSUES HAND TOWELS & TOILET PAPER,Medicine,NHS LOGISTICS,1121148635,1.22,
Department of Health,Salisbury NHS Foundation Trust,11/12/2020,DRESSINGS - PRE STERILE,Medicine,NHS LOGISTICS,1121148635,11.9,
Department of Health,Salisbury NHS Foundation Trust,11/12/2020,DRESSINGS - PRE STERILE,Medicine,NHS LOGISTICS,1121148635,7,
Department of Health,Salisbury NHS Foundation Trust,11/12/2020,MEDSURGCONS-OTHER,Medicine,NHS LOGISTICS,1121148635,12.76,
Department of Health,Salisbury NHS Foundation Trust,11/12/2020,MEDSURGCONS-OTHER,Medicine,NHS LOGISTICS,1121148635,2.39,
Department of Health,Salisbury NHS Foundation Trust,11/12/2020,DRESSINGS - PRE STERILE,Medicine,NHS LOGISTICS,1121148635,0.71,
Department of Health,Salisbury NHS Foundation Trust,11/12/2020,MEDSURGCONS-OTHER,Medicine,NHS LOGISTICS,1121148635,22.5,
Department of Health,Salisbury NHS Foundation Trust,11/12/2020,MEDSURGCONS-OTHER,Medicine,NHS LOGISTICS,1121148635,3.06,
Department of Health,Salisbury NHS Foundation Trust,11/12/2020,OTHER MEDICAL SUPPLIES,Medicine,NHS LOGISTICS,1121148635,6.63,
Department of Health,Salisbury NHS Foundation Trust,11/12/2020,MEDSURGCONS-OTHER,Medicine,NHS LOGISTICS,1121148635,5.6,
Department of Health,Salisbury NHS Foundation Trust,11/12/2020,MEDSURGCONS-OTHER,Medicine,NHS LOGISTICS,1121148635,0.78,
Department of Health,Salisbury NHS Foundation Trust,11/12/2020,DISPOSABLE THEATRE DRAPES WIPES,Medicine,NHS LOGISTICS,1121148635,7.48,
Department of Health,Salisbury NHS Foundation Trust,11/12/2020,MEDSURGCONS-OTHER,Clinical Support,NHS LOGISTICS,1121148635,0.64,
Department of Health,Salisbury NHS Foundation Trust,11/12/2020,LAB EQUIP-LABORATORY APPARATUS,Clinical Support,NHS LOGISTICS,1121148635,10.87,
Department of Health,Salisbury NHS Foundation Trust,11/12/2020,LAB EQUIP-LABORATORY APPARATUS,Clinical Support,NHS LOGISTICS,1121148635,282,
Department of Health,Salisbury NHS Foundation Trust,11/12/2020,PAPER GENERAL STATIONERY SUNDRIES,Medicine,NHS LOGISTICS,1121148635,32.12,
Department of Health,Salisbury NHS Foundation Trust,11/12/2020,TOILETRIES PERSONAL HYGIENE PRODUCT,Clinical Support,NHS LOGISTICS,1121148635,12.87,
Department of Health,Salisbury NHS Foundation Trust,11/12/2020,TISSUES HAND TOWELS & TOILET PAPER,Clinical Support,NHS LOGISTICS,1121148635,2.43,
Department of Health,Salisbury NHS Foundation Trust,11/12/2020,TISSUES HAND TOWELS & TOILET PAPER,Clinical Support,NHS LOGISTICS,1121148635,1.18,
Department of Health,Salisbury NHS Foundation Trust,11/12/2020,SURGICAL INSTRUMENTS - DISPOSABLE,Clinical Support,NHS LOGISTICS,1121148635,4.5,
Department of Health,Salisbury NHS Foundation Trust,11/12/2020,MEDSURGCONS-OTHER,Clinical Support,NHS LOGISTICS,1121148635,0.78,
Department of Health,Salisbury NHS Foundation Trust,11/12/2020,DISPOSABLE THEATRE DRAPES WIPES,Clinical Support,NHS LOGISTICS,1121148635,19.51,
Department of Health,Salisbury NHS Foundation Trust,11/12/2020,PATIENTS BABY WEAR,Medicine,NHS LOGISTICS,1121148635,26.64,
Department of Health,Salisbury NHS Foundation Trust,11/12/2020,PATIENTS BABY WEAR,Medicine,NHS LOGISTICS,1121148635,24.68,
Department of Health,Salisbury NHS Foundation Trust,11/12/2020,OTHER MEDICAL SUPPLIES,Medicine,NHS LOGISTICS,1121148635,41.4,
Department of Health,Salisbury NHS Foundation Trust,11/12/2020,BAGS SACKS - OTHER,Medicine,NHS LOGISTICS,1121148635,1.8,
Department of Health,Salisbury NHS Foundation Trust,11/12/2020,DRESSINGS - PRE STERILE,Medicine,NHS LOGISTICS,1121148635,1.18,
Department of Health,Salisbury NHS Foundation Trust,11/12/2020,ELECTRICAL EQUIPMENT,Medicine,NHS LOGISTICS,1121148635,0.85,
Department of Health,Salisbury NHS Foundation Trust,11/12/2020,M & S EQUIPELECTEQUIPINST - OTHER,Medicine,NHS LOGISTICS,1121148635,12.52,
Department of Health,Salisbury NHS Foundation Trust,11/12/2020,ELECTRICAL EQUIPMENT,Medicine,NHS LOGISTICS,1121148635,1.48,
Department of Health,Salisbury NHS Foundation Trust,11/12/2020,DISPOSABLE THEATRE DRAPES WIPES,Medicine,NHS LOGISTICS,1121148635,1.73,
Department of Health,Salisbury NHS Foundation Trust,11/12/2020,TISSUES HAND TOWELS & TOILET PAPER,Medicine,NHS LOGISTICS,1121148635,0.3,
Department of Health,Salisbury NHS Foundation Trust,11/12/2020,MED SURG EQUIP REP MAINT CLEANING,Medicine,NHS LOGISTICS,1121148635,8.61,
Department of Health,Salisbury NHS Foundation Trust,11/12/2020,PATIENTS INCONTINENCE,Medicine,NHS LOGISTICS,1121148635,4.72,
Department of Health,Salisbury NHS Foundation Trust,11/12/2020,MEDSURGCONS-OTHER,Medicine,NHS LOGISTICS,1121148635,42.75,
Department of Health,Salisbury NHS Foundation Trust,11/12/2020,M & S EQUIPELECTEQUIPINST - OTHER,Medicine,NHS LOGISTICS,1121148635,11.75,
Department of Health,Salisbury NHS Foundation Trust,11/12/2020,MEDSURGCONS-OTHER,Medicine,NHS LOGISTICS,1121148635,3.38,
Department of Health,Salisbury NHS Foundation Trust,11/12/2020,MEDSURGCONS-OTHER,Medicine,NHS LOGISTICS,1121148635,5.43,
Department of Health,Salisbury NHS Foundation Trust,11/12/2020,MEDSURGCONS-OTHER,Medicine,NHS LOGISTICS,1121148635,2.39,
Department of Health,Salisbury NHS Foundation Trust,11/12/2020,M & S EQUIPELECTEQUIPINST - OTHER,Medicine,NHS LOGISTICS,1121148635,12.1,
Department of Health,Salisbury NHS Foundation Trust,11/12/2020,DRESSINGS - PRE STERILE,Medicine,NHS LOGISTICS,1121148635,0.71,
Department of Health,Salisbury NHS Foundation Trust,11/12/2020,DRESSINGS  -  PROCEDURE PACKS,Medicine,NHS LOGISTICS,1121148635,0.7,
Department of Health,Salisbury NHS Foundation Trust,11/12/2020,DRESSINGS  -  PROCEDURE PACKS,Medicine,NHS LOGISTICS,1121148635,1.4,
Department of Health,Salisbury NHS Foundation Trust,11/12/2020,MEDSURGCONS-OTHER,Medicine,NHS LOGISTICS,1121148635,7.5,
Department of Health,Salisbury NHS Foundation Trust,11/12/2020,OTHER MEDICAL SUPPLIES,Medicine,NHS LOGISTICS,1121148635,2.68,
Department of Health,Salisbury NHS Foundation Trust,11/12/2020,PATIENTS INCONTINENCE,Medicine,NHS LOGISTICS,1121148635,44.9,
Department of Health,Salisbury NHS Foundation Trust,11/12/2020,PATIENTS INCONTINENCE,Medicine,NHS LOGISTICS,1121148635,2.25,
Department of Health,Salisbury NHS Foundation Trust,11/12/2020,PATIENT APPLIANCES,Medicine,NHS LOGISTICS,1121148635,2.5,
Department of Health,Salisbury NHS Foundation Trust,11/12/2020,PATIENT APPLIANCES,Medicine,NHS LOGISTICS,1121148635,2.5,
Department of Health,Salisbury NHS Foundation Trust,11/12/2020,DRESSINGS - PRE STERILE,Medicine,NHS LOGISTICS,1121148635,2.04,
Department of Health,Salisbury NHS Foundation Trust,11/12/2020,MEDSURGCONS-OTHER,Medicine,NHS LOGISTICS,1121148635,5.6,
Department of Health,Salisbury NHS Foundation Trust,11/12/2020,TUBES,Medicine,NHS LOGISTICS,1121148635,3.02,
Department of Health,Salisbury NHS Foundation Trust,11/12/2020,DRESSINGS - PRE STERILE,Medicine,NHS LOGISTICS,1121148635,3.83,
Department of Health,Salisbury NHS Foundation Trust,11/12/2020,NON DISPOSABLE BED LINEN,Medicine,NHS LOGISTICS,1121148635,16.92,
Department of Health,Salisbury NHS Foundation Trust,11/12/2020,PATIENT APPLIANCES,Medicine,NHS LOGISTICS,1121148635,6.51,
Department of Health,Salisbury NHS Foundation Trust,11/12/2020,PATIENT APPLIANCES,Medicine,NHS LOGISTICS,1121148635,3,
Department of Health,Salisbury NHS Foundation Trust,11/12/2020,MEDSURGCONS-OTHER,Medicine,NHS LOGISTICS,1121148635,0.61,
Department of Health,Salisbury NHS Foundation Trust,11/12/2020,DISPOSABLE THEATRE DRAPES WIPES,Medicine,NHS LOGISTICS,1121148635,3.74,
Department of Health,Salisbury NHS Foundation Trust,11/12/2020,DISPOSABLE THEATRE DRAPES WIPES,Medicine,NHS LOGISTICS,1121148635,19.51,
Department of Health,Salisbury NHS Foundation Trust,11/12/2020,MEDSURGCONS-OTHER,Medicine,NHS LOGISTICS,1121148635,25.4,
Department of Health,Salisbury NHS Foundation Trust,11/12/2020,TISSUES HAND TOWELS & TOILET PAPER,Musculo-Skeletal,NHS LOGISTICS,1121148635,1.22,
Department of Health,Salisbury NHS Foundation Trust,11/12/2020,DRESSINGS  -  PROCEDURE PACKS,Musculo-Skeletal,NHS LOGISTICS,1121148635,0.6,
Department of Health,Salisbury NHS Foundation Trust,11/12/2020,HEALTHCARE - WEAR,Musculo-Skeletal,NHS LOGISTICS,1121148635,9.84,
Department of Health,Salisbury NHS Foundation Trust,11/12/2020,DRESSINGS - PRE STERILE,Musculo-Skeletal,NHS LOGISTICS,1121148635,0.71,
Department of Health,Salisbury NHS Foundation Trust,11/12/2020,DRESSINGS - PRE STERILE,Musculo-Skeletal,NHS LOGISTICS,1121148635,1.12,
Department of Health,Salisbury NHS Foundation Trust,11/12/2020,NON DISPOSABLE BED LINEN,Musculo-Skeletal,NHS LOGISTICS,1121148635,2.32,
Department of Health,Salisbury NHS Foundation Trust,11/12/2020,TOILETRIES PERSONAL HYGIENE PRODUCT,Musculo-Skeletal,NHS LOGISTICS,1121148635,12.87,
Department of Health,Salisbury NHS Foundation Trust,11/12/2020,OTHER MEDICAL SUPPLIES,Medicine,NHS LOGISTICS,1121148635,41.4,
Department of Health,Salisbury NHS Foundation Trust,11/12/2020,DRESSINGS - PRE STERILE,Medicine,NHS LOGISTICS,1121148635,0.68,
Department of Health,Salisbury NHS Foundation Trust,11/12/2020,DRESSINGS - PRE STERILE,Medicine,NHS LOGISTICS,1121148635,1.46,
Department of Health,Salisbury NHS Foundation Trust,11/12/2020,DRESSINGS - PRE STERILE,Medicine,NHS LOGISTICS,1121148635,3.82,
Department of Health,Salisbury NHS Foundation Trust,11/12/2020,ELECTRICAL EQUIPMENT,Medicine,NHS LOGISTICS,1121148635,1.48,
Department of Health,Salisbury NHS Foundation Trust,11/12/2020,MEDSURGCONS-OTHER,Medicine,NHS LOGISTICS,1121148635,22.44,
Department of Health,Salisbury NHS Foundation Trust,11/12/2020,TOILETRIES PERSONAL HYGIENE PRODUCT,Medicine,NHS LOGISTICS,1121148635,6.43,
Department of Health,Salisbury NHS Foundation Trust,11/12/2020,CLEANING MATERIAL PRODUCTS SUNDRIES,Medicine,NHS LOGISTICS,1121148635,6.6,
Department of Health,Salisbury NHS Foundation Trust,11/12/2020,DRESSINGS - PRE STERILE,Medicine,NHS LOGISTICS,1121148635,11.9,
Department of Health,Salisbury NHS Foundation Trust,11/12/2020,M & S EQUIPELECTEQUIPINST - OTHER,Medicine,NHS LOGISTICS,1121148635,4.05,
Department of Health,Salisbury NHS Foundation Trust,11/12/2020,MEDSURGCONS-OTHER,Medicine,NHS LOGISTICS,1121148635,3.38,
Department of Health,Salisbury NHS Foundation Trust,11/12/2020,MEDSURGCONS-OTHER,Medicine,NHS LOGISTICS,1121148635,2.39,
Department of Health,Salisbury NHS Foundation Trust,11/12/2020,DRESSINGS - PRE STERILE,Medicine,NHS LOGISTICS,1121148635,0.71,
Department of Health,Salisbury NHS Foundation Trust,11/12/2020,ANAESTHETIC EQUIPMENT ACCESSORIES,Medicine,NHS LOGISTICS,1121148635,2.4,
Department of Health,Salisbury NHS Foundation Trust,11/12/2020,DRESSINGS  -  PROCEDURE PACKS,Medicine,NHS LOGISTICS,1121148635,3.24,
Department of Health,Salisbury NHS Foundation Trust,11/12/2020,MEDSURGCONS-OTHER,Medicine,NHS LOGISTICS,1121148635,5,
Department of Health,Salisbury NHS Foundation Trust,11/12/2020,OTHER MEDICAL SUPPLIES,Medicine,NHS LOGISTICS,1121148635,7.12,
Department of Health,Salisbury NHS Foundation Trust,11/12/2020,OTHER MEDICAL SUPPLIES,Medicine,NHS LOGISTICS,1121148635,1.34,
Department of Health,Salisbury NHS Foundation Trust,11/12/2020,DRESSINGS - PRE STERILE,Medicine,NHS LOGISTICS,1121148635,11.82,
Department of Health,Salisbury NHS Foundation Trust,11/12/2020,PATIENTS INCONTINENCE,Medicine,NHS LOGISTICS,1121148635,5.61,
Department of Health,Salisbury NHS Foundation Trust,11/12/2020,MEDSURGCONS-OTHER,Medicine,NHS LOGISTICS,1121148635,3.53,
Department of Health,Salisbury NHS Foundation Trust,11/12/2020,MEDSURGCONS-OTHER,Medicine,NHS LOGISTICS,1121148635,5.6,
Department of Health,Salisbury NHS Foundation Trust,11/12/2020,TISSUES HAND TOWELS & TOILET PAPER,Medicine,NHS LOGISTICS,1121148635,1.12,
Department of Health,Salisbury NHS Foundation Trust,11/12/2020,DENTAL SURGERY SUNDRIES,Medicine,NHS LOGISTICS,1121148635,2.52,
Department of Health,Salisbury NHS Foundation Trust,11/12/2020,MEDSURGCONS-OTHER,Medicine,NHS LOGISTICS,1121148635,0.78,
Department of Health,Salisbury NHS Foundation Trust,11/12/2020,DRESSINGS - PRE STERILE,Medicine,NHS LOGISTICS,1121148635,3.83,
Department of Health,Salisbury NHS Foundation Trust,11/12/2020,MEDSURGCONS-OTHER,Medicine,NHS LOGISTICS,1121148635,4.76,
Department of Health,Salisbury NHS Foundation Trust,11/12/2020,DISPOSABLE THEATRE DRAPES WIPES,Medicine,NHS LOGISTICS,1121148635,3.74,
Department of Health,Salisbury NHS Foundation Trust,11/12/2020,DISPOSABLE THEATRE DRAPES WIPES,Medicine,NHS LOGISTICS,1121148635,19.51,
Department of Health,Salisbury NHS Foundation Trust,11/12/2020,PAPER GENERAL STATIONERY SUNDRIES,Corporate - Quality,NHS LOGISTICS,1121148635,40.15,
Department of Health,Salisbury NHS Foundation Trust,11/12/2020,OTHER MEDICAL SUPPLIES,Surgery,NHS LOGISTICS,1121148635,34.8,
Department of Health,Salisbury NHS Foundation Trust,11/12/2020,OTHER MEDICAL SUPPLIES,Surgery,NHS LOGISTICS,1121148635,1.8,
Department of Health,Salisbury NHS Foundation Trust,11/12/2020,OTHER MEDICAL SUPPLIES,Surgery,NHS LOGISTICS,1121148635,1.8,
Department of Health,Salisbury NHS Foundation Trust,11/12/2020,OTHER MEDICAL SUPPLIES,Surgery,NHS LOGISTICS,1121148635,3.6,
Department of Health,Salisbury NHS Foundation Trust,11/12/2020,ANAESTHETIC EQUIPMENT ACCESSORIES,Surgery,NHS LOGISTICS,1121148635,37.8,
Department of Health,Salisbury NHS Foundation Trust,11/12/2020,ANAESTHETIC EQUIPMENT ACCESSORIES,Surgery,NHS LOGISTICS,1121148635,37.8,
Department of Health,Salisbury NHS Foundation Trust,11/12/2020,ANAESTHETIC EQUIPMENT ACCESSORIES,Surgery,NHS LOGISTICS,1121148635,189,
Department of Health,Salisbury NHS Foundation Trust,11/12/2020,ANAESTHETIC EQUIPMENT ACCESSORIES,Surgery,NHS LOGISTICS,1121148635,31.25,
Department of Health,Salisbury NHS Foundation Trust,11/12/2020,TUBES,Surgery,NHS LOGISTICS,1121148635,10.48,
Department of Health,Salisbury NHS Foundation Trust,11/12/2020,MEDSURGCONS-OTHER,Surgery,NHS LOGISTICS,1121148635,10.33,
Department of Health,Salisbury NHS Foundation Trust,11/12/2020,MEDSURGCONS-OTHER,Surgery,NHS LOGISTICS,1121148635,12.5,
Department of Health,Salisbury NHS Foundation Trust,11/12/2020,ANAESTHETIC EQUIPMENT ACCESSORIES,Surgery,NHS LOGISTICS,1121148635,31.5,
Department of Health,Salisbury NHS Foundation Trust,11/12/2020,DRESSINGS - PRE STERILE,Surgery,NHS LOGISTICS,1121148635,11.9,
Department of Health,Salisbury NHS Foundation Trust,11/12/2020,MEDSURGCONS-OTHER,Surgery,NHS LOGISTICS,1121148635,6.76,
Department of Health,Salisbury NHS Foundation Trust,11/12/2020,MEDSURGCONS-OTHER,Surgery,NHS LOGISTICS,1121148635,10.86,
Department of Health,Salisbury NHS Foundation Trust,11/12/2020,MEDSURGCONS-OTHER,Surgery,NHS LOGISTICS,1121148635,6.12,
Department of Health,Salisbury NHS Foundation Trust,11/12/2020,MEDSURGCONS-OTHER,Surgery,NHS LOGISTICS,1121148635,4.78,
Department of Health,Salisbury NHS Foundation Trust,11/12/2020,HEALTHCARE - WEAR,Surgery,NHS LOGISTICS,1121148635,12.5,
Department of Health,Salisbury NHS Foundation Trust,11/12/2020,HEALTHCARE - WEAR,Surgery,NHS LOGISTICS,1121148635,12.5,
Department of Health,Salisbury NHS Foundation Trust,11/12/2020,M & S EQUIPELECTEQUIPINST - OTHER,Surgery,NHS LOGISTICS,1121148635,24.5,
Department of Health,Salisbury NHS Foundation Trust,11/12/2020,M & S EQUIPELECTEQUIPINST - OTHER,Surgery,NHS LOGISTICS,1121148635,24.5,
Department of Health,Salisbury NHS Foundation Trust,11/12/2020,OTHER MEDICAL SUPPLIES,Surgery,NHS LOGISTICS,1121148635,34,
Department of Health,Salisbury NHS Foundation Trust,11/12/2020,OTHER MEDICAL SUPPLIES,Surgery,NHS LOGISTICS,1121148635,6.68,
Department of Health,Salisbury NHS Foundation Trust,11/12/2020,OTHER MEDICAL SUPPLIES,Surgery,NHS LOGISTICS,1121148635,3,
Department of Health,Salisbury NHS Foundation Trust,11/12/2020,OTHER MEDICAL SUPPLIES,Surgery,NHS LOGISTICS,1121148635,23.4,
Department of Health,Salisbury NHS Foundation Trust,11/12/2020,MEDSURGCONS-OTHER,Surgery,NHS LOGISTICS,1121148635,10,
Department of Health,Salisbury NHS Foundation Trust,11/12/2020,MEDSURGCONS-OTHER,Surgery,NHS LOGISTICS,1121148635,22.5,
Department of Health,Salisbury NHS Foundation Trust,11/12/2020,MEDSURGCONS-OTHER,Surgery,NHS LOGISTICS,1121148635,10,
Department of Health,Salisbury NHS Foundation Trust,11/12/2020,MEDSURGCONS-OTHER,Surgery,NHS LOGISTICS,1121148635,10.2,
Department of Health,Salisbury NHS Foundation Trust,11/12/2020,MEDSURGCONS-OTHER,Surgery,NHS LOGISTICS,1121148635,23,
Department of Health,Salisbury NHS Foundation Trust,11/12/2020,OTHER MEDICAL SUPPLIES,Surgery,NHS LOGISTICS,1121148635,6.63,
Department of Health,Salisbury NHS Foundation Trust,11/12/2020,OTHER MEDICAL SUPPLIES,Surgery,NHS LOGISTICS,1121148635,6.63,
Department of Health,Salisbury NHS Foundation Trust,11/12/2020,OTHER MEDICAL SUPPLIES,Surgery,NHS LOGISTICS,1121148635,10.72,
Department of Health,Salisbury NHS Foundation Trust,11/12/2020,DRUGS,Surgery,NHS LOGISTICS,1121148635,42.48,
Department of Health,Salisbury NHS Foundation Trust,11/12/2020,OTHER MEDICAL SUPPLIES,Surgery,NHS LOGISTICS,1121148635,10.6,
Department of Health,Salisbury NHS Foundation Trust,11/12/2020,OTHER MEDICAL SUPPLIES,Surgery,NHS LOGISTICS,1121148635,10.6,
Department of Health,Salisbury NHS Foundation Trust,11/12/2020,OTHER MEDICAL SUPPLIES,Surgery,NHS LOGISTICS,1121148635,5.3,
Department of Health,Salisbury NHS Foundation Trust,11/12/2020,SURGICAL INSTRUMENTS - GENERAL,Surgery,NHS LOGISTICS,1121148635,9.5,
Department of Health,Salisbury NHS Foundation Trust,11/12/2020,MEDSURGCONS-OTHER,Surgery,NHS LOGISTICS,1121148635,15.56,
Department of Health,Salisbury NHS Foundation Trust,11/12/2020,TUBES,Surgery,NHS LOGISTICS,1121148635,6.03,
Department of Health,Salisbury NHS Foundation Trust,11/12/2020,TUBES,Surgery,NHS LOGISTICS,1121148635,6,
Department of Health,Salisbury NHS Foundation Trust,11/12/2020,NON DISPOSABLE BED LINEN,Clinical Support,NHS LOGISTICS,1121148635,5.64,
Department of Health,Salisbury NHS Foundation Trust,11/12/2020,PATIENTS BABY WEAR,Medicine,NHS LOGISTICS,1121148635,26.64,
Department of Health,Salisbury NHS Foundation Trust,11/12/2020,OTHER MEDICAL SUPPLIES,Medicine,NHS LOGISTICS,1121148635,41.4,
Department of Health,Salisbury NHS Foundation Trust,11/12/2020,DRESSINGS - PRE STERILE,Medicine,NHS LOGISTICS,1121148635,3.82,
Department of Health,Salisbury NHS Foundation Trust,11/12/2020,M & S EQUIPELECTEQUIPINST - OTHER,Medicine,NHS LOGISTICS,1121148635,6.76,
Department of Health,Salisbury NHS Foundation Trust,11/12/2020,TOILETRIES PERSONAL HYGIENE PRODUCT,Medicine,NHS LOGISTICS,1121148635,12.87,
Department of Health,Salisbury NHS Foundation Trust,11/12/2020,TOILETRIES PERSONAL HYGIENE PRODUCT,Medicine,NHS LOGISTICS,1121148635,15.46,
Department of Health,Salisbury NHS Foundation Trust,11/12/2020,M & S EQUIPELECTEQUIPINST - OTHER,Medicine,NHS LOGISTICS,1121148635,11.75,
Department of Health,Salisbury NHS Foundation Trust,11/12/2020,MEDSURGCONS-OTHER,Medicine,NHS LOGISTICS,1121148635,3.38,
Department of Health,Salisbury NHS Foundation Trust,11/12/2020,OTHER MEDICAL SUPPLIES,Medicine,NHS LOGISTICS,1121148635,7.12,
Department of Health,Salisbury NHS Foundation Trust,11/12/2020,SURGICAL INSTRUMENTS - DISPOSABLE,Medicine,NHS LOGISTICS,1121148635,2.25,
Department of Health,Salisbury NHS Foundation Trust,11/12/2020,DRESSINGS - PRE STERILE,Medicine,NHS LOGISTICS,1121148635,1.38,
Department of Health,Salisbury NHS Foundation Trust,11/12/2020,TISSUES HAND TOWELS & TOILET PAPER,Medicine,NHS LOGISTICS,1121148635,0.56,
Department of Health,Salisbury NHS Foundation Trust,11/12/2020,DRESSINGS - PRE STERILE,Medicine,NHS LOGISTICS,1121148635,3.83,
Department of Health,Salisbury NHS Foundation Trust,11/12/2020,NON DISPOSABLE BED LINEN,Medicine,NHS LOGISTICS,1121148635,11.28,
Department of Health,Salisbury NHS Foundation Trust,11/12/2020,DISPOSABLE THEATRE DRAPES WIPES,Medicine,NHS LOGISTICS,1121148635,1.29,
Department of Health,Salisbury NHS Foundation Trust,11/12/2020,DISPOSABLE THEATRE DRAPES WIPES,Medicine,NHS LOGISTICS,1121148635,3.74,
Department of Health,Salisbury NHS Foundation Trust,11/12/2020,DISPOSABLE THEATRE DRAPES WIPES,Medicine,NHS LOGISTICS,1121148635,19.51,
Department of Health,Salisbury NHS Foundation Trust,11/12/2020,DRUGS,Musculo-Skeletal,NHS LOGISTICS,1121148635,161.62,
Department of Health,Salisbury NHS Foundation Trust,11/12/2020,M & S EQUIPELECTEQUIPINST - OTHER,Musculo-Skeletal,NHS LOGISTICS,1121148635,63,
Department of Health,Salisbury NHS Foundation Trust,11/12/2020,DRESSINGS - PRE STERILE,Clinical Support,NHS LOGISTICS,1121148635,1.36,
Department of Health,Salisbury NHS Foundation Trust,11/12/2020,OTHER MEDICAL SUPPLIES,Clinical Support,NHS LOGISTICS,1121148635,3.45,
Department of Health,Salisbury NHS Foundation Trust,11/12/2020,MEDSURGCONS-OTHER,Clinical Support,NHS LOGISTICS,1121148635,41.5,
Department of Health,Salisbury NHS Foundation Trust,11/12/2020,TOILETRIES PERSONAL HYGIENE PRODUCT,Clinical Support,NHS LOGISTICS,1121148635,19.3,
Department of Health,Salisbury NHS Foundation Trust,11/12/2020,ANAESTHETIC EQUIPMENT ACCESSORIES,Clinical Support,NHS LOGISTICS,1121148635,14.2,
Department of Health,Salisbury NHS Foundation Trust,11/12/2020,OTHER MEDICAL SUPPLIES,Clinical Support,NHS LOGISTICS,1121148635,55.33,
Department of Health,Salisbury NHS Foundation Trust,11/12/2020,M & S EQUIPELECTEQUIPINST - OTHER,Clinical Support,NHS LOGISTICS,1121148635,8.09,
Department of Health,Salisbury NHS Foundation Trust,11/12/2020,MEDSURGCONS-OTHER,Clinical Support,NHS LOGISTICS,1121148635,5.09,
Department of Health,Salisbury NHS Foundation Trust,11/12/2020,M & S EQUIPELECTEQUIPINST - OTHER,Clinical Support,NHS LOGISTICS,1121148635,27,
Department of Health,Salisbury NHS Foundation Trust,11/12/2020,DRESSINGS - PRE STERILE,Clinical Support,NHS LOGISTICS,1121148635,0.71,
Department of Health,Salisbury NHS Foundation Trust,11/12/2020,MEDSURGCONS-OTHER,Clinical Support,NHS LOGISTICS,1121148635,2.4,
Department of Health,Salisbury NHS Foundation Trust,11/12/2020,DRESSINGS  -  PROCEDURE PACKS,Clinical Support,NHS LOGISTICS,1121148635,1.3,
Department of Health,Salisbury NHS Foundation Trust,11/12/2020,OTHER MEDICAL SUPPLIES,Clinical Support,NHS LOGISTICS,1121148635,1.34,
Department of Health,Salisbury NHS Foundation Trust,11/12/2020,OTHER MEDICAL SUPPLIES,Clinical Support,NHS LOGISTICS,1121148635,137.37,
Department of Health,Salisbury NHS Foundation Trust,11/12/2020,M & S EQUIPELECTEQUIPINST - OTHER,Clinical Support,NHS LOGISTICS,1121148635,150,
Department of Health,Salisbury NHS Foundation Trust,11/12/2020,MEDSURGCONS-OTHER,Clinical Support,NHS LOGISTICS,1121148635,10.64,
Department of Health,Salisbury NHS Foundation Trust,11/12/2020,MEDSURGCONS-OTHER,Clinical Support,NHS LOGISTICS,1121148635,3.53,
Department of Health,Salisbury NHS Foundation Trust,11/12/2020,DRESSINGS - PRE STERILE,Clinical Support,NHS LOGISTICS,1121148635,2.88,
Department of Health,Salisbury NHS Foundation Trust,11/12/2020,SERVICES FROM NHS BODIES,Clinical Support,NHS LOGISTICS,1121148635,14.91,
Department of Health,Salisbury NHS Foundation Trust,11/12/2020,MEDSURGCONS-OTHER,Clinical Support,NHS LOGISTICS,1121148635,5.6,
Department of Health,Salisbury NHS Foundation Trust,11/12/2020,DISPOSABLE THEATRE DRAPES WIPES,Clinical Support,NHS LOGISTICS,1121148635,19.51,
Department of Health,Salisbury NHS Foundation Trust,11/12/2020,OTHER MEDICAL SUPPLIES,Surgery,NHS LOGISTICS,1121148635,37.12,
Department of Health,Salisbury NHS Foundation Trust,11/12/2020,DRESSINGS - PRE STERILE,Surgery,NHS LOGISTICS,1121148635,1.46,
Department of Health,Salisbury NHS Foundation Trust,11/12/2020,ELECTRICAL EQUIPMENT,Surgery,NHS LOGISTICS,1121148635,0.85,
Department of Health,Salisbury NHS Foundation Trust,11/12/2020,PATIENTS BEDWEAR UNISEX,Surgery,NHS LOGISTICS,1121148635,16.86,
Department of Health,Salisbury NHS Foundation Trust,11/12/2020,MEDSURGCONS-OTHER,Surgery,NHS LOGISTICS,1121148635,7.94,
Department of Health,Salisbury NHS Foundation Trust,11/12/2020,CLEANING MATERIAL PRODUCTS SUNDRIES,Surgery,NHS LOGISTICS,1121148635,6.6,
Department of Health,Salisbury NHS Foundation Trust,11/12/2020,DRESSINGS - PRE STERILE,Surgery,NHS LOGISTICS,1121148635,11.9,
Department of Health,Salisbury NHS Foundation Trust,11/12/2020,M & S EQUIPELECTEQUIPINST - OTHER,Surgery,NHS LOGISTICS,1121148635,4.05,
Department of Health,Salisbury NHS Foundation Trust,11/12/2020,MEDSURGCONS-OTHER,Surgery,NHS LOGISTICS,1121148635,3.38,
Department of Health,Salisbury NHS Foundation Trust,11/12/2020,MEDSURGCONS-OTHER,Surgery,NHS LOGISTICS,1121148635,5.43,
Department of Health,Salisbury NHS Foundation Trust,11/12/2020,M & S EQUIPELECTEQUIPINST - OTHER,Surgery,NHS LOGISTICS,1121148635,9.5,
Department of Health,Salisbury NHS Foundation Trust,11/12/2020,DRESSINGS - PRE STERILE,Surgery,NHS LOGISTICS,1121148635,0.71,
Department of Health,Salisbury NHS Foundation Trust,11/12/2020,ANAESTHETIC EQUIPMENT ACCESSORIES,Surgery,NHS LOGISTICS,1121148635,0.96,
Department of Health,Salisbury NHS Foundation Trust,11/12/2020,DRESSINGS  -  PROCEDURE PACKS,Surgery,NHS LOGISTICS,1121148635,14.7,
Department of Health,Salisbury NHS Foundation Trust,11/12/2020,DRESSINGS  -  PROCEDURE PACKS,Surgery,NHS LOGISTICS,1121148635,0.7,
Department of Health,Salisbury NHS Foundation Trust,11/12/2020,MEDSURGCONS-OTHER,Surgery,NHS LOGISTICS,1121148635,10,
Department of Health,Salisbury NHS Foundation Trust,11/12/2020,MEDSURGCONS-OTHER,Surgery,NHS LOGISTICS,1121148635,7.65,
Department of Health,Salisbury NHS Foundation Trust,11/12/2020,OTHER MEDICAL SUPPLIES,Surgery,NHS LOGISTICS,1121148635,7.12,
Department of Health,Salisbury NHS Foundation Trust,11/12/2020,OTHER MEDICAL SUPPLIES,Surgery,NHS LOGISTICS,1121148635,2.68,
Department of Health,Salisbury NHS Foundation Trust,11/12/2020,PATIENTS INCONTINENCE,Surgery,NHS LOGISTICS,1121148635,8.42,
Department of Health,Salisbury NHS Foundation Trust,11/12/2020,MEDSURGCONS-OTHER,Surgery,NHS LOGISTICS,1121148635,3.53,
Department of Health,Salisbury NHS Foundation Trust,11/12/2020,MEDSURGCONS-OTHER,Surgery,NHS LOGISTICS,1121148635,11.2,
Department of Health,Salisbury NHS Foundation Trust,11/12/2020,TISSUES HAND TOWELS & TOILET PAPER,Surgery,NHS LOGISTICS,1121148635,1.12,
Department of Health,Salisbury NHS Foundation Trust,11/12/2020,MEDSURGCONS-OTHER,Surgery,NHS LOGISTICS,1121148635,0.78,
Department of Health,Salisbury NHS Foundation Trust,11/12/2020,NON DISPOSABLE BED LINEN,Surgery,NHS LOGISTICS,1121148635,5.64,
Department of Health,Salisbury NHS Foundation Trust,11/12/2020,DISPOSABLE THEATRE DRAPES WIPES,Surgery,NHS LOGISTICS,1121148635,19.51,
Department of Health,Salisbury NHS Foundation Trust,11/12/2020,PAPER GENERAL STATIONERY SUNDRIES,Corporate - Transformation & Informatics,NHS LOGISTICS,1121148635,16.06,
Department of Health,Salisbury NHS Foundation Trust,11/12/2020,PAPER GENERAL STATIONERY SUNDRIES,Corporate - Transformation & Informatics,NHS LOGISTICS,1121148635,64.16,
Department of Health,Salisbury NHS Foundation Trust,11/12/2020,PAPER GENERAL STATIONERY SUNDRIES,Clinical Support,NHS LOGISTICS,1121148635,16.06,
Department of Health,Salisbury NHS Foundation Trust,11/12/2020,CLEANING MATERIAL PRODUCTS SUNDRIES,Medicine,NHS LOGISTICS,1121148635,6.6,
Department of Health,Salisbury NHS Foundation Trust,11/12/2020,MEDSURGCONS-OTHER,Medicine,NHS LOGISTICS,1121148635,3.38,
Department of Health,Salisbury NHS Foundation Trust,11/12/2020,MEDSURGCONS-OTHER,Medicine,NHS LOGISTICS,1121148635,5.43,
Department of Health,Salisbury NHS Foundation Trust,11/12/2020,OTHER MEDICAL SUPPLIES,Medicine,NHS LOGISTICS,1121148635,7.12,
Department of Health,Salisbury NHS Foundation Trust,11/12/2020,PATIENT APPLIANCES,Surgery,NHS LOGISTICS,1121148635,85,
Department of Health,Salisbury NHS Foundation Trust,11/12/2020,PATIENT APPLIANCES,Surgery,NHS LOGISTICS,1121148635,85,
Department of Health,Salisbury NHS Foundation Trust,11/12/2020,MEDSURGCONS-OTHER,Clinical Support,NHS LOGISTICS,1121148635,80,
Department of Health,Salisbury NHS Foundation Trust,11/12/2020,SURGICAL INSTRUMENTS - GENERAL,Clinical Support,NHS LOGISTICS,1121148635,4,
Department of Health,Salisbury NHS Foundation Trust,11/12/2020,SURGICAL INSTRUMENTS - GENERAL,Clinical Support,NHS LOGISTICS,1121148635,51,
Department of Health,Salisbury NHS Foundation Trust,11/12/2020,MEDSURGCONS-OTHER,Medicine,NHS LOGISTICS,1121148635,25,
Department of Health,Salisbury NHS Foundation Trust,11/12/2020,MEDSURGCONS-OTHER,Medicine,NHS LOGISTICS,1121148635,25,
Department of Health,Salisbury NHS Foundation Trust,11/12/2020,MEDSURGCONS-OTHER,Medicine,NHS LOGISTICS,1121148635,25,
Department of Health,Salisbury NHS Foundation Trust,11/12/2020,MEDSURGCONS-OTHER,Medicine,NHS LOGISTICS,1121148635,375,
Department of Health,Salisbury NHS Foundation Trust,11/12/2020,MEDSURGCONS-OTHER,Medicine,NHS LOGISTICS,1121148635,110,
Department of Health,Salisbury NHS Foundation Trust,11/12/2020,OTHER MEDICAL SUPPLIES,Clinical Support,NHS LOGISTICS,1121148635,71.24,
Department of Health,Salisbury NHS Foundation Trust,11/12/2020,M & S EQUIPELECTEQUIPINST - OTHER,Clinical Support,NHS LOGISTICS,1121148635,11.75,
Department of Health,Salisbury NHS Foundation Trust,11/12/2020,DRUGS,Clinical Support,NHS LOGISTICS,1121148635,2.76,
Department of Health,Salisbury NHS Foundation Trust,11/12/2020,DRUGS,Clinical Support,NHS LOGISTICS,1121148635,10.8,
Department of Health,Salisbury NHS Foundation Trust,11/12/2020,DISPOSABLE THEATRE DRAPES WIPES,Medicine,NHS LOGISTICS,1121148635,25.04,
Department of Health,Salisbury NHS Foundation Trust,11/12/2020,DISPOSABLE THEATRE DRAPES WIPES,Medicine,NHS LOGISTICS,1121148635,14.16,
Department of Health,Salisbury NHS Foundation Trust,11/12/2020,DI & RADIO-RADIOLOGY EQUIPMENT,Clinical Support,NHS LOGISTICS,1121148635,1187.5,
Department of Health,Salisbury NHS Foundation Trust,11/12/2020,M & S EQUIPELECTEQUIPINST - OTHER,Clinical Support,NHS LOGISTICS,1121148635,124,
Department of Health,Salisbury NHS Foundation Trust,11/12/2020,MEDSURGCONS-OTHER,Medicine,NHS LOGISTICS,1121148635,320,
Department of Health,Salisbury NHS Foundation Trust,11/12/2020,TUBES,Clinical Support,NHS LOGISTICS,1121148635,15.72,
Department of Health,Salisbury NHS Foundation Trust,11/12/2020,TISSUES HAND TOWELS & TOILET PAPER,Clinical Support,NHS LOGISTICS,1121148635,0.54,
Department of Health,Salisbury NHS Foundation Trust,11/12/2020,MEDSURGCONS-OTHER,Clinical Support,NHS LOGISTICS,1121148635,3.38,
Department of Health,Salisbury NHS Foundation Trust,11/12/2020,MEDSURGCONS-OTHER,Clinical Support,NHS LOGISTICS,1121148635,25.17,
Department of Health,Salisbury NHS Foundation Trust,11/12/2020,OTHER MEDICAL SUPPLIES,Clinical Support,NHS LOGISTICS,1121148635,6,
Department of Health,Salisbury NHS Foundation Trust,11/12/2020,OTHER MEDICAL SUPPLIES,Clinical Support,NHS LOGISTICS,1121148635,3.58,
Department of Health,Salisbury NHS Foundation Trust,11/12/2020,SERVICES FROM NHS BODIES,Clinical Support,NHS LOGISTICS,1121148635,9.08,
Department of Health,Salisbury NHS Foundation Trust,11/12/2020,DRESSINGS - PRE STERILE,Clinical Support,NHS LOGISTICS,1121148635,5.28,
Department of Health,Salisbury NHS Foundation Trust,11/12/2020,TUBES,Clinical Support,NHS LOGISTICS,1121148635,4.02,
Department of Health,Salisbury NHS Foundation Trust,11/12/2020,TUBES,Clinical Support,NHS LOGISTICS,1121148635,3,
Department of Health,Salisbury NHS Foundation Trust,11/12/2020,X-RAY FILM PROCESSING CHEMICALS,Clinical Support,NHS LOGISTICS,1121148635,189,
Department of Health,Salisbury NHS Foundation Trust,11/12/2020,NON DISPOSABLE BED LINEN,Clinical Support,NHS LOGISTICS,1121148635,8.46,
Department of Health,Salisbury NHS Foundation Trust,11/12/2020,DISPOSABLE THEATRE DRAPES WIPES,Clinical Support,NHS LOGISTICS,1121148635,19.51,
Department of Health,Salisbury NHS Foundation Trust,11/12/2020,M & S EQUIPELECTEQUIPINST - OTHER,Clinical Support,NHS LOGISTICS,1121148635,384,
Department of Health,Salisbury NHS Foundation Trust,11/12/2020,MEDSURGCONS-OTHER,Clinical Support,NHS LOGISTICS,1121148635,102,
Department of Health,Salisbury NHS Foundation Trust,11/12/2020,MEDSURGCONS-OTHER,Clinical Support,NHS LOGISTICS,1121148635,102,
Department of Health,Salisbury NHS Foundation Trust,11/12/2020,SURGICAL INSTRUMENTS - DISPOSABLE,Clinical Support,NHS LOGISTICS,1121148635,295.8,
Department of Health,Salisbury NHS Foundation Trust,11/12/2020,M & S EQUIPELECTEQUIPINST - OTHER,Clinical Support,NHS LOGISTICS,1121148635,159.6,
Department of Health,Salisbury NHS Foundation Trust,11/12/2020,M & S EQUIPELECTEQUIPINST - OTHER,Clinical Support,NHS LOGISTICS,1121148635,119.7,
Department of Health,Salisbury NHS Foundation Trust,11/12/2020,M & S EQUIPELECTEQUIPINST - OTHER,Clinical Support,NHS LOGISTICS,1121148635,161.3,
Department of Health,Salisbury NHS Foundation Trust,11/12/2020,M & S EQUIPELECTEQUIPINST - OTHER,Clinical Support,NHS LOGISTICS,1121148635,86.7,
Department of Health,Salisbury NHS Foundation Trust,11/12/2020,M & S EQUIPELECTEQUIPINST - OTHER,Clinical Support,NHS LOGISTICS,1121148635,543.75,
Department of Health,Salisbury NHS Foundation Trust,11/12/2020,M & S EQUIPELECTEQUIPINST - OTHER,Clinical Support,NHS LOGISTICS,1121148635,1600,
Department of Health,Salisbury NHS Foundation Trust,11/12/2020,PAPER GENERAL STATIONERY SUNDRIES,Surgery,NHS LOGISTICS,1121148635,16.06,
Department of Health,Salisbury NHS Foundation Trust,11/12/2020,PAPER GENERAL STATIONERY SUNDRIES,Surgery,NHS LOGISTICS,1121148635,64.16,
Department of Health,Salisbury NHS Foundation Trust,11/12/2020,CLEANING MATERIAL PRODUCTS SUNDRIES,Facilities,NHS LOGISTICS,1121148635,4.54,
Department of Health,Salisbury NHS Foundation Trust,11/12/2020,CLEANING MATERIAL PRODUCTS SUNDRIES,Facilities,NHS LOGISTICS,1121148635,8.94,
Department of Health,Salisbury NHS Foundation Trust,11/12/2020,PAPER GENERAL STATIONERY SUNDRIES,Corporate - OD and People,NHS LOGISTICS,1121148635,40.15,
Department of Health,Salisbury NHS Foundation Trust,11/12/2020,MEDPROST-TRAUMA PRODUCTS,Musculo-Skeletal,NHS LOGISTICS,1121148635,20,
Department of Health,Salisbury NHS Foundation Trust,11/12/2020,MEDPROST-TRAUMA PRODUCTS,Musculo-Skeletal,NHS LOGISTICS,1121148635,253,
Department of Health,Salisbury NHS Foundation Trust,11/12/2020,DRESSINGS - PRE STERILE,Musculo-Skeletal,NHS LOGISTICS,1121148635,3.82,
Department of Health,Salisbury NHS Foundation Trust,11/12/2020,M & S EQUIPELECTEQUIPINST - OTHER,Musculo-Skeletal,NHS LOGISTICS,1121148635,11.75,
Department of Health,Salisbury NHS Foundation Trust,11/12/2020,MEDSURGCONS-OTHER,Musculo-Skeletal,NHS LOGISTICS,1121148635,5.43,
Department of Health,Salisbury NHS Foundation Trust,11/12/2020,DRESSINGS - PRE STERILE,Musculo-Skeletal,NHS LOGISTICS,1121148635,2.13,
Department of Health,Salisbury NHS Foundation Trust,11/12/2020,DRESSINGS  -  PROCEDURE PACKS,Musculo-Skeletal,NHS LOGISTICS,1121148635,14.7,
Department of Health,Salisbury NHS Foundation Trust,11/12/2020,OTHER MEDICAL SUPPLIES,Musculo-Skeletal,NHS LOGISTICS,1121148635,1.34,
Department of Health,Salisbury NHS Foundation Trust,11/12/2020,DRESSINGS - PRE STERILE,Musculo-Skeletal,NHS LOGISTICS,1121148635,3.44,
Department of Health,Salisbury NHS Foundation Trust,11/12/2020,DRESSINGS - PRE STERILE,Musculo-Skeletal,NHS LOGISTICS,1121148635,14.2,
Department of Health,Salisbury NHS Foundation Trust,11/12/2020,TUBES,Musculo-Skeletal,NHS LOGISTICS,1121148635,2.01,
Department of Health,Salisbury NHS Foundation Trust,11/12/2020,PATIENT APPLIANCES,Musculo-Skeletal,NHS LOGISTICS,1121148635,6,
Department of Health,Salisbury NHS Foundation Trust,11/12/2020,OTHER MEDICAL SUPPLIES,Facilities,NHS LOGISTICS,1121148635,41.4,
Department of Health,Salisbury NHS Foundation Trust,11/12/2020,TUBES,Facilities,NHS LOGISTICS,1121148635,5.24,
Department of Health,Salisbury NHS Foundation Trust,11/12/2020,M & S EQUIPELECTEQUIPINST - OTHER,Facilities,NHS LOGISTICS,1121148635,6.8,
Department of Health,Salisbury NHS Foundation Trust,11/12/2020,MEDSURGCONS-OTHER,Facilities,NHS LOGISTICS,1121148635,10.14,
Department of Health,Salisbury NHS Foundation Trust,11/12/2020,MEDSURGCONS-OTHER,Facilities,NHS LOGISTICS,1121148635,5.43,
Department of Health,Salisbury NHS Foundation Trust,11/12/2020,M & S EQUIPELECTEQUIPINST - OTHER,Facilities,NHS LOGISTICS,1121148635,24.2,
Department of Health,Salisbury NHS Foundation Trust,11/12/2020,M & S EQUIPELECTEQUIPINST - OTHER,Facilities,NHS LOGISTICS,1121148635,0.97,
Department of Health,Salisbury NHS Foundation Trust,11/12/2020,TOILETRIES PERSONAL HYGIENE PRODUCT,Facilities,NHS LOGISTICS,1121148635,3.26,
Department of Health,Salisbury NHS Foundation Trust,11/12/2020,MEDSURGCONS-OTHER,Facilities,NHS LOGISTICS,1121148635,11.2,
Department of Health,Salisbury NHS Foundation Trust,11/12/2020,TUBES,Facilities,NHS LOGISTICS,1121148635,12,
Department of Health,Salisbury NHS Foundation Trust,11/12/2020,MEDSURGCONS-OTHER,Facilities,NHS LOGISTICS,1121148635,8,
Department of Health,Salisbury NHS Foundation Trust,11/12/2020,MEDSURGCONS-OTHER,Facilities,NHS LOGISTICS,1121148635,2.44,
Department of Health,Salisbury NHS Foundation Trust,11/12/2020,DISPOSABLE THEATRE DRAPES WIPES,Facilities,NHS LOGISTICS,1121148635,3.74,
Department of Health,Salisbury NHS Foundation Trust,11/12/2020,MED PROSTH - PACEMAKERS,Medicine,NHS LOGISTICS,1121148635,800,
Department of Health,Salisbury NHS Foundation Trust,11/12/2020,MED PROSTH - PACEMAKERS,Medicine,NHS LOGISTICS,1121148635,1320,
Department of Health,Salisbury NHS Foundation Trust,11/12/2020,MED PROSTH - PACEMAKERS,Medicine,NHS LOGISTICS,1121148635,3300,
Department of Health,Salisbury NHS Foundation Trust,11/12/2020,OPTICAL - OTHER,Surgery,NHS LOGISTICS,1121148635,35.01,
Department of Health,Salisbury NHS Foundation Trust,11/12/2020,OTHER MEDICAL SUPPLIES,Surgery,NHS LOGISTICS,1121148635,17.9,
Department of Health,Salisbury NHS Foundation Trust,11/12/2020,MED PROSTH - OTHER,Surgery,NHS LOGISTICS,1121148635,54.63,
Department of Health,Salisbury NHS Foundation Trust,11/12/2020,MED PROSTH - OTHER,Surgery,NHS LOGISTICS,1121148635,54.63,
Department of Health,Salisbury NHS Foundation Trust,11/12/2020,MED PROSTH - OTHER,Surgery,NHS LOGISTICS,1121148635,218.52,
Department of Health,Salisbury NHS Foundation Trust,11/12/2020,MED PROSTH - OTHER,Surgery,NHS LOGISTICS,1121148635,54.63,
Department of Health,Salisbury NHS Foundation Trust,11/12/2020,MED PROSTH - OTHER,Surgery,NHS LOGISTICS,1121148635,163.89,
Department of Health,Salisbury NHS Foundation Trust,11/12/2020,MED PROSTH - OTHER,Surgery,NHS LOGISTICS,1121148635,54.63,
Department of Health,Salisbury NHS Foundation Trust,11/12/2020,MED PROSTH - OTHER,Surgery,NHS LOGISTICS,1121148635,54.63,
Department of Health,Salisbury NHS Foundation Trust,11/12/2020,MED PROSTH - OTHER,Surgery,NHS LOGISTICS,1121148635,54.63,
Department of Health,Salisbury NHS Foundation Trust,11/12/2020,OPTICAL - OTHER,Surgery,NHS LOGISTICS,1121148635,477.36,
Department of Health,Salisbury NHS Foundation Trust,11/12/2020,OPTICAL - OTHER,Surgery,NHS LOGISTICS,1121148635,34.2,
Department of Health,Salisbury NHS Foundation Trust,11/12/2020,DRESSINGS  -  PROCEDURE PACKS,Surgery,NHS LOGISTICS,1121148635,24.8,
Department of Health,Salisbury NHS Foundation Trust,11/12/2020,MEDSURGCONS-OTHER,Surgery,NHS LOGISTICS,1121148635,157.52,
Department of Health,Salisbury NHS Foundation Trust,11/12/2020,MEDSURGCONS-OTHER,Surgery,NHS LOGISTICS,1121148635,157.52,
Department of Health,Salisbury NHS Foundation Trust,11/12/2020,MEDSURGCONS-OTHER,Surgery,NHS LOGISTICS,1121148635,157.52,
Department of Health,Salisbury NHS Foundation Trust,11/12/2020,MEDSURGCONS-OTHER,Surgery,NHS LOGISTICS,1121148635,140.96,
Department of Health,Salisbury NHS Foundation Trust,11/12/2020,MEDSURGCONS-OTHER,Surgery,NHS LOGISTICS,1121148635,157.52,
Department of Health,Salisbury NHS Foundation Trust,11/12/2020,MEDSURGCONS-SUTURES,Surgery,NHS LOGISTICS,1121148635,22.85,
Department of Health,Salisbury NHS Foundation Trust,11/12/2020,MEDSURGCONS-SUTURES,Surgery,NHS LOGISTICS,1121148635,31.31,
Department of Health,Salisbury NHS Foundation Trust,11/12/2020,MEDSURGCONS-SUTURES,Surgery,NHS LOGISTICS,1121148635,56.12,
Department of Health,Salisbury NHS Foundation Trust,11/12/2020,DRESSINGS - PRE STERILE,Surgery,NHS LOGISTICS,1121148635,3.36,
Department of Health,Salisbury NHS Foundation Trust,11/12/2020,DISPOSABLE THEATRE DRAPES WIPES,Surgery,NHS LOGISTICS,1121148635,7.48,
Department of Health,Salisbury NHS Foundation Trust,11/12/2020,M & S EQUIPELECTEQUIPINST - OTHER,Surgery,NHS LOGISTICS,1121148635,63,
Department of Health,Salisbury NHS Foundation Trust,11/12/2020,DRESSINGS  -  PROCEDURE PACKS,Surgery,NHS LOGISTICS,1121148635,252,
Department of Health,Salisbury NHS Foundation Trust,11/12/2020,M & S EQUIPELECTEQUIPINST - OTHER,Surgery,NHS LOGISTICS,1121148635,679.36,
Department of Health,Salisbury NHS Foundation Trust,11/12/2020,MEDSURGCONS-OTHER,Surgery,NHS LOGISTICS,1121148635,239.36,
Department of Health,Salisbury NHS Foundation Trust,11/12/2020,OTHER MEDICAL SUPPLIES,Corporate - Finance & Procurement,NHS LOGISTICS,1121148635,36.84,
Department of Health,Salisbury NHS Foundation Trust,11/12/2020,OTHER MEDICAL SUPPLIES,Corporate - Finance & Procurement,NHS LOGISTICS,1121148635,142.48,
Department of Health,Salisbury NHS Foundation Trust,11/12/2020,TOILETRIES PERSONAL HYGIENE PRODUCT,Corporate - Finance & Procurement,NHS LOGISTICS,1121148635,128.24,
Department of Health,Salisbury NHS Foundation Trust,11/12/2020,COOKING & KITCHEN UTENSILS,Corporate - Finance & Procurement,NHS LOGISTICS,1121148635,73,
Department of Health,Salisbury NHS Foundation Trust,11/12/2020,OTHER MEDICAL SUPPLIES,Corporate - Finance & Procurement,NHS LOGISTICS,1121148635,650,
Department of Health,Salisbury NHS Foundation Trust,11/12/2020,MEDSURGCONS-OTHER,Corporate - Finance & Procurement,NHS LOGISTICS,1121148635,792.33,
Department of Health,Salisbury NHS Foundation Trust,11/12/2020,MEDSURGCONS-OTHER,Corporate - Finance & Procurement,NHS LOGISTICS,1121148635,837.84,
Department of Health,Salisbury NHS Foundation Trust,11/12/2020,DISPOSABLE THEATRE DRAPES WIPES,Corporate - Finance & Procurement,NHS LOGISTICS,1121148635,195,
Department of Health,Salisbury NHS Foundation Trust,11/12/2020,DRESSINGS  -  PROCEDURE PACKS,Corporate - Finance & Procurement,NHS LOGISTICS,1121148635,161,
Department of Health,Salisbury NHS Foundation Trust,11/12/2020,DRESSINGS  -  PROCEDURE PACKS,Corporate - Finance & Procurement,NHS LOGISTICS,1121148635,87.07,
Department of Health,Salisbury NHS Foundation Trust,11/12/2020,DRESSINGS  -  PROCEDURE PACKS,Corporate - Finance & Procurement,NHS LOGISTICS,1121148635,190.79,
Department of Health,Salisbury NHS Foundation Trust,11/12/2020,DRESSINGS  -  PROCEDURE PACKS,Corporate - Finance & Procurement,NHS LOGISTICS,1121148635,140.62,
Department of Health,Salisbury NHS Foundation Trust,11/12/2020,DRESSINGS  -  PROCEDURE PACKS,Corporate - Finance & Procurement,NHS LOGISTICS,1121148635,82.23,
Department of Health,Salisbury NHS Foundation Trust,11/12/2020,DRESSINGS  -  PROCEDURE PACKS,Corporate - Finance & Procurement,NHS LOGISTICS,1121148635,415.92,
Department of Health,Salisbury NHS Foundation Trust,11/12/2020,DRESSINGS  -  PROCEDURE PACKS,Corporate - Finance & Procurement,NHS LOGISTICS,1121148635,152,
Department of Health,Salisbury NHS Foundation Trust,11/12/2020,DRESSINGS  -  PROCEDURE PACKS,Corporate - Finance & Procurement,NHS LOGISTICS,1121148635,254.9,
Department of Health,Salisbury NHS Foundation Trust,11/12/2020,DRESSINGS  -  PROCEDURE PACKS,Corporate - Finance & Procurement,NHS LOGISTICS,1121148635,364.3,
Department of Health,Salisbury NHS Foundation Trust,11/12/2020,DRESSINGS  -  PROCEDURE PACKS,Corporate - Finance & Procurement,NHS LOGISTICS,1121148635,99.8,
Department of Health,Salisbury NHS Foundation Trust,11/12/2020,DRESSINGS  -  PROCEDURE PACKS,Corporate - Finance & Procurement,NHS LOGISTICS,1121148635,65.03,
Department of Health,Salisbury NHS Foundation Trust,11/12/2020,DRESSINGS  -  PROCEDURE PACKS,Corporate - Finance & Procurement,NHS LOGISTICS,1121148635,170.4,
Department of Health,Salisbury NHS Foundation Trust,11/12/2020,DRESSINGS  -  PROCEDURE PACKS,Corporate - Finance & Procurement,NHS LOGISTICS,1121148635,182.42,
Department of Health,Salisbury NHS Foundation Trust,11/12/2020,M & S EQUIPELECTEQUIPINST - OTHER,Corporate - Finance & Procurement,NHS LOGISTICS,1121148635,840,
Department of Health,Salisbury NHS Foundation Trust,11/12/2020,DRESSINGS  -  PROCEDURE PACKS,Corporate - Finance & Procurement,NHS LOGISTICS,1121148635,483,
Department of Health,Salisbury NHS Foundation Trust,11/12/2020,OTHER MEDICAL SUPPLIES,Musculo-Skeletal,NHS LOGISTICS,1121148635,23.2,
Department of Health,Salisbury NHS Foundation Trust,11/12/2020,DRESSINGS - PRE STERILE,Musculo-Skeletal,NHS LOGISTICS,1121148635,1.18,
Department of Health,Salisbury NHS Foundation Trust,11/12/2020,M & S EQUIPELECTEQUIPINST - OTHER,Musculo-Skeletal,NHS LOGISTICS,1121148635,6.76,
Department of Health,Salisbury NHS Foundation Trust,11/12/2020,DISPOSABLE THEATRE DRAPES WIPES,Musculo-Skeletal,NHS LOGISTICS,1121148635,3.46,
Department of Health,Salisbury NHS Foundation Trust,11/12/2020,TOILETRIES PERSONAL HYGIENE PRODUCT,Musculo-Skeletal,NHS LOGISTICS,1121148635,12.87,
Department of Health,Salisbury NHS Foundation Trust,11/12/2020,MEDSURGCONS-OTHER,Musculo-Skeletal,NHS LOGISTICS,1121148635,4.64,
Department of Health,Salisbury NHS Foundation Trust,11/12/2020,DRESSINGS - PRE STERILE,Musculo-Skeletal,NHS LOGISTICS,1121148635,15.66,
Department of Health,Salisbury NHS Foundation Trust,11/12/2020,DRESSINGS - PRE STERILE,Musculo-Skeletal,NHS LOGISTICS,1121148635,12.28,
Department of Health,Salisbury NHS Foundation Trust,11/12/2020,DRESSINGS - PRE STERILE,Musculo-Skeletal,NHS LOGISTICS,1121148635,7.43,
Department of Health,Salisbury NHS Foundation Trust,11/12/2020,MEDSURGCONS-OTHER,Musculo-Skeletal,NHS LOGISTICS,1121148635,7.14,
Department of Health,Salisbury NHS Foundation Trust,11/12/2020,TISSUES HAND TOWELS & TOILET PAPER,Musculo-Skeletal,NHS LOGISTICS,1121148635,1.77,
Department of Health,Salisbury NHS Foundation Trust,11/12/2020,MEDSURGCONS-OTHER,Musculo-Skeletal,NHS LOGISTICS,1121148635,25.4,
Department of Health,Salisbury NHS Foundation Trust,11/12/2020,MEDSURGCONS-OTHER,Musculo-Skeletal,NHS LOGISTICS,1121148635,25.35,
Department of Health,Salisbury NHS Foundation Trust,11/12/2020,MEDSURGCONS-OTHER,Musculo-Skeletal,NHS LOGISTICS,1121148635,42.75,
Department of Health,Salisbury NHS Foundation Trust,11/12/2020,M & S EQUIPELECTEQUIPINST - OTHER,Musculo-Skeletal,NHS LOGISTICS,1121148635,23.5,
Department of Health,Salisbury NHS Foundation Trust,11/12/2020,MEDSURGCONS-OTHER,Musculo-Skeletal,NHS LOGISTICS,1121148635,6.76,
Department of Health,Salisbury NHS Foundation Trust,11/12/2020,MEDSURGCONS-OTHER,Musculo-Skeletal,NHS LOGISTICS,1121148635,5.43,
Department of Health,Salisbury NHS Foundation Trust,11/12/2020,DRESSINGS - PRE STERILE,Musculo-Skeletal,NHS LOGISTICS,1121148635,2.84,
Department of Health,Salisbury NHS Foundation Trust,11/12/2020,DRESSINGS  -  PROCEDURE PACKS,Musculo-Skeletal,NHS LOGISTICS,1121148635,14.7,
Department of Health,Salisbury NHS Foundation Trust,11/12/2020,DRESSINGS  -  PROCEDURE PACKS,Musculo-Skeletal,NHS LOGISTICS,1121148635,1.05,
Department of Health,Salisbury NHS Foundation Trust,11/12/2020,TOILETRIES PERSONAL HYGIENE PRODUCT,Musculo-Skeletal,NHS LOGISTICS,1121148635,1.77,
Department of Health,Salisbury NHS Foundation Trust,11/12/2020,MEDSURGCONS-OTHER,Musculo-Skeletal,NHS LOGISTICS,1121148635,22.5,
Department of Health,Salisbury NHS Foundation Trust,11/12/2020,MEDSURGCONS-OTHER,Musculo-Skeletal,NHS LOGISTICS,1121148635,23,
Department of Health,Salisbury NHS Foundation Trust,11/12/2020,OTHER MEDICAL SUPPLIES,Musculo-Skeletal,NHS LOGISTICS,1121148635,7.12,
Department of Health,Salisbury NHS Foundation Trust,11/12/2020,SURGICAL INSTRUMENTS - DISPOSABLE,Musculo-Skeletal,NHS LOGISTICS,1121148635,2.25,
Department of Health,Salisbury NHS Foundation Trust,11/12/2020,PATIENTS INCONTINENCE,Musculo-Skeletal,NHS LOGISTICS,1121148635,67.34,
Department of Health,Salisbury NHS Foundation Trust,11/12/2020,OTHER MEDICAL SUPPLIES,Musculo-Skeletal,NHS LOGISTICS,1121148635,6.5,
Department of Health,Salisbury NHS Foundation Trust,11/12/2020,TOILETRIES PERSONAL HYGIENE PRODUCT,Musculo-Skeletal,NHS LOGISTICS,1121148635,2.88,
Department of Health,Salisbury NHS Foundation Trust,11/12/2020,DRESSINGS - PRE STERILE,Musculo-Skeletal,NHS LOGISTICS,1121148635,2.04,
Department of Health,Salisbury NHS Foundation Trust,11/12/2020,MEDSURGCONS-OTHER,Musculo-Skeletal,NHS LOGISTICS,1121148635,55,
Department of Health,Salisbury NHS Foundation Trust,11/12/2020,MEDSURGCONS-OTHER,Musculo-Skeletal,NHS LOGISTICS,1121148635,3.53,
Department of Health,Salisbury NHS Foundation Trust,11/12/2020,DRESSINGS - PRE STERILE,Musculo-Skeletal,NHS LOGISTICS,1121148635,2.84,
Department of Health,Salisbury NHS Foundation Trust,11/12/2020,MEDSURGCONS-OTHER,Musculo-Skeletal,NHS LOGISTICS,1121148635,11.2,
Department of Health,Salisbury NHS Foundation Trust,11/12/2020,NON DISPOSABLE BED LINEN,Musculo-Skeletal,NHS LOGISTICS,1121148635,11.28,
Department of Health,Salisbury NHS Foundation Trust,11/12/2020,TOILETRIES PERSONAL HYGIENE PRODUCT,Musculo-Skeletal,NHS LOGISTICS,1121148635,46,
Department of Health,Salisbury NHS Foundation Trust,11/12/2020,DISPOSABLE THEATRE DRAPES WIPES,Musculo-Skeletal,NHS LOGISTICS,1121148635,3.74,
Department of Health,Salisbury NHS Foundation Trust,11/12/2020,DISPOSABLE THEATRE DRAPES WIPES,Musculo-Skeletal,NHS LOGISTICS,1121148635,39.02,
Department of Health,Salisbury NHS Foundation Trust,11/12/2020,DRESSINGS - PRE STERILE,Surgery,NHS LOGISTICS,1121148635,3.32,
Department of Health,Salisbury NHS Foundation Trust,11/12/2020,DRESSINGS - PRE STERILE,Surgery,NHS LOGISTICS,1121148635,5.44,
Department of Health,Salisbury NHS Foundation Trust,11/12/2020,DRESSINGS - PRE STERILE,Surgery,NHS LOGISTICS,1121148635,7.83,
Department of Health,Salisbury NHS Foundation Trust,11/12/2020,DRESSINGS - PRE STERILE,Surgery,NHS LOGISTICS,1121148635,4.8,
Department of Health,Salisbury NHS Foundation Trust,11/12/2020,DRESSINGS - PRE STERILE,Surgery,NHS LOGISTICS,1121148635,3.34,
Department of Health,Salisbury NHS Foundation Trust,11/12/2020,TUBES,Surgery,NHS LOGISTICS,1121148635,48.4,
Department of Health,Salisbury NHS Foundation Trust,11/12/2020,SURGICAL INSTRUMENTS - GENERAL,Surgery,NHS LOGISTICS,1121148635,4.35,
Department of Health,Salisbury NHS Foundation Trust,11/12/2020,DRUGS,Surgery,NHS LOGISTICS,1121148635,323.24,
Department of Health,Salisbury NHS Foundation Trust,11/12/2020,MEDSURGCONS-OTHER,Surgery,NHS LOGISTICS,1121148635,39.38,
Department of Health,Salisbury NHS Foundation Trust,11/12/2020,MEDSURGCONS-OTHER,Surgery,NHS LOGISTICS,1121148635,39.38,
Department of Health,Salisbury NHS Foundation Trust,11/12/2020,MEDSURGCONS-OTHER,Surgery,NHS LOGISTICS,1121148635,39.38,
Department of Health,Salisbury NHS Foundation Trust,11/12/2020,MEDSURGCONS-OTHER,Surgery,NHS LOGISTICS,1121148635,39.38,
Department of Health,Salisbury NHS Foundation Trust,11/12/2020,MEDSURGCONS-OTHER,Surgery,NHS LOGISTICS,1121148635,39.38,
Department of Health,Salisbury NHS Foundation Trust,11/12/2020,MEDSURGCONS-SUTURES,Surgery,NHS LOGISTICS,1121148635,68.02,
Department of Health,Salisbury NHS Foundation Trust,11/12/2020,MEDSURGCONS-SUTURES,Surgery,NHS LOGISTICS,1121148635,29.97,
Department of Health,Salisbury NHS Foundation Trust,11/12/2020,MEDSURGCONS-SUTURES,Surgery,NHS LOGISTICS,1121148635,39.01,
Department of Health,Salisbury NHS Foundation Trust,11/12/2020,TUBES,Surgery,NHS LOGISTICS,1121148635,4.6,
Department of Health,Salisbury NHS Foundation Trust,11/12/2020,NON DISPOSABLE BED LINEN,Surgery,NHS LOGISTICS,1121148635,16.92,
Department of Health,Salisbury NHS Foundation Trust,11/12/2020,DISPOSABLE THEATRE DRAPES WIPES,Surgery,NHS LOGISTICS,1121148635,19.51,
Department of Health,Salisbury NHS Foundation Trust,11/12/2020,MEDSURGCONS-LAPAROSCOPIC EQUIPMENT,Surgery,NHS LOGISTICS,1121148635,109.8,
Department of Health,Salisbury NHS Foundation Trust,11/12/2020,DRESSINGS - PRE STERILE,Surgery,NHS LOGISTICS,1121148635,194,
Department of Health,Salisbury NHS Foundation Trust,11/12/2020,DRESSINGS - PRE STERILE,Surgery,NHS LOGISTICS,1121148635,279.96,
Department of Health,Salisbury NHS Foundation Trust,11/12/2020,MEDSURGCONS-SUTURES,Surgery,NHS LOGISTICS,1121148635,26.35,
Department of Health,Salisbury NHS Foundation Trust,11/12/2020,MEDSURGCONS-OTHER,Surgery,NHS LOGISTICS,1121148635,322.08,
Department of Health,Salisbury NHS Foundation Trust,11/12/2020,MEDSURGCONS-OTHER,Surgery,NHS LOGISTICS,1121148635,107.36,
Department of Health,Salisbury NHS Foundation Trust,11/12/2020,MEDSURGCONS-SUTURES,Surgery,NHS LOGISTICS,1121148635,278.66,
Department of Health,Salisbury NHS Foundation Trust,11/12/2020,MEDSURGCONS-LAPAROSCOPIC EQUIPMENT,Surgery,NHS LOGISTICS,1121148635,114,
Department of Health,Salisbury NHS Foundation Trust,11/12/2020,M & S EQUIPELECTEQUIPINST - OTHER,Surgery,NHS LOGISTICS,1121148635,170,
Department of Health,Salisbury NHS Foundation Trust,11/12/2020,MEDSURGCONS-LAPAROSCOPIC EQUIPMENT,Surgery,NHS LOGISTICS,1121148635,114,
Department of Health,Salisbury NHS Foundation Trust,11/12/2020,OTHER MEDICAL SUPPLIES,Musculo-Skeletal,NHS LOGISTICS,1121148635,46.5,
Department of Health,Salisbury NHS Foundation Trust,11/12/2020,MEDSURGCONS-SUTURES,Surgery,NHS LOGISTICS,1121148635,119.88,
Department of Health,Salisbury NHS Foundation Trust,11/12/2020,MEDSURGCONS-SUTURES,Surgery,NHS LOGISTICS,1121148635,62.24,
Department of Health,Salisbury NHS Foundation Trust,11/12/2020,MEDSURGCONS-SUTURES,Surgery,NHS LOGISTICS,1121148635,86.4,
Department of Health,Salisbury NHS Foundation Trust,11/12/2020,MEDSURGCONS-SUTURES,Surgery,NHS LOGISTICS,1121148635,45.83,
Department of Health,Salisbury NHS Foundation Trust,11/12/2020,MEDSURGCONS-OTHER,Medicine,NHS LOGISTICS,1121148635,95,
Department of Health,Salisbury NHS Foundation Trust,11/12/2020,MEDSURGCONS-OTHER,Medicine,NHS LOGISTICS,1121148635,67.95,
Department of Health,Salisbury NHS Foundation Trust,11/12/2020,MEDSURGCONS-OTHER,Clinical Support,NHS LOGISTICS,1121148635,70.5,
Department of Health,Salisbury NHS Foundation Trust,11/12/2020,MEDSURGCONS-OTHER,Clinical Support,NHS LOGISTICS,1121148635,21.43,
Department of Health,Salisbury NHS Foundation Trust,11/12/2020,PAPER GENERAL STATIONERY SUNDRIES,Musculo-Skeletal,NHS LOGISTICS,1121148635,48.18,
Department of Health,Salisbury NHS Foundation Trust,11/12/2020,PAPER GENERAL STATIONERY SUNDRIES,Medicine,NHS LOGISTICS,1121148635,16.06,
Department of Health,Salisbury NHS Foundation Trust,11/12/2020,OTHER MEDICAL SUPPLIES,Medicine,NHS LOGISTICS,1121148635,23.2,
Department of Health,Salisbury NHS Foundation Trust,11/12/2020,PATIENTS INCONTINENCE,Medicine,NHS LOGISTICS,1121148635,6.56,
Department of Health,Salisbury NHS Foundation Trust,11/12/2020,PATIENTS INCONTINENCE,Medicine,NHS LOGISTICS,1121148635,5.94,
Department of Health,Salisbury NHS Foundation Trust,11/12/2020,DRESSINGS - PRE STERILE,Medicine,NHS LOGISTICS,1121148635,7.64,
Department of Health,Salisbury NHS Foundation Trust,11/12/2020,TISSUES HAND TOWELS & TOILET PAPER,Medicine,NHS LOGISTICS,1121148635,1.22,
Department of Health,Salisbury NHS Foundation Trust,11/12/2020,PATIENTS INCONTINENCE,Medicine,NHS LOGISTICS,1121148635,2.36,
Department of Health,Salisbury NHS Foundation Trust,11/12/2020,MEDSURGCONS-OTHER,Medicine,NHS LOGISTICS,1121148635,3.38,
Department of Health,Salisbury NHS Foundation Trust,11/12/2020,MEDSURGCONS-OTHER,Medicine,NHS LOGISTICS,1121148635,5.43,
Department of Health,Salisbury NHS Foundation Trust,11/12/2020,M & S EQUIPELECTEQUIPINST - OTHER,Medicine,NHS LOGISTICS,1121148635,4.75,
Department of Health,Salisbury NHS Foundation Trust,11/12/2020,DRESSINGS - PRE STERILE,Medicine,NHS LOGISTICS,1121148635,1.42,
Department of Health,Salisbury NHS Foundation Trust,11/12/2020,DRESSINGS  -  PROCEDURE PACKS,Medicine,NHS LOGISTICS,1121148635,3.24,
Department of Health,Salisbury NHS Foundation Trust,11/12/2020,MEDSURGCONS-OTHER,Medicine,NHS LOGISTICS,1121148635,10,
Department of Health,Salisbury NHS Foundation Trust,11/12/2020,MEDSURGCONS-OTHER,Medicine,NHS LOGISTICS,1121148635,5.1,
Department of Health,Salisbury NHS Foundation Trust,11/12/2020,OTHER MEDICAL SUPPLIES,Medicine,NHS LOGISTICS,1121148635,7.12,
Department of Health,Salisbury NHS Foundation Trust,11/12/2020,OTHER MEDICAL SUPPLIES,Medicine,NHS LOGISTICS,1121148635,2.68,
Department of Health,Salisbury NHS Foundation Trust,11/12/2020,SURGICAL INSTRUMENTS - DISPOSABLE,Medicine,NHS LOGISTICS,1121148635,6.75,
Department of Health,Salisbury NHS Foundation Trust,11/12/2020,PATIENTS INCONTINENCE,Medicine,NHS LOGISTICS,1121148635,11.23,
Department of Health,Salisbury NHS Foundation Trust,11/12/2020,PATIENT APPLIANCES,Medicine,NHS LOGISTICS,1121148635,4,
Department of Health,Salisbury NHS Foundation Trust,11/12/2020,PATIENT APPLIANCES,Medicine,NHS LOGISTICS,1121148635,4,
Department of Health,Salisbury NHS Foundation Trust,11/12/2020,DRESSINGS - PRE STERILE,Medicine,NHS LOGISTICS,1121148635,4.08,
Department of Health,Salisbury NHS Foundation Trust,11/12/2020,MEDSURGCONS-OTHER,Medicine,NHS LOGISTICS,1121148635,11.2,
Department of Health,Salisbury NHS Foundation Trust,11/12/2020,TISSUES HAND TOWELS & TOILET PAPER,Medicine,NHS LOGISTICS,1121148635,0.56,
Department of Health,Salisbury NHS Foundation Trust,11/12/2020,DRESSINGS - PRE STERILE,Medicine,NHS LOGISTICS,1121148635,7.66,
Department of Health,Salisbury NHS Foundation Trust,11/12/2020,DISPOSABLE THEATRE DRAPES WIPES,Medicine,NHS LOGISTICS,1121148635,39.02,
Department of Health,Salisbury NHS Foundation Trust,11/12/2020,OTHER MEDICAL SUPPLIES,Medicine,NHS LOGISTICS,1121148635,107,
Department of Health,Salisbury NHS Foundation Trust,11/12/2020,OTHER MEDICAL SUPPLIES,Medicine,NHS LOGISTICS,1121148635,9.28,
Department of Health,Salisbury NHS Foundation Trust,11/12/2020,DRESSINGS - PRE STERILE,Medicine,NHS LOGISTICS,1121148635,11.9,
Department of Health,Salisbury NHS Foundation Trust,11/12/2020,DRESSINGS  -  PROCEDURE PACKS,Medicine,NHS LOGISTICS,1121148635,0.75,
Department of Health,Salisbury NHS Foundation Trust,11/12/2020,MEDSURGCONS-OTHER,Medicine,NHS LOGISTICS,1121148635,3.38,
Department of Health,Salisbury NHS Foundation Trust,11/12/2020,DRESSINGS  -  PROCEDURE PACKS,Medicine,NHS LOGISTICS,1121148635,2.12,
Department of Health,Salisbury NHS Foundation Trust,11/12/2020,MEDSURGCONS-OTHER,Medicine,NHS LOGISTICS,1121148635,7.5,
Department of Health,Salisbury NHS Foundation Trust,11/12/2020,MEDSURGCONS-OTHER,Medicine,NHS LOGISTICS,1121148635,23,
Department of Health,Salisbury NHS Foundation Trust,11/12/2020,MEDSURGCONS-OTHER,Medicine,NHS LOGISTICS,1121148635,78.76,
Department of Health,Salisbury NHS Foundation Trust,11/12/2020,MEDSURGCONS-SUTURES,Medicine,NHS LOGISTICS,1121148635,49.8,
Department of Health,Salisbury NHS Foundation Trust,11/12/2020,DRESSINGS - PRE STERILE,Medicine,NHS LOGISTICS,1121148635,18.86,
Department of Health,Salisbury NHS Foundation Trust,11/12/2020,NON DISPOSABLE BED LINEN,Medicine,NHS LOGISTICS,1121148635,10.5,
Department of Health,Salisbury NHS Foundation Trust,11/12/2020,TUBES,Medicine,NHS LOGISTICS,1121148635,1.01,
Department of Health,Salisbury NHS Foundation Trust,11/12/2020,TUBES,Medicine,NHS LOGISTICS,1121148635,3,
Department of Health,Salisbury NHS Foundation Trust,11/12/2020,NON DISPOSABLE BED LINEN,Medicine,NHS LOGISTICS,1121148635,8.46,
Department of Health,Salisbury NHS Foundation Trust,11/12/2020,DISPOSABLE THEATRE DRAPES WIPES,Medicine,NHS LOGISTICS,1121148635,19.51,
Department of Health,Salisbury NHS Foundation Trust,11/12/2020,MEDSURGCONS-OTHER,Medicine,NHS LOGISTICS,1121148635,140,
Department of Health,Salisbury NHS Foundation Trust,11/12/2020,MEDSURGCONS-OTHER,Medicine,NHS LOGISTICS,1121148635,70,
Department of Health,Salisbury NHS Foundation Trust,11/12/2020,MEDSURGCONS-SUTURES,Medicine,NHS LOGISTICS,1121148635,22.17,
Department of Health,Salisbury NHS Foundation Trust,11/12/2020,OTHER MEDICAL SUPPLIES,Surgery,NHS LOGISTICS,1121148635,18.56,
Department of Health,Salisbury NHS Foundation Trust,11/12/2020,DRESSINGS - PRE STERILE,Surgery,NHS LOGISTICS,1121148635,1.46,
Department of Health,Salisbury NHS Foundation Trust,11/12/2020,MEDSURGCONS-OTHER,Surgery,NHS LOGISTICS,1121148635,34.8,
Department of Health,Salisbury NHS Foundation Trust,11/12/2020,MEDSURGCONS-OTHER,Surgery,NHS LOGISTICS,1121148635,124.2,
Department of Health,Salisbury NHS Foundation Trust,11/12/2020,TOILETRIES PERSONAL HYGIENE PRODUCT,Surgery,NHS LOGISTICS,1121148635,9.65,
Department of Health,Salisbury NHS Foundation Trust,11/12/2020,TISSUES HAND TOWELS & TOILET PAPER,Surgery,NHS LOGISTICS,1121148635,2.43,
Department of Health,Salisbury NHS Foundation Trust,11/12/2020,DRESSINGS - PRE STERILE,Surgery,NHS LOGISTICS,1121148635,14,
Department of Health,Salisbury NHS Foundation Trust,11/12/2020,TISSUES HAND TOWELS & TOILET PAPER,Surgery,NHS LOGISTICS,1121148635,1.18,
Department of Health,Salisbury NHS Foundation Trust,11/12/2020,M & S EQUIPELECTEQUIPINST - OTHER,Surgery,NHS LOGISTICS,1121148635,8.09,
Department of Health,Salisbury NHS Foundation Trust,11/12/2020,MEDSURGCONS-OTHER,Surgery,NHS LOGISTICS,1121148635,10.14,
Department of Health,Salisbury NHS Foundation Trust,11/12/2020,MEDSURGCONS-OTHER,Surgery,NHS LOGISTICS,1121148635,10.86,
Department of Health,Salisbury NHS Foundation Trust,11/12/2020,DRESSINGS - PRE STERILE,Surgery,NHS LOGISTICS,1121148635,2.84,
Department of Health,Salisbury NHS Foundation Trust,11/12/2020,MED SURG EQUIP REP MAINT CLEANING,Surgery,NHS LOGISTICS,1121148635,50.46,
Department of Health,Salisbury NHS Foundation Trust,11/12/2020,DRESSINGS  -  PROCEDURE PACKS,Surgery,NHS LOGISTICS,1121148635,0.7,
Department of Health,Salisbury NHS Foundation Trust,11/12/2020,DRESSINGS  -  PROCEDURE PACKS,Surgery,NHS LOGISTICS,1121148635,29.4,
Department of Health,Salisbury NHS Foundation Trust,11/12/2020,SURGICAL INSTRUMENTS - GENERAL,Surgery,NHS LOGISTICS,1121148635,2.5,
Department of Health,Salisbury NHS Foundation Trust,11/12/2020,DRESSINGS - PRE STERILE,Surgery,NHS LOGISTICS,1121148635,22.33,
Department of Health,Salisbury NHS Foundation Trust,11/12/2020,OTHER MEDICAL SUPPLIES,Surgery,NHS LOGISTICS,1121148635,6.63,
Department of Health,Salisbury NHS Foundation Trust,11/12/2020,SURGICAL INSTRUMENTS - DISPOSABLE,Surgery,NHS LOGISTICS,1121148635,6.75,
Department of Health,Salisbury NHS Foundation Trust,11/12/2020,DRUGS,Surgery,NHS LOGISTICS,1121148635,21.24,
Department of Health,Salisbury NHS Foundation Trust,11/12/2020,MEDSURGCONS-OTHER,Surgery,NHS LOGISTICS,1121148635,176,
Department of Health,Salisbury NHS Foundation Trust,11/12/2020,MEDSURGCONS-OTHER,Surgery,NHS LOGISTICS,1121148635,55,
Department of Health,Salisbury NHS Foundation Trust,11/12/2020,MEDSURGCONS-OTHER,Surgery,NHS LOGISTICS,1121148635,5.6,
Department of Health,Salisbury NHS Foundation Trust,11/12/2020,NON DISPOSABLE BED LINEN,Surgery,NHS LOGISTICS,1121148635,11.28,
Department of Health,Salisbury NHS Foundation Trust,11/12/2020,PATIENT APPLIANCES,Surgery,NHS LOGISTICS,1121148635,12,
Department of Health,Salisbury NHS Foundation Trust,11/12/2020,MEDSURGCONS-OTHER,Surgery,NHS LOGISTICS,1121148635,8,
Department of Health,Salisbury NHS Foundation Trust,11/12/2020,DISPOSABLE THEATRE DRAPES WIPES,Surgery,NHS LOGISTICS,1121148635,19.51,
Department of Health,Salisbury NHS Foundation Trust,11/12/2020,DRESSINGS - PRE STERILE,Clinical Support,NHS LOGISTICS,1121148635,3.39,
Department of Health,Salisbury NHS Foundation Trust,11/12/2020,TUBES,Clinical Support,NHS LOGISTICS,1121148635,5.24,
Department of Health,Salisbury NHS Foundation Trust,11/12/2020,MED SURG EQUIP REP MAINT CLEANING,Clinical Support,NHS LOGISTICS,1121148635,61.2,
Department of Health,Salisbury NHS Foundation Trust,11/12/2020,M & S EQUIPELECTEQUIPINST - OTHER,Clinical Support,NHS LOGISTICS,1121148635,11.75,
Department of Health,Salisbury NHS Foundation Trust,11/12/2020,MEDSURGCONS-OTHER,Clinical Support,NHS LOGISTICS,1121148635,4.78,
Department of Health,Salisbury NHS Foundation Trust,11/12/2020,M & S EQUIPELECTEQUIPINST - OTHER,Clinical Support,NHS LOGISTICS,1121148635,118,
Department of Health,Salisbury NHS Foundation Trust,11/12/2020,DRESSINGS - PRE STERILE,Clinical Support,NHS LOGISTICS,1121148635,2.04,
Department of Health,Salisbury NHS Foundation Trust,11/12/2020,MEDSURGCONS-OTHER,Clinical Support,NHS LOGISTICS,1121148635,15,
Department of Health,Salisbury NHS Foundation Trust,11/12/2020,MEDSURGCONS-OTHER,Clinical Support,NHS LOGISTICS,1121148635,8.76,
Department of Health,Salisbury NHS Foundation Trust,11/12/2020,MEDSURGCONS-OTHER,Clinical Support,NHS LOGISTICS,1121148635,10.64,
Department of Health,Salisbury NHS Foundation Trust,11/12/2020,MEDSURGCONS-OTHER,Clinical Support,NHS LOGISTICS,1121148635,7.06,
Department of Health,Salisbury NHS Foundation Trust,11/12/2020,MEDSURGCONS-OTHER,Clinical Support,NHS LOGISTICS,1121148635,12.32,
Department of Health,Salisbury NHS Foundation Trust,11/12/2020,DRESSINGS - PRE STERILE,Clinical Support,NHS LOGISTICS,1121148635,2.16,
Department of Health,Salisbury NHS Foundation Trust,11/12/2020,M & S EQUIPELECTEQUIPINST - OTHER,Clinical Support,NHS LOGISTICS,1121148635,0.61,
Department of Health,Salisbury NHS Foundation Trust,11/12/2020,M & S EQUIPELECTEQUIPINST - OTHER,Clinical Support,NHS LOGISTICS,1121148635,1.42,
Department of Health,Salisbury NHS Foundation Trust,11/12/2020,ADULTS HEARING AIDS,Surgery,NHS LOGISTICS,1121148635,2343.5,
Department of Health,Salisbury NHS Foundation Trust,11/12/2020,ADULTS HEARING AIDS,Surgery,NHS LOGISTICS,1121148635,318,
Department of Health,Salisbury NHS Foundation Trust,11/12/2020,PATIENTS BABY WEAR,Facilities,NHS LOGISTICS,1121148635,13.32,
Department of Health,Salisbury NHS Foundation Trust,11/12/2020,PATIENTS BABY WEAR,Facilities,NHS LOGISTICS,1121148635,6.17,
Department of Health,Salisbury NHS Foundation Trust,11/12/2020,OTHER MEDICAL SUPPLIES,Facilities,NHS LOGISTICS,1121148635,23.2,
Department of Health,Salisbury NHS Foundation Trust,11/12/2020,PATIENTS INCONTINENCE,Facilities,NHS LOGISTICS,1121148635,19.68,
Department of Health,Salisbury NHS Foundation Trust,11/12/2020,PATIENTS INCONTINENCE,Facilities,NHS LOGISTICS,1121148635,5.94,
Department of Health,Salisbury NHS Foundation Trust,11/12/2020,DRESSINGS - PRE STERILE,Facilities,NHS LOGISTICS,1121148635,0.68,
Department of Health,Salisbury NHS Foundation Trust,11/12/2020,TUBES,Facilities,NHS LOGISTICS,1121148635,5.24,
Department of Health,Salisbury NHS Foundation Trust,11/12/2020,M & S EQUIPELECTEQUIPINST - OTHER,Facilities,NHS LOGISTICS,1121148635,3.4,
Department of Health,Salisbury NHS Foundation Trust,11/12/2020,MEDSURGCONS-OTHER,Facilities,NHS LOGISTICS,1121148635,3.38,
Department of Health,Salisbury NHS Foundation Trust,11/12/2020,MEDSURGCONS-OTHER,Facilities,NHS LOGISTICS,1121148635,10.86,
Department of Health,Salisbury NHS Foundation Trust,11/12/2020,TUBES,Facilities,NHS LOGISTICS,1121148635,5.82,
Department of Health,Salisbury NHS Foundation Trust,11/12/2020,ANAESTHETIC EQUIPMENT ACCESSORIES,Facilities,NHS LOGISTICS,1121148635,2.4,
Department of Health,Salisbury NHS Foundation Trust,11/12/2020,DRESSINGS  -  PROCEDURE PACKS,Facilities,NHS LOGISTICS,1121148635,3.5,
Department of Health,Salisbury NHS Foundation Trust,11/12/2020,TOILETRIES PERSONAL HYGIENE PRODUCT,Facilities,NHS LOGISTICS,1121148635,1.77,
Department of Health,Salisbury NHS Foundation Trust,11/12/2020,OTHER MEDICAL SUPPLIES,Facilities,NHS LOGISTICS,1121148635,5.36,
Department of Health,Salisbury NHS Foundation Trust,11/12/2020,SURGICAL INSTRUMENTS - DISPOSABLE,Facilities,NHS LOGISTICS,1121148635,4.5,
Department of Health,Salisbury NHS Foundation Trust,11/12/2020,PATIENT APPLIANCES,Facilities,NHS LOGISTICS,1121148635,5,
Department of Health,Salisbury NHS Foundation Trust,11/12/2020,PATIENT APPLIANCES,Facilities,NHS LOGISTICS,1121148635,5,
Department of Health,Salisbury NHS Foundation Trust,11/12/2020,TOILETRIES PERSONAL HYGIENE PRODUCT,Facilities,NHS LOGISTICS,1121148635,3.26,
Department of Health,Salisbury NHS Foundation Trust,11/12/2020,TOILETRIES PERSONAL HYGIENE PRODUCT,Facilities,NHS LOGISTICS,1121148635,2.88,
Department of Health,Salisbury NHS Foundation Trust,11/12/2020,DRESSINGS - PRE STERILE,Facilities,NHS LOGISTICS,1121148635,6.12,
Department of Health,Salisbury NHS Foundation Trust,11/12/2020,MEDSURGCONS-OTHER,Facilities,NHS LOGISTICS,1121148635,11.2,
Department of Health,Salisbury NHS Foundation Trust,11/12/2020,DENTAL SURGERY SUNDRIES,Facilities,NHS LOGISTICS,1121148635,2.52,
Department of Health,Salisbury NHS Foundation Trust,11/12/2020,M & S EQUIPELECTEQUIPINST - OTHER,Facilities,NHS LOGISTICS,1121148635,2.84,
Department of Health,Salisbury NHS Foundation Trust,11/12/2020,MED SURG EQUIP REP MAINT CLEANING,Facilities,NHS LOGISTICS,1121148635,8.99,
Department of Health,Salisbury NHS Foundation Trust,11/12/2020,TUBES,Facilities,NHS LOGISTICS,1121148635,12,
Department of Health,Salisbury NHS Foundation Trust,11/12/2020,NON DISPOSABLE BED LINEN,Facilities,NHS LOGISTICS,1121148635,2.82,
Department of Health,Salisbury NHS Foundation Trust,11/12/2020,MEDSURGCONS-OTHER,Facilities,NHS LOGISTICS,1121148635,8,
Department of Health,Salisbury NHS Foundation Trust,11/12/2020,MEDSURGCONS-OTHER,Facilities,NHS LOGISTICS,1121148635,7.14,
Department of Health,Salisbury NHS Foundation Trust,11/12/2020,DISPOSABLE THEATRE DRAPES WIPES,Facilities,NHS LOGISTICS,1121148635,3.74,
Department of Health,Salisbury NHS Foundation Trust,11/12/2020,DISPOSABLE THEATRE DRAPES WIPES,Facilities,NHS LOGISTICS,1121148635,19.51,
Department of Health,Salisbury NHS Foundation Trust,11/12/2020,TISSUES HAND TOWELS & TOILET PAPER,Medicine,NHS LOGISTICS,1121148635,2.43,
Department of Health,Salisbury NHS Foundation Trust,11/12/2020,CLEANING MATERIAL PRODUCTS SUNDRIES,Medicine,NHS LOGISTICS,1121148635,4.25,
Department of Health,Salisbury NHS Foundation Trust,11/12/2020,TISSUES HAND TOWELS & TOILET PAPER,Medicine,NHS LOGISTICS,1121148635,1.35,
Department of Health,Salisbury NHS Foundation Trust,11/12/2020,PATIENTS INCONTINENCE,Medicine,NHS LOGISTICS,1121148635,2.36,
Department of Health,Salisbury NHS Foundation Trust,11/12/2020,M & S EQUIPELECTEQUIPINST - OTHER,Medicine,NHS LOGISTICS,1121148635,11.75,
Department of Health,Salisbury NHS Foundation Trust,11/12/2020,MEDSURGCONS-OTHER,Medicine,NHS LOGISTICS,1121148635,12.76,
Department of Health,Salisbury NHS Foundation Trust,11/12/2020,DRESSINGS - PRE STERILE,Medicine,NHS LOGISTICS,1121148635,1.42,
Department of Health,Salisbury NHS Foundation Trust,11/12/2020,DRESSINGS  -  PROCEDURE PACKS,Medicine,NHS LOGISTICS,1121148635,3.24,
Department of Health,Salisbury NHS Foundation Trust,11/12/2020,DRESSINGS  -  PROCEDURE PACKS,Medicine,NHS LOGISTICS,1121148635,2.8,
Department of Health,Salisbury NHS Foundation Trust,11/12/2020,DRESSINGS - PRE STERILE,Medicine,NHS LOGISTICS,1121148635,22.33,
Department of Health,Salisbury NHS Foundation Trust,11/12/2020,MEDSURGCONS-OTHER,Medicine,NHS LOGISTICS,1121148635,3.06,
Department of Health,Salisbury NHS Foundation Trust,11/12/2020,OTHER MEDICAL SUPPLIES,Medicine,NHS LOGISTICS,1121148635,6.63,
Department of Health,Salisbury NHS Foundation Trust,11/12/2020,MEDSURGCONS-OTHER,Medicine,NHS LOGISTICS,1121148635,89.26,
Department of Health,Salisbury NHS Foundation Trust,11/12/2020,PATIENTS INCONTINENCE,Medicine,NHS LOGISTICS,1121148635,5.61,
Department of Health,Salisbury NHS Foundation Trust,11/12/2020,PATIENTS INCONTINENCE,Medicine,NHS LOGISTICS,1121148635,2.25,
Department of Health,Salisbury NHS Foundation Trust,11/12/2020,DRESSINGS - PRE STERILE,Medicine,NHS LOGISTICS,1121148635,2.04,
Department of Health,Salisbury NHS Foundation Trust,11/12/2020,MEDSURGCONS-OTHER,Medicine,NHS LOGISTICS,1121148635,3.42,
Department of Health,Salisbury NHS Foundation Trust,11/12/2020,MEDSURGCONS-OTHER,Medicine,NHS LOGISTICS,1121148635,3.53,
Department of Health,Salisbury NHS Foundation Trust,11/12/2020,MEDSURGCONS-OTHER,Medicine,NHS LOGISTICS,1121148635,6.16,
Department of Health,Salisbury NHS Foundation Trust,11/12/2020,MEDSURGCONS-OTHER,Medicine,NHS LOGISTICS,1121148635,6.48,
Department of Health,Salisbury NHS Foundation Trust,11/12/2020,NON DISPOSABLE BED LINEN,Medicine,NHS LOGISTICS,1121148635,5.64,
Department of Health,Salisbury NHS Foundation Trust,11/12/2020,DISPOSABLE THEATRE DRAPES WIPES,Medicine,NHS LOGISTICS,1121148635,39.02,
Department of Health,Salisbury NHS Foundation Trust,11/12/2020,PAPER GENERAL STATIONERY SUNDRIES,Medicine,NHS LOGISTICS,1121148635,40.15,
Department of Health,Salisbury NHS Foundation Trust,11/12/2020,MEDSURGCONS-OTHER,Surgery,NHS LOGISTICS,1121148635,0.78,
Department of Health,Salisbury NHS Foundation Trust,11/12/2020,DISPOSABLE THEATRE DRAPES WIPES,Surgery,NHS LOGISTICS,1121148635,19.51,
Department of Health,Salisbury NHS Foundation Trust,11/12/2020,OTHER MEDICAL SUPPLIES,Surgery,NHS LOGISTICS,1121148635,0.38,
Department of Health,Salisbury NHS Foundation Trust,11/12/2020,OTHER MEDICAL SUPPLIES,Surgery,NHS LOGISTICS,1121148635,18.56,
Department of Health,Salisbury NHS Foundation Trust,11/12/2020,OTHER MEDICAL SUPPLIES,Surgery,NHS LOGISTICS,1121148635,41.4,
Department of Health,Salisbury NHS Foundation Trust,11/12/2020,DRESSINGS - PRE STERILE,Surgery,NHS LOGISTICS,1121148635,0.68,
Department of Health,Salisbury NHS Foundation Trust,11/12/2020,PATIENTS BEDWEAR UNISEX,Surgery,NHS LOGISTICS,1121148635,16.86,
Department of Health,Salisbury NHS Foundation Trust,11/12/2020,ELECTRICAL EQUIPMENT,Surgery,NHS LOGISTICS,1121148635,1.48,
Department of Health,Salisbury NHS Foundation Trust,11/12/2020,ELECTRICAL EQUIPMENT,Surgery,NHS LOGISTICS,1121148635,4.9,
Department of Health,Salisbury NHS Foundation Trust,11/12/2020,MEDSURGCONS-OTHER,Surgery,NHS LOGISTICS,1121148635,7.94,
Department of Health,Salisbury NHS Foundation Trust,11/12/2020,TOILETRIES PERSONAL HYGIENE PRODUCT,Surgery,NHS LOGISTICS,1121148635,12.87,
Department of Health,Salisbury NHS Foundation Trust,11/12/2020,DRESSINGS - PRE STERILE,Surgery,NHS LOGISTICS,1121148635,11.9,
Department of Health,Salisbury NHS Foundation Trust,11/12/2020,MEDSURGCONS-OTHER,Surgery,NHS LOGISTICS,1121148635,3.38,
Department of Health,Salisbury NHS Foundation Trust,11/12/2020,MEDSURGCONS-OTHER,Surgery,NHS LOGISTICS,1121148635,2.39,
Department of Health,Salisbury NHS Foundation Trust,11/12/2020,M & S EQUIPELECTEQUIPINST - OTHER,Surgery,NHS LOGISTICS,1121148635,14.25,
Department of Health,Salisbury NHS Foundation Trust,11/12/2020,ANAESTHETIC EQUIPMENT ACCESSORIES,Surgery,NHS LOGISTICS,1121148635,0.96,
Department of Health,Salisbury NHS Foundation Trust,11/12/2020,DRESSINGS  -  PROCEDURE PACKS,Surgery,NHS LOGISTICS,1121148635,12.96,
Department of Health,Salisbury NHS Foundation Trust,11/12/2020,OTHER MEDICAL SUPPLIES,Surgery,NHS LOGISTICS,1121148635,1.34,
Department of Health,Salisbury NHS Foundation Trust,11/12/2020,SURGICAL INSTRUMENTS - DISPOSABLE,Surgery,NHS LOGISTICS,1121148635,2.25,
Department of Health,Salisbury NHS Foundation Trust,11/12/2020,PATIENTS INCONTINENCE,Surgery,NHS LOGISTICS,1121148635,5.61,
Department of Health,Salisbury NHS Foundation Trust,11/12/2020,MEDSURGCONS-OTHER,Surgery,NHS LOGISTICS,1121148635,4.38,
Department of Health,Salisbury NHS Foundation Trust,11/12/2020,MEDSURGCONS-OTHER,Surgery,NHS LOGISTICS,1121148635,3.53,
Department of Health,Salisbury NHS Foundation Trust,11/12/2020,MEDSURGCONS-OTHER,Surgery,NHS LOGISTICS,1121148635,5.6,
Department of Health,Salisbury NHS Foundation Trust,11/12/2020,TISSUES HAND TOWELS & TOILET PAPER,Surgery,NHS LOGISTICS,1121148635,1.12,
Department of Health,Salisbury NHS Foundation Trust,11/12/2020,MEDSURGCONS-OTHER,Surgery,NHS LOGISTICS,1121148635,1.55,
Department of Health,Salisbury NHS Foundation Trust,11/12/2020,NON DISPOSABLE BED LINEN,Surgery,NHS LOGISTICS,1121148635,5.64,
Department of Health,Salisbury NHS Foundation Trust,11/12/2020,PATIENT APPLIANCES,Surgery,NHS LOGISTICS,1121148635,12,
Department of Health,Salisbury NHS Foundation Trust,11/12/2020,DISPOSABLE THEATRE DRAPES WIPES,Surgery,NHS LOGISTICS,1121148635,3.74,
Department of Health,Salisbury NHS Foundation Trust,11/12/2020,DISPOSABLE THEATRE DRAPES WIPES,Surgery,NHS LOGISTICS,1121148635,19.51,
Department of Health,Salisbury NHS Foundation Trust,11/12/2020,OTHER MEDICAL SUPPLIES,Medicine,NHS LOGISTICS,1121148635,39.78,
Department of Health,Salisbury NHS Foundation Trust,11/12/2020,PATIENTS BABY WEAR,Medicine,NHS LOGISTICS,1121148635,26.64,
Department of Health,Salisbury NHS Foundation Trust,11/12/2020,PATIENTS BABY WEAR,Medicine,NHS LOGISTICS,1121148635,24.68,
Department of Health,Salisbury NHS Foundation Trust,11/12/2020,SURGICAL INSTRUMENTS - DISPOSABLE,Medicine,NHS LOGISTICS,1121148635,2.25,
Department of Health,Salisbury NHS Foundation Trust,11/12/2020,MEDSURGCONS-OTHER,Medicine,NHS LOGISTICS,1121148635,3.53,
Department of Health,Salisbury NHS Foundation Trust,11/12/2020,NON DISPOSABLE BED LINEN,Medicine,NHS LOGISTICS,1121148635,11.28,
Department of Health,Salisbury NHS Foundation Trust,11/12/2020,DISPOSABLE THEATRE DRAPES WIPES,Medicine,NHS LOGISTICS,1121148635,19.51,
Department of Health,Salisbury NHS Foundation Trust,11/12/2020,MEDSURGCONS-OTHER,Medicine,NHS LOGISTICS,1121148635,310,
Department of Health,Salisbury NHS Foundation Trust,11/12/2020,MEDSURGCONS-OTHER,Medicine,NHS LOGISTICS,1121148635,800,
Department of Health,Salisbury NHS Foundation Trust,11/12/2020,MEDSURGCONS-OTHER,Medicine,NHS LOGISTICS,1121148635,232.5,
Department of Health,Salisbury NHS Foundation Trust,11/12/2020,MEDSURGCONS-OTHER,Medicine,NHS LOGISTICS,1121148635,465,
Department of Health,Salisbury NHS Foundation Trust,11/12/2020,MEDSURGCONS-OTHER,Medicine,NHS LOGISTICS,1121148635,420,
Department of Health,Salisbury NHS Foundation Trust,11/12/2020,MEDSURGCONS-OTHER,Medicine,NHS LOGISTICS,1121148635,480,
Department of Health,Salisbury NHS Foundation Trust,11/12/2020,MEDSURGCONS-OTHER,Medicine,NHS LOGISTICS,1121148635,800,
Department of Health,Salisbury NHS Foundation Trust,11/12/2020,PAPER GENERAL STATIONERY SUNDRIES,Clinical Support,NHS LOGISTICS,1121148635,40.15,
Department of Health,Salisbury NHS Foundation Trust,11/12/2020,OTHER MEDICAL SUPPLIES,Medicine,NHS LOGISTICS,1121148635,41.4,
Department of Health,Salisbury NHS Foundation Trust,11/12/2020,BAGS SACKS - OTHER,Medicine,NHS LOGISTICS,1121148635,6.4,
Department of Health,Salisbury NHS Foundation Trust,11/12/2020,DRESSINGS - PRE STERILE,Medicine,NHS LOGISTICS,1121148635,2.72,
Department of Health,Salisbury NHS Foundation Trust,11/12/2020,DRESSINGS - PRE STERILE,Medicine,NHS LOGISTICS,1121148635,1,
Department of Health,Salisbury NHS Foundation Trust,11/12/2020,DRESSINGS - PRE STERILE,Medicine,NHS LOGISTICS,1121148635,1.18,
Department of Health,Salisbury NHS Foundation Trust,11/12/2020,DRESSINGS - PRE STERILE,Medicine,NHS LOGISTICS,1121148635,11.64,
Department of Health,Salisbury NHS Foundation Trust,11/12/2020,DRESSINGS - PRE STERILE,Medicine,NHS LOGISTICS,1121148635,3.18,
Department of Health,Salisbury NHS Foundation Trust,11/12/2020,DRESSINGS - PRE STERILE,Medicine,NHS LOGISTICS,1121148635,7.64,
Department of Health,Salisbury NHS Foundation Trust,11/12/2020,DRESSINGS - PRE STERILE,Medicine,NHS LOGISTICS,1121148635,6.3,
Department of Health,Salisbury NHS Foundation Trust,11/12/2020,DRESSINGS - PRE STERILE,Medicine,NHS LOGISTICS,1121148635,3.39,
Department of Health,Salisbury NHS Foundation Trust,11/12/2020,PATIENTS BEDWEAR UNISEX,Medicine,NHS LOGISTICS,1121148635,33.72,
Department of Health,Salisbury NHS Foundation Trust,11/12/2020,PATIENT APPLIANCES,Medicine,NHS LOGISTICS,1121148635,9.3,
Department of Health,Salisbury NHS Foundation Trust,11/12/2020,PATIENT APPLIANCES,Medicine,NHS LOGISTICS,1121148635,93.61,
Department of Health,Salisbury NHS Foundation Trust,11/12/2020,DRESSINGS - PRE STERILE,Medicine,NHS LOGISTICS,1121148635,2,
Department of Health,Salisbury NHS Foundation Trust,11/12/2020,DRESSINGS - PRE STERILE,Medicine,NHS LOGISTICS,1121148635,35.7,
Department of Health,Salisbury NHS Foundation Trust,11/12/2020,DRESSINGS - PRE STERILE,Medicine,NHS LOGISTICS,1121148635,3.28,
Department of Health,Salisbury NHS Foundation Trust,11/12/2020,M & S EQUIPELECTEQUIPINST - OTHER,Medicine,NHS LOGISTICS,1121148635,11.75,
Department of Health,Salisbury NHS Foundation Trust,11/12/2020,MEDSURGCONS-OTHER,Medicine,NHS LOGISTICS,1121148635,10.14,
Department of Health,Salisbury NHS Foundation Trust,11/12/2020,MEDSURGCONS-OTHER,Medicine,NHS LOGISTICS,1121148635,10.86,
Department of Health,Salisbury NHS Foundation Trust,11/12/2020,TUBES,Medicine,NHS LOGISTICS,1121148635,5.82,
Department of Health,Salisbury NHS Foundation Trust,11/12/2020,M & S EQUIPELECTEQUIPINST - OTHER,Medicine,NHS LOGISTICS,1121148635,4.75,
Department of Health,Salisbury NHS Foundation Trust,11/12/2020,DRESSINGS - PRE STERILE,Medicine,NHS LOGISTICS,1121148635,4.26,
Department of Health,Salisbury NHS Foundation Trust,11/12/2020,MEDSURGCONS-OTHER,Medicine,NHS LOGISTICS,1121148635,1.2,
Department of Health,Salisbury NHS Foundation Trust,11/12/2020,ANAESTHETIC EQUIPMENT ACCESSORIES,Medicine,NHS LOGISTICS,1121148635,2.88,
Department of Health,Salisbury NHS Foundation Trust,11/12/2020,DRESSINGS  -  PROCEDURE PACKS,Medicine,NHS LOGISTICS,1121148635,1.75,
Department of Health,Salisbury NHS Foundation Trust,11/12/2020,DRESSINGS  -  PROCEDURE PACKS,Medicine,NHS LOGISTICS,1121148635,8.75,
Department of Health,Salisbury NHS Foundation Trust,11/12/2020,MEDSURGCONS-OTHER,Medicine,NHS LOGISTICS,1121148635,69,
Department of Health,Salisbury NHS Foundation Trust,11/12/2020,OTHER MEDICAL SUPPLIES,Medicine,NHS LOGISTICS,1121148635,6.63,
Department of Health,Salisbury NHS Foundation Trust,11/12/2020,OTHER MEDICAL SUPPLIES,Medicine,NHS LOGISTICS,1121148635,1.34,
Department of Health,Salisbury NHS Foundation Trust,11/12/2020,OTHER MEDICAL SUPPLIES,Medicine,NHS LOGISTICS,1121148635,3.58,
Department of Health,Salisbury NHS Foundation Trust,11/12/2020,SURGICAL INSTRUMENTS - DISPOSABLE,Medicine,NHS LOGISTICS,1121148635,6.75,
Department of Health,Salisbury NHS Foundation Trust,11/12/2020,PATIENTS INCONTINENCE,Medicine,NHS LOGISTICS,1121148635,2.81,
Department of Health,Salisbury NHS Foundation Trust,11/12/2020,SURGICAL INSTRUMENTS - GENERAL,Medicine,NHS LOGISTICS,1121148635,2.85,
Department of Health,Salisbury NHS Foundation Trust,11/12/2020,DRESSINGS - PRE STERILE,Medicine,NHS LOGISTICS,1121148635,4.08,
Department of Health,Salisbury NHS Foundation Trust,11/12/2020,DRESSINGS - PRE STERILE,Medicine,NHS LOGISTICS,1121148635,5.52,
Department of Health,Salisbury NHS Foundation Trust,11/12/2020,DRESSINGS - PRE STERILE,Medicine,NHS LOGISTICS,1121148635,0.93,
Department of Health,Salisbury NHS Foundation Trust,11/12/2020,DRESSINGS - PRE STERILE,Medicine,NHS LOGISTICS,1121148635,18,
Department of Health,Salisbury NHS Foundation Trust,11/12/2020,DRESSINGS - PRE STERILE,Medicine,NHS LOGISTICS,1121148635,9,
Department of Health,Salisbury NHS Foundation Trust,11/12/2020,MEDSURGCONS-OTHER,Medicine,NHS LOGISTICS,1121148635,22.37,
Department of Health,Salisbury NHS Foundation Trust,11/12/2020,M & S EQUIPELECTEQUIPINST - OTHER,Medicine,NHS LOGISTICS,1121148635,0.61,
Department of Health,Salisbury NHS Foundation Trust,11/12/2020,MEDSURGCONS-OTHER,Medicine,NHS LOGISTICS,1121148635,11.63,
Department of Health,Salisbury NHS Foundation Trust,11/12/2020,TUBES,Medicine,NHS LOGISTICS,1121148635,2.01,
Department of Health,Salisbury NHS Foundation Trust,11/12/2020,NON DISPOSABLE BED LINEN,Medicine,NHS LOGISTICS,1121148635,5.64,
Department of Health,Salisbury NHS Foundation Trust,11/12/2020,TOILETRIES PERSONAL HYGIENE PRODUCT,Medicine,NHS LOGISTICS,1121148635,5.75,
Department of Health,Salisbury NHS Foundation Trust,11/12/2020,DISPOSABLE THEATRE DRAPES WIPES,Medicine,NHS LOGISTICS,1121148635,14.96,
Department of Health,Salisbury NHS Foundation Trust,11/12/2020,DISPOSABLE THEATRE DRAPES WIPES,Medicine,NHS LOGISTICS,1121148635,78.04,
Department of Health,Salisbury NHS Foundation Trust,11/12/2020,DRESSINGS - PRE STERILE,Medicine,NHS LOGISTICS,1121148635,2.79,
Department of Health,Salisbury NHS Foundation Trust,11/12/2020,MEDSURGCONS-OTHER,Clinical Support,NHS LOGISTICS,1121148635,5.6,
Department of Health,Salisbury NHS Foundation Trust,11/12/2020,MEDSURGCONS-OTHER,Clinical Support,NHS LOGISTICS,1121148635,3.38,
Department of Health,Salisbury NHS Foundation Trust,11/12/2020,MEDSURGCONS-OTHER,Clinical Support,NHS LOGISTICS,1121148635,5.43,
Department of Health,Salisbury NHS Foundation Trust,11/12/2020,MEDSURGCONS-LAPAROSCOPIC EQUIPMENT,Surgery,NHS LOGISTICS,1121148635,114,
Department of Health,Salisbury NHS Foundation Trust,11/12/2020,TISSUES HAND TOWELS & TOILET PAPER,Clinical Support,NHS LOGISTICS,1121148635,21.03,
Department of Health,Salisbury NHS Foundation Trust,11/12/2020,DRESSINGS  -  PROCEDURE PACKS,Clinical Support,NHS LOGISTICS,1121148635,0.5,
Department of Health,Salisbury NHS Foundation Trust,11/12/2020,DRESSINGS  -  PROCEDURE PACKS,Clinical Support,NHS LOGISTICS,1121148635,3.24,
Department of Health,Salisbury NHS Foundation Trust,11/12/2020,SURGICAL INSTRUMENTS - GENERAL,Clinical Support,NHS LOGISTICS,1121148635,2.07,
Department of Health,Salisbury NHS Foundation Trust,11/12/2020,DRESSINGS - PRE STERILE,Clinical Support,NHS LOGISTICS,1121148635,1.76,
Department of Health,Salisbury NHS Foundation Trust,11/12/2020,MEDSURGCONS-OTHER,Clinical Support,NHS LOGISTICS,1121148635,15.56,
Department of Health,Salisbury NHS Foundation Trust,11/12/2020,NON DISPOSABLE BED LINEN,Clinical Support,NHS LOGISTICS,1121148635,10.5,
Department of Health,Salisbury NHS Foundation Trust,11/12/2020,MEDSURGCONS-OTHER,Clinical Support,NHS LOGISTICS,1121148635,5.4,
Department of Health,Salisbury NHS Foundation Trust,11/12/2020,NON DISPOSABLE BED LINEN,Clinical Support,NHS LOGISTICS,1121148635,5.64,
Department of Health,Salisbury NHS Foundation Trust,11/12/2020,DISPOSABLE THEATRE DRAPES WIPES,Clinical Support,NHS LOGISTICS,1121148635,58.53,
Department of Health,Salisbury NHS Foundation Trust,11/12/2020,OTHER MEDICAL SUPPLIES,Clinical Support,NHS LOGISTICS,1121148635,168.5,
Department of Health,Salisbury NHS Foundation Trust,11/12/2020,DRESSINGS - PRE STERILE,Surgery,NHS LOGISTICS,1121148635,46.56,
Department of Health,Salisbury NHS Foundation Trust,11/12/2020,TISSUES HAND TOWELS & TOILET PAPER,Surgery,NHS LOGISTICS,1121148635,3.66,
Department of Health,Salisbury NHS Foundation Trust,11/12/2020,DRESSINGS - PRE STERILE,Surgery,NHS LOGISTICS,1121148635,11.9,
Department of Health,Salisbury NHS Foundation Trust,11/12/2020,DRESSINGS - PRE STERILE,Surgery,NHS LOGISTICS,1121148635,7.83,
Department of Health,Salisbury NHS Foundation Trust,11/12/2020,DRESSINGS - PRE STERILE,Surgery,NHS LOGISTICS,1121148635,9.6,
Department of Health,Salisbury NHS Foundation Trust,11/12/2020,DRESSINGS - PRE STERILE,Surgery,NHS LOGISTICS,1121148635,6.68,
Department of Health,Salisbury NHS Foundation Trust,11/12/2020,MEDSURGCONS-OTHER,Surgery,NHS LOGISTICS,1121148635,3.06,
Department of Health,Salisbury NHS Foundation Trust,11/12/2020,MEDSURGCONS-OTHER,Surgery,NHS LOGISTICS,1121148635,16.8,
Department of Health,Salisbury NHS Foundation Trust,11/12/2020,DRUGS,Surgery,NHS LOGISTICS,1121148635,323.24,
Department of Health,Salisbury NHS Foundation Trust,11/12/2020,BEVERAGES & AMBIENT FOOD,Surgery,NHS LOGISTICS,1121148635,1.71,
Department of Health,Salisbury NHS Foundation Trust,11/12/2020,SURGICAL INSTRUMENTS - DISPOSABLE,Surgery,NHS LOGISTICS,1121148635,48,
Department of Health,Salisbury NHS Foundation Trust,11/12/2020,MEDSURGCONS-OTHER,Surgery,NHS LOGISTICS,1121148635,6.4,
Department of Health,Salisbury NHS Foundation Trust,11/12/2020,DRESSINGS - PRE STERILE,Surgery,NHS LOGISTICS,1121148635,3.44,
Department of Health,Salisbury NHS Foundation Trust,11/12/2020,MEDSURGCONS-OTHER,Surgery,NHS LOGISTICS,1121148635,7.78,
Department of Health,Salisbury NHS Foundation Trust,11/12/2020,TUBES,Surgery,NHS LOGISTICS,1121148635,6.9,
Department of Health,Salisbury NHS Foundation Trust,11/12/2020,NON DISPOSABLE BED LINEN,Surgery,NHS LOGISTICS,1121148635,16.92,
Department of Health,Salisbury NHS Foundation Trust,11/12/2020,OTHER MEDICAL SUPPLIES,Surgery,NHS LOGISTICS,1121148635,25.92,
Department of Health,Salisbury NHS Foundation Trust,11/12/2020,OTHER MEDICAL SUPPLIES,Surgery,NHS LOGISTICS,1121148635,18.56,
Department of Health,Salisbury NHS Foundation Trust,11/12/2020,ANAESTHETIC EQUIPMENT ACCESSORIES,Surgery,NHS LOGISTICS,1121148635,37.8,
Department of Health,Salisbury NHS Foundation Trust,11/12/2020,MEDSURGCONS-OTHER,Surgery,NHS LOGISTICS,1121148635,12.6,
Department of Health,Salisbury NHS Foundation Trust,11/12/2020,OTHER MEDICAL SUPPLIES,Surgery,NHS LOGISTICS,1121148635,54,
Department of Health,Salisbury NHS Foundation Trust,11/12/2020,MEDSURGCONS-OTHER,Surgery,NHS LOGISTICS,1121148635,45,
Department of Health,Salisbury NHS Foundation Trust,11/12/2020,MEDSURGCONS-OTHER,Surgery,NHS LOGISTICS,1121148635,15.3,
Department of Health,Salisbury NHS Foundation Trust,11/12/2020,MEDSURGCONS-OTHER,Surgery,NHS LOGISTICS,1121148635,23,
Department of Health,Salisbury NHS Foundation Trust,11/12/2020,OTHER MEDICAL SUPPLIES,Surgery,NHS LOGISTICS,1121148635,20.6,
Department of Health,Salisbury NHS Foundation Trust,11/12/2020,OTHER MEDICAL SUPPLIES,Surgery,NHS LOGISTICS,1121148635,32.59,
Department of Health,Salisbury NHS Foundation Trust,11/12/2020,MEDSURGCONS-OTHER,Surgery,NHS LOGISTICS,1121148635,114.4,
Department of Health,Salisbury NHS Foundation Trust,11/12/2020,MEDSURGCONS-OTHER,Medicine,NHS LOGISTICS,1121148635,2160,
Department of Health,Salisbury NHS Foundation Trust,11/12/2020,TISSUES HAND TOWELS & TOILET PAPER,Surgery,NHS LOGISTICS,1121148635,5.92,
Department of Health,Salisbury NHS Foundation Trust,11/12/2020,OTHER MEDICAL SUPPLIES,Medicine,NHS LOGISTICS,1121148635,9.28,
Department of Health,Salisbury NHS Foundation Trust,11/12/2020,PATIENTS INCONTINENCE,Medicine,NHS LOGISTICS,1121148635,6.56,
Department of Health,Salisbury NHS Foundation Trust,11/12/2020,DRESSINGS - PRE STERILE,Medicine,NHS LOGISTICS,1121148635,0.68,
Department of Health,Salisbury NHS Foundation Trust,11/12/2020,ELECTRICAL EQUIPMENT,Medicine,NHS LOGISTICS,1121148635,0.85,
Department of Health,Salisbury NHS Foundation Trust,11/12/2020,M & S EQUIPELECTEQUIPINST - OTHER,Medicine,NHS LOGISTICS,1121148635,6.76,
Department of Health,Salisbury NHS Foundation Trust,11/12/2020,PATIENTS BEDWEAR UNISEX,Medicine,NHS LOGISTICS,1121148635,33.72,
Department of Health,Salisbury NHS Foundation Trust,11/12/2020,ELECTRICAL EQUIPMENT,Medicine,NHS LOGISTICS,1121148635,2.96,
Department of Health,Salisbury NHS Foundation Trust,11/12/2020,ELECTRICAL EQUIPMENT,Medicine,NHS LOGISTICS,1121148635,9.8,
Department of Health,Salisbury NHS Foundation Trust,11/12/2020,TISSUES HAND TOWELS & TOILET PAPER,Medicine,NHS LOGISTICS,1121148635,1.22,
Department of Health,Salisbury NHS Foundation Trust,11/12/2020,MEDSURGCONS-OTHER,Medicine,NHS LOGISTICS,1121148635,4.64,
Department of Health,Salisbury NHS Foundation Trust,11/12/2020,CLEANING MATERIAL PRODUCTS SUNDRIES,Medicine,NHS LOGISTICS,1121148635,6.6,
Department of Health,Salisbury NHS Foundation Trust,11/12/2020,DRESSINGS - PRE STERILE,Medicine,NHS LOGISTICS,1121148635,11.9,
Department of Health,Salisbury NHS Foundation Trust,11/12/2020,MEDSURGCONS-OTHER,Medicine,NHS LOGISTICS,1121148635,22.4,
Department of Health,Salisbury NHS Foundation Trust,11/12/2020,MEDSURGCONS-OTHER,Medicine,NHS LOGISTICS,1121148635,14.29,
Department of Health,Salisbury NHS Foundation Trust,11/12/2020,M & S EQUIPELECTEQUIPINST - OTHER,Medicine,NHS LOGISTICS,1121148635,0.68,
Department of Health,Salisbury NHS Foundation Trust,11/12/2020,M & S EQUIPELECTEQUIPINST - OTHER,Medicine,NHS LOGISTICS,1121148635,8.09,
Department of Health,Salisbury NHS Foundation Trust,11/12/2020,MEDSURGCONS-OTHER,Medicine,NHS LOGISTICS,1121148635,6.76,
Department of Health,Salisbury NHS Foundation Trust,11/12/2020,MEDSURGCONS-OTHER,Medicine,NHS LOGISTICS,1121148635,5.43,
Department of Health,Salisbury NHS Foundation Trust,11/12/2020,MEDSURGCONS-OTHER,Medicine,NHS LOGISTICS,1121148635,2.39,
Department of Health,Salisbury NHS Foundation Trust,11/12/2020,DRESSINGS - PRE STERILE,Medicine,NHS LOGISTICS,1121148635,2.13,
Department of Health,Salisbury NHS Foundation Trust,11/12/2020,ANAESTHETIC EQUIPMENT ACCESSORIES,Medicine,NHS LOGISTICS,1121148635,0.96,
Department of Health,Salisbury NHS Foundation Trust,11/12/2020,DRESSINGS  -  PROCEDURE PACKS,Medicine,NHS LOGISTICS,1121148635,3.24,
Department of Health,Salisbury NHS Foundation Trust,11/12/2020,DRESSINGS  -  PROCEDURE PACKS,Medicine,NHS LOGISTICS,1121148635,14.7,
Department of Health,Salisbury NHS Foundation Trust,11/12/2020,DRESSINGS  -  PROCEDURE PACKS,Medicine,NHS LOGISTICS,1121148635,1.75,
Department of Health,Salisbury NHS Foundation Trust,11/12/2020,OTHER MEDICAL SUPPLIES,Medicine,NHS LOGISTICS,1121148635,3,
Department of Health,Salisbury NHS Foundation Trust,11/12/2020,MEDSURGCONS-OTHER,Medicine,NHS LOGISTICS,1121148635,10,
Department of Health,Salisbury NHS Foundation Trust,11/12/2020,MEDSURGCONS-OTHER,Medicine,NHS LOGISTICS,1121148635,7.65,
Department of Health,Salisbury NHS Foundation Trust,11/12/2020,OTHER MEDICAL SUPPLIES,Medicine,NHS LOGISTICS,1121148635,7.12,
Department of Health,Salisbury NHS Foundation Trust,11/12/2020,OTHER MEDICAL SUPPLIES,Medicine,NHS LOGISTICS,1121148635,1.34,
Department of Health,Salisbury NHS Foundation Trust,11/12/2020,SURGICAL INSTRUMENTS - DISPOSABLE,Medicine,NHS LOGISTICS,1121148635,2.25,
Department of Health,Salisbury NHS Foundation Trust,11/12/2020,PATIENTS INCONTINENCE,Medicine,NHS LOGISTICS,1121148635,8.42,
Department of Health,Salisbury NHS Foundation Trust,11/12/2020,TOILETRIES PERSONAL HYGIENE PRODUCT,Medicine,NHS LOGISTICS,1121148635,3.26,
Department of Health,Salisbury NHS Foundation Trust,11/12/2020,TOILETRIES PERSONAL HYGIENE PRODUCT,Medicine,NHS LOGISTICS,1121148635,2.88,
Department of Health,Salisbury NHS Foundation Trust,11/12/2020,DRESSINGS - PRE STERILE,Medicine,NHS LOGISTICS,1121148635,2.3,
Department of Health,Salisbury NHS Foundation Trust,11/12/2020,DRESSINGS - PRE STERILE,Medicine,NHS LOGISTICS,1121148635,2.3,
Department of Health,Salisbury NHS Foundation Trust,11/12/2020,DRESSINGS - PRE STERILE,Medicine,NHS LOGISTICS,1121148635,2.04,
Department of Health,Salisbury NHS Foundation Trust,11/12/2020,MEDSURGCONS-OTHER,Medicine,NHS LOGISTICS,1121148635,3.53,
Department of Health,Salisbury NHS Foundation Trust,11/12/2020,MEDSURGCONS-OTHER,Medicine,NHS LOGISTICS,1121148635,11.2,
Department of Health,Salisbury NHS Foundation Trust,11/12/2020,TISSUES HAND TOWELS & TOILET PAPER,Medicine,NHS LOGISTICS,1121148635,1.12,
Department of Health,Salisbury NHS Foundation Trust,11/12/2020,M & S EQUIPELECTEQUIPINST - OTHER,Medicine,NHS LOGISTICS,1121148635,1.42,
Department of Health,Salisbury NHS Foundation Trust,11/12/2020,MEDSURGCONS-OTHER,Medicine,NHS LOGISTICS,1121148635,1.55,
Department of Health,Salisbury NHS Foundation Trust,11/12/2020,NON DISPOSABLE BED LINEN,Medicine,NHS LOGISTICS,1121148635,2.82,
Department of Health,Salisbury NHS Foundation Trust,11/12/2020,PATIENT APPLIANCES,Medicine,NHS LOGISTICS,1121148635,15,
Department of Health,Salisbury NHS Foundation Trust,11/12/2020,MEDSURGCONS-OTHER,Medicine,NHS LOGISTICS,1121148635,0.1,
Department of Health,Salisbury NHS Foundation Trust,11/12/2020,MEDSURGCONS-OTHER,Medicine,NHS LOGISTICS,1121148635,0.08,
Department of Health,Salisbury NHS Foundation Trust,11/12/2020,TOILETRIES PERSONAL HYGIENE PRODUCT,Medicine,NHS LOGISTICS,1121148635,4.32,
Department of Health,Salisbury NHS Foundation Trust,11/12/2020,TOILETRIES PERSONAL HYGIENE PRODUCT,Medicine,NHS LOGISTICS,1121148635,6.24,
Department of Health,Salisbury NHS Foundation Trust,11/12/2020,DISPOSABLE THEATRE DRAPES WIPES,Medicine,NHS LOGISTICS,1121148635,3.74,
Department of Health,Salisbury NHS Foundation Trust,11/12/2020,DISPOSABLE THEATRE DRAPES WIPES,Medicine,NHS LOGISTICS,1121148635,19.51,
Department of Health,Salisbury NHS Foundation Trust,11/12/2020,DRESSINGS  -  PROCEDURE PACKS,Clinical Support,NHS LOGISTICS,1121148635,3.5,
Department of Health,Salisbury NHS Foundation Trust,11/12/2020,PATIENTS BABY WEAR,Medicine,NHS LOGISTICS,1121148635,26.64,
Department of Health,Salisbury NHS Foundation Trust,11/12/2020,MEDSURGCONS-OTHER,Medicine,NHS LOGISTICS,1121148635,6.76,
Department of Health,Salisbury NHS Foundation Trust,11/12/2020,MEDSURGCONS-OTHER,Medicine,NHS LOGISTICS,1121148635,3.53,
Department of Health,Salisbury NHS Foundation Trust,11/12/2020,NON DISPOSABLE BED LINEN,Medicine,NHS LOGISTICS,1121148635,11.28,
Department of Health,Salisbury NHS Foundation Trust,11/12/2020,DISPOSABLE THEATRE DRAPES WIPES,Medicine,NHS LOGISTICS,1121148635,3.74,
Department of Health,Salisbury NHS Foundation Trust,11/12/2020,LAB EQUIP-LABORATORY APPARATUS,Clinical Support,NHS LOGISTICS,1121148635,266.2,
Department of Health,Salisbury NHS Foundation Trust,11/12/2020,M & S EQUIPELECTEQUIPINST - OTHER,Medicine,NHS LOGISTICS,1121148635,9.64,
Department of Health,Salisbury NHS Foundation Trust,11/12/2020,MEDSURGCONS-OTHER,Medicine,NHS LOGISTICS,1121148635,140,
Department of Health,Salisbury NHS Foundation Trust,11/12/2020,MEDSURGCONS-OTHER,Medicine,NHS LOGISTICS,1121148635,47.5,
Department of Health,Salisbury NHS Foundation Trust,11/12/2020,MEDSURGCONS-OTHER,Medicine,NHS LOGISTICS,1121148635,67,
Department of Health,Salisbury NHS Foundation Trust,11/12/2020,MEDSURGCONS-OTHER,Medicine,NHS LOGISTICS,1121148635,325,
Department of Health,Salisbury NHS Foundation Trust,11/12/2020,MEDSURGCONS-OTHER,Medicine,NHS LOGISTICS,1121148635,200,
Department of Health,Salisbury NHS Foundation Trust,11/12/2020,MEDSURGCONS-OTHER,Medicine,NHS LOGISTICS,1121148635,25,
Department of Health,Salisbury NHS Foundation Trust,11/12/2020,MEDSURGCONS-OTHER,Medicine,NHS LOGISTICS,1121148635,895,
Department of Health,Salisbury NHS Foundation Trust,11/12/2020,MEDSURGCONS-OTHER,Medicine,NHS LOGISTICS,1121148635,50,
Department of Health,Salisbury NHS Foundation Trust,11/12/2020,MEDSURGCONS-OTHER,Medicine,NHS LOGISTICS,1121148635,25,
Department of Health,Salisbury NHS Foundation Trust,11/12/2020,MEDSURGCONS-OTHER,Medicine,NHS LOGISTICS,1121148635,25,
Department of Health,Salisbury NHS Foundation Trust,11/12/2020,MEDSURGCONS-OTHER,Medicine,NHS LOGISTICS,1121148635,25,
Department of Health,Salisbury NHS Foundation Trust,11/12/2020,MEDSURGCONS-OTHER,Medicine,NHS LOGISTICS,1121148635,248,
Department of Health,Salisbury NHS Foundation Trust,11/12/2020,MEDSURGCONS-OTHER,Medicine,NHS LOGISTICS,1121148635,248,
Department of Health,Salisbury NHS Foundation Trust,11/12/2020,MEDSURGCONS-OTHER,Medicine,NHS LOGISTICS,1121148635,496,
Department of Health,Salisbury NHS Foundation Trust,11/12/2020,MEDSURGCONS-OTHER,Medicine,NHS LOGISTICS,1121148635,185,
Department of Health,Salisbury NHS Foundation Trust,11/12/2020,MEDSURGCONS-OTHER,Medicine,NHS LOGISTICS,1121148635,320,
Department of Health,Salisbury NHS Foundation Trust,11/12/2020,MEDSURGCONS-OTHER,Medicine,NHS LOGISTICS,1121148635,70,
Department of Health,Salisbury NHS Foundation Trust,11/12/2020,MEDSURGCONS-OTHER,Medicine,NHS LOGISTICS,1121148635,42,
Department of Health,Salisbury NHS Foundation Trust,11/12/2020,MEDSURGCONS-OTHER,Medicine,NHS LOGISTICS,1121148635,42,
Department of Health,Salisbury NHS Foundation Trust,11/12/2020,MEDSURGCONS-OTHER,Medicine,NHS LOGISTICS,1121148635,18,
Department of Health,Salisbury NHS Foundation Trust,11/12/2020,DRESSINGS  -  PROCEDURE PACKS,Clinical Support,NHS LOGISTICS,1121148635,7.77,
Department of Health,Salisbury NHS Foundation Trust,11/12/2020,ELECTRICAL EQUIPMENT,Surgery,NHS LOGISTICS,1121148635,2.96,
Department of Health,Salisbury NHS Foundation Trust,11/12/2020,TISSUES HAND TOWELS & TOILET PAPER,Surgery,NHS LOGISTICS,1121148635,5.33,
Department of Health,Salisbury NHS Foundation Trust,11/12/2020,DRESSINGS  -  PROCEDURE PACKS,Surgery,NHS LOGISTICS,1121148635,0.3,
Department of Health,Salisbury NHS Foundation Trust,11/12/2020,OTHER MEDICAL SUPPLIES,Surgery,NHS LOGISTICS,1121148635,6.68,
Department of Health,Salisbury NHS Foundation Trust,11/12/2020,OTHER MEDICAL SUPPLIES,Surgery,NHS LOGISTICS,1121148635,6.63,
Department of Health,Salisbury NHS Foundation Trust,11/12/2020,MEDSURGCONS-OTHER,Surgery,NHS LOGISTICS,1121148635,39.38,
Department of Health,Salisbury NHS Foundation Trust,11/12/2020,MEDSURGCONS-OTHER,Surgery,NHS LOGISTICS,1121148635,78.76,
Department of Health,Salisbury NHS Foundation Trust,11/12/2020,DRESSINGS - PRE STERILE,Surgery,NHS LOGISTICS,1121148635,6.34,
Department of Health,Salisbury NHS Foundation Trust,11/12/2020,TISSUES HAND TOWELS & TOILET PAPER,Surgery,NHS LOGISTICS,1121148635,0.81,
Department of Health,Salisbury NHS Foundation Trust,11/12/2020,DISPOSABLE THEATRE DRAPES WIPES,Surgery,NHS LOGISTICS,1121148635,19.51,
Department of Health,Salisbury NHS Foundation Trust,11/12/2020,OTHER MEDICAL SUPPLIES,Musculo-Skeletal,NHS LOGISTICS,1121148635,23.2,
Department of Health,Salisbury NHS Foundation Trust,11/12/2020,DRESSINGS - PRE STERILE,Musculo-Skeletal,NHS LOGISTICS,1121148635,1.46,
Department of Health,Salisbury NHS Foundation Trust,11/12/2020,DRESSINGS - PRE STERILE,Musculo-Skeletal,NHS LOGISTICS,1121148635,3.82,
Department of Health,Salisbury NHS Foundation Trust,11/12/2020,DRESSINGS - PRE STERILE,Musculo-Skeletal,NHS LOGISTICS,1121148635,3.39,
Department of Health,Salisbury NHS Foundation Trust,11/12/2020,ELECTRICAL EQUIPMENT,Musculo-Skeletal,NHS LOGISTICS,1121148635,1.7,
Department of Health,Salisbury NHS Foundation Trust,11/12/2020,M & S EQUIPELECTEQUIPINST - OTHER,Musculo-Skeletal,NHS LOGISTICS,1121148635,12.52,
Department of Health,Salisbury NHS Foundation Trust,11/12/2020,M & S EQUIPELECTEQUIPINST - OTHER,Musculo-Skeletal,NHS LOGISTICS,1121148635,6.76,
Department of Health,Salisbury NHS Foundation Trust,11/12/2020,DISPOSABLE THEATRE DRAPES WIPES,Musculo-Skeletal,NHS LOGISTICS,1121148635,3.46,
Department of Health,Salisbury NHS Foundation Trust,11/12/2020,DRESSINGS - PRE STERILE,Musculo-Skeletal,NHS LOGISTICS,1121148635,11.72,
Department of Health,Salisbury NHS Foundation Trust,11/12/2020,DRESSINGS - PRE STERILE,Musculo-Skeletal,NHS LOGISTICS,1121148635,3.34,
Department of Health,Salisbury NHS Foundation Trust,11/12/2020,TISSUES HAND TOWELS & TOILET PAPER,Musculo-Skeletal,NHS LOGISTICS,1121148635,1.77,
Department of Health,Salisbury NHS Foundation Trust,11/12/2020,PATIENTS INCONTINENCE,Musculo-Skeletal,NHS LOGISTICS,1121148635,6.87,
Department of Health,Salisbury NHS Foundation Trust,11/12/2020,MEDSURGCONS-OTHER,Musculo-Skeletal,NHS LOGISTICS,1121148635,3.38,
Department of Health,Salisbury NHS Foundation Trust,11/12/2020,MEDSURGCONS-OTHER,Musculo-Skeletal,NHS LOGISTICS,1121148635,2.39,
Department of Health,Salisbury NHS Foundation Trust,11/12/2020,DRESSINGS - PRE STERILE,Musculo-Skeletal,NHS LOGISTICS,1121148635,2.13,
Department of Health,Salisbury NHS Foundation Trust,11/12/2020,OTHER MEDICAL SUPPLIES,Musculo-Skeletal,NHS LOGISTICS,1121148635,14.24,
Department of Health,Salisbury NHS Foundation Trust,11/12/2020,OTHER MEDICAL SUPPLIES,Musculo-Skeletal,NHS LOGISTICS,1121148635,2.68,
Department of Health,Salisbury NHS Foundation Trust,11/12/2020,SURGICAL INSTRUMENTS - DISPOSABLE,Musculo-Skeletal,NHS LOGISTICS,1121148635,4.5,
Department of Health,Salisbury NHS Foundation Trust,11/12/2020,PATIENTS INCONTINENCE,Musculo-Skeletal,NHS LOGISTICS,1121148635,44.9,
Department of Health,Salisbury NHS Foundation Trust,11/12/2020,DRUGS,Musculo-Skeletal,NHS LOGISTICS,1121148635,8.02,
Department of Health,Salisbury NHS Foundation Trust,11/12/2020,DRESSINGS - PRE STERILE,Musculo-Skeletal,NHS LOGISTICS,1121148635,4.08,
Department of Health,Salisbury NHS Foundation Trust,11/12/2020,MEDSURGCONS-OTHER,Musculo-Skeletal,NHS LOGISTICS,1121148635,3.53,
Department of Health,Salisbury NHS Foundation Trust,11/12/2020,MEDSURGCONS-OTHER,Musculo-Skeletal,NHS LOGISTICS,1121148635,11.2,
Department of Health,Salisbury NHS Foundation Trust,11/12/2020,TISSUES HAND TOWELS & TOILET PAPER,Musculo-Skeletal,NHS LOGISTICS,1121148635,0.56,
Department of Health,Salisbury NHS Foundation Trust,11/12/2020,NON DISPOSABLE BED LINEN,Musculo-Skeletal,NHS LOGISTICS,1121148635,22.56,
Department of Health,Salisbury NHS Foundation Trust,11/12/2020,TOILETRIES PERSONAL HYGIENE PRODUCT,Musculo-Skeletal,NHS LOGISTICS,1121148635,23,
Department of Health,Salisbury NHS Foundation Trust,11/12/2020,DISPOSABLE THEATRE DRAPES WIPES,Musculo-Skeletal,NHS LOGISTICS,1121148635,39.02,
Department of Health,Salisbury NHS Foundation Trust,11/12/2020,DRESSINGS - PRE STERILE,Musculo-Skeletal,NHS LOGISTICS,1121148635,118.8,
Department of Health,Salisbury NHS Foundation Trust,11/12/2020,OTHER MEDICAL SUPPLIES,Medicine,NHS LOGISTICS,1121148635,3.8,
Department of Health,Salisbury NHS Foundation Trust,11/12/2020,OTHER MEDICAL SUPPLIES,Medicine,NHS LOGISTICS,1121148635,23.2,
Department of Health,Salisbury NHS Foundation Trust,11/12/2020,DRESSINGS - PRE STERILE,Medicine,NHS LOGISTICS,1121148635,11.64,
Department of Health,Salisbury NHS Foundation Trust,11/12/2020,DRESSINGS - PRE STERILE,Medicine,NHS LOGISTICS,1121148635,3.82,
Department of Health,Salisbury NHS Foundation Trust,11/12/2020,ELECTRICAL EQUIPMENT,Medicine,NHS LOGISTICS,1121148635,1.48,
Department of Health,Salisbury NHS Foundation Trust,11/12/2020,TOILETRIES PERSONAL HYGIENE PRODUCT,Medicine,NHS LOGISTICS,1121148635,6.43,
Department of Health,Salisbury NHS Foundation Trust,11/12/2020,M & S EQUIPELECTEQUIPINST - OTHER,Medicine,NHS LOGISTICS,1121148635,1.7,
Department of Health,Salisbury NHS Foundation Trust,11/12/2020,TISSUES HAND TOWELS & TOILET PAPER,Medicine,NHS LOGISTICS,1121148635,2.96,
Department of Health,Salisbury NHS Foundation Trust,11/12/2020,MED SURG EQUIP REP MAINT CLEANING,Medicine,NHS LOGISTICS,1121148635,43.05,
Department of Health,Salisbury NHS Foundation Trust,11/12/2020,PATIENTS INCONTINENCE,Medicine,NHS LOGISTICS,1121148635,4.72,
Department of Health,Salisbury NHS Foundation Trust,11/12/2020,MEDSURGCONS-OTHER,Medicine,NHS LOGISTICS,1121148635,3.38,
Department of Health,Salisbury NHS Foundation Trust,11/12/2020,MEDSURGCONS-OTHER,Medicine,NHS LOGISTICS,1121148635,12.76,
Department of Health,Salisbury NHS Foundation Trust,11/12/2020,MEDSURGCONS-OTHER,Medicine,NHS LOGISTICS,1121148635,5.43,
Department of Health,Salisbury NHS Foundation Trust,11/12/2020,DRESSINGS  -  PROCEDURE PACKS,Medicine,NHS LOGISTICS,1121148635,3.24,
Department of Health,Salisbury NHS Foundation Trust,11/12/2020,TOILETRIES PERSONAL HYGIENE PRODUCT,Medicine,NHS LOGISTICS,1121148635,1.77,
Department of Health,Salisbury NHS Foundation Trust,11/12/2020,MEDSURGCONS-OTHER,Medicine,NHS LOGISTICS,1121148635,10,
Department of Health,Salisbury NHS Foundation Trust,11/12/2020,MEDSURGCONS-OTHER,Medicine,NHS LOGISTICS,1121148635,5.1,
Department of Health,Salisbury NHS Foundation Trust,11/12/2020,OTHER MEDICAL SUPPLIES,Medicine,NHS LOGISTICS,1121148635,1.34,
Department of Health,Salisbury NHS Foundation Trust,11/12/2020,OTHER MEDICAL SUPPLIES,Medicine,NHS LOGISTICS,1121148635,3.58,
Department of Health,Salisbury NHS Foundation Trust,11/12/2020,SURGICAL INSTRUMENTS - DISPOSABLE,Medicine,NHS LOGISTICS,1121148635,4.5,
Department of Health,Salisbury NHS Foundation Trust,11/12/2020,PATIENTS INCONTINENCE,Medicine,NHS LOGISTICS,1121148635,5.61,
Department of Health,Salisbury NHS Foundation Trust,11/12/2020,PATIENTS INCONTINENCE,Medicine,NHS LOGISTICS,1121148635,2.25,
Department of Health,Salisbury NHS Foundation Trust,11/12/2020,TOILETRIES PERSONAL HYGIENE PRODUCT,Medicine,NHS LOGISTICS,1121148635,2.88,
Department of Health,Salisbury NHS Foundation Trust,11/12/2020,DRESSINGS - PRE STERILE,Medicine,NHS LOGISTICS,1121148635,2.04,
Department of Health,Salisbury NHS Foundation Trust,11/12/2020,MEDSURGCONS-OTHER,Medicine,NHS LOGISTICS,1121148635,6.16,
Department of Health,Salisbury NHS Foundation Trust,11/12/2020,MEDSURGCONS-OTHER,Medicine,NHS LOGISTICS,1121148635,5.6,
Department of Health,Salisbury NHS Foundation Trust,11/12/2020,TISSUES HAND TOWELS & TOILET PAPER,Medicine,NHS LOGISTICS,1121148635,1.12,
Department of Health,Salisbury NHS Foundation Trust,11/12/2020,MEDSURGCONS-OTHER,Medicine,NHS LOGISTICS,1121148635,0.78,
Department of Health,Salisbury NHS Foundation Trust,11/12/2020,TUBES,Medicine,NHS LOGISTICS,1121148635,4.02,
Department of Health,Salisbury NHS Foundation Trust,11/12/2020,DRESSINGS - PRE STERILE,Medicine,NHS LOGISTICS,1121148635,3.83,
Department of Health,Salisbury NHS Foundation Trust,11/12/2020,NON DISPOSABLE BED LINEN,Medicine,NHS LOGISTICS,1121148635,5.64,
Department of Health,Salisbury NHS Foundation Trust,11/12/2020,MEDSURGCONS-OTHER,Medicine,NHS LOGISTICS,1121148635,3,
Department of Health,Salisbury NHS Foundation Trust,11/12/2020,DISPOSABLE THEATRE DRAPES WIPES,Medicine,NHS LOGISTICS,1121148635,19.51,
Department of Health,Salisbury NHS Foundation Trust,11/12/2020,BAGS SACKS - OTHER,Clinical Support,NHS LOGISTICS,1121148635,3.2,
Department of Health,Salisbury NHS Foundation Trust,11/12/2020,PATIENTS BEDWEAR UNISEX,Clinical Support,NHS LOGISTICS,1121148635,50.58,
Department of Health,Salisbury NHS Foundation Trust,11/12/2020,TISSUES HAND TOWELS & TOILET PAPER,Clinical Support,NHS LOGISTICS,1121148635,4.88,
Department of Health,Salisbury NHS Foundation Trust,11/12/2020,DRESSINGS - PRE STERILE,Clinical Support,NHS LOGISTICS,1121148635,11.9,
Department of Health,Salisbury NHS Foundation Trust,11/12/2020,MEDSURGCONS-OTHER,Clinical Support,NHS LOGISTICS,1121148635,25.17,
Department of Health,Salisbury NHS Foundation Trust,11/12/2020,MEDSURGCONS-OTHER,Clinical Support,NHS LOGISTICS,1121148635,2.39,
Department of Health,Salisbury NHS Foundation Trust,11/12/2020,MEDSURGCONS-OTHER,Clinical Support,NHS LOGISTICS,1121148635,67.5,
Department of Health,Salisbury NHS Foundation Trust,11/12/2020,DRESSINGS - PRE STERILE,Clinical Support,NHS LOGISTICS,1121148635,8.8,
Department of Health,Salisbury NHS Foundation Trust,11/12/2020,TUBES,Clinical Support,NHS LOGISTICS,1121148635,4.02,
Department of Health,Salisbury NHS Foundation Trust,11/12/2020,TUBES,Clinical Support,NHS LOGISTICS,1121148635,3,
Department of Health,Salisbury NHS Foundation Trust,11/12/2020,X-RAY FILM PROCESSING CHEMICALS,Clinical Support,NHS LOGISTICS,1121148635,189,
Department of Health,Salisbury NHS Foundation Trust,11/12/2020,NON DISPOSABLE BED LINEN,Clinical Support,NHS LOGISTICS,1121148635,5.64,
Department of Health,Salisbury NHS Foundation Trust,11/12/2020,DISPOSABLE THEATRE DRAPES WIPES,Clinical Support,NHS LOGISTICS,1121148635,19.51,
Department of Health,Salisbury NHS Foundation Trust,11/12/2020,M & S EQUIPELECTEQUIPINST - OTHER,Clinical Support,NHS LOGISTICS,1121148635,220,
Department of Health,Salisbury NHS Foundation Trust,11/12/2020,M & S EQUIPELECTEQUIPINST - OTHER,Clinical Support,NHS LOGISTICS,1121148635,327.98,
Department of Health,Salisbury NHS Foundation Trust,11/12/2020,M & S EQUIPELECTEQUIPINST - OTHER,Clinical Support,NHS LOGISTICS,1121148635,80,
Department of Health,Salisbury NHS Foundation Trust,11/12/2020,M & S EQUIPELECTEQUIPINST - OTHER,Clinical Support,NHS LOGISTICS,1121148635,173.4,
Department of Health,Salisbury NHS Foundation Trust,11/12/2020,M & S EQUIPELECTEQUIPINST - OTHER,Clinical Support,NHS LOGISTICS,1121148635,189,
Department of Health,Salisbury NHS Foundation Trust,11/12/2020,M & S EQUIPELECTEQUIPINST - OTHER,Clinical Support,NHS LOGISTICS,1121148635,343,
Department of Health,Salisbury NHS Foundation Trust,11/12/2020,OTHER MEDICAL SUPPLIES,Medicine,NHS LOGISTICS,1121148635,194.4,
Department of Health,Salisbury NHS Foundation Trust,11/12/2020,OTHER MEDICAL SUPPLIES,Medicine,NHS LOGISTICS,1121148635,13.92,
Department of Health,Salisbury NHS Foundation Trust,11/12/2020,TISSUES HAND TOWELS & TOILET PAPER,Medicine,NHS LOGISTICS,1121148635,1.22,
Department of Health,Salisbury NHS Foundation Trust,11/12/2020,DRESSINGS - PRE STERILE,Medicine,NHS LOGISTICS,1121148635,1,
Department of Health,Salisbury NHS Foundation Trust,11/12/2020,TISSUES HAND TOWELS & TOILET PAPER,Medicine,NHS LOGISTICS,1121148635,0.81,
Department of Health,Salisbury NHS Foundation Trust,11/12/2020,MEDSURGCONS-OTHER,Medicine,NHS LOGISTICS,1121148635,3.38,
Department of Health,Salisbury NHS Foundation Trust,11/12/2020,DRESSINGS - PRE STERILE,Medicine,NHS LOGISTICS,1121148635,0.71,
Department of Health,Salisbury NHS Foundation Trust,11/12/2020,DRESSINGS  -  PROCEDURE PACKS,Medicine,NHS LOGISTICS,1121148635,14.7,
Department of Health,Salisbury NHS Foundation Trust,11/12/2020,DRESSINGS  -  PROCEDURE PACKS,Medicine,NHS LOGISTICS,1121148635,2.8,
Department of Health,Salisbury NHS Foundation Trust,11/12/2020,OTHER MEDICAL SUPPLIES,Medicine,NHS LOGISTICS,1121148635,7.12,
Department of Health,Salisbury NHS Foundation Trust,11/12/2020,OTHER MEDICAL SUPPLIES,Medicine,NHS LOGISTICS,1121148635,2.68,
Department of Health,Salisbury NHS Foundation Trust,11/12/2020,SURGICAL INSTRUMENTS - DISPOSABLE,Medicine,NHS LOGISTICS,1121148635,2.25,
Department of Health,Salisbury NHS Foundation Trust,11/12/2020,MEDSURGCONS-OTHER,Medicine,NHS LOGISTICS,1121148635,0.78,
Department of Health,Salisbury NHS Foundation Trust,11/12/2020,NON DISPOSABLE BED LINEN,Medicine,NHS LOGISTICS,1121148635,2.82,
Department of Health,Salisbury NHS Foundation Trust,11/12/2020,TOILETRIES PERSONAL HYGIENE PRODUCT,Medicine,NHS LOGISTICS,1121148635,2.16,
Department of Health,Salisbury NHS Foundation Trust,11/12/2020,DISPOSABLE THEATRE DRAPES WIPES,Medicine,NHS LOGISTICS,1121148635,3.74,
Department of Health,Salisbury NHS Foundation Trust,11/12/2020,DISPOSABLE THEATRE DRAPES WIPES,Medicine,NHS LOGISTICS,1121148635,19.51,
Department of Health,Salisbury NHS Foundation Trust,11/12/2020,OTHER MEDICAL SUPPLIES,Musculo-Skeletal,NHS LOGISTICS,1121148635,41.4,
Department of Health,Salisbury NHS Foundation Trust,11/12/2020,PATIENTS INCONTINENCE,Musculo-Skeletal,NHS LOGISTICS,1121148635,13.12,
Department of Health,Salisbury NHS Foundation Trust,11/12/2020,DRESSINGS - PRE STERILE,Musculo-Skeletal,NHS LOGISTICS,1121148635,11.64,
Department of Health,Salisbury NHS Foundation Trust,11/12/2020,DRESSINGS - PRE STERILE,Musculo-Skeletal,NHS LOGISTICS,1121148635,3.82,
Department of Health,Salisbury NHS Foundation Trust,11/12/2020,DRESSINGS - PRE STERILE,Musculo-Skeletal,NHS LOGISTICS,1121148635,6.3,
Department of Health,Salisbury NHS Foundation Trust,11/12/2020,DRESSINGS - PRE STERILE,Musculo-Skeletal,NHS LOGISTICS,1121148635,8.4,
Department of Health,Salisbury NHS Foundation Trust,11/12/2020,DRESSINGS - PRE STERILE,Musculo-Skeletal,NHS LOGISTICS,1121148635,2.29,
Department of Health,Salisbury NHS Foundation Trust,11/12/2020,TISSUES HAND TOWELS & TOILET PAPER,Musculo-Skeletal,NHS LOGISTICS,1121148635,0.3,
Department of Health,Salisbury NHS Foundation Trust,11/12/2020,MEDSURGCONS-OTHER,Musculo-Skeletal,NHS LOGISTICS,1121148635,25.4,
Department of Health,Salisbury NHS Foundation Trust,11/12/2020,MEDSURGCONS-OTHER,Musculo-Skeletal,NHS LOGISTICS,1121148635,6.76,
Department of Health,Salisbury NHS Foundation Trust,11/12/2020,DRESSINGS - PRE STERILE,Musculo-Skeletal,NHS LOGISTICS,1121148635,2.13,
Department of Health,Salisbury NHS Foundation Trust,11/12/2020,DRESSINGS  -  PROCEDURE PACKS,Musculo-Skeletal,NHS LOGISTICS,1121148635,29.4,
Department of Health,Salisbury NHS Foundation Trust,11/12/2020,DRESSINGS  -  PROCEDURE PACKS,Musculo-Skeletal,NHS LOGISTICS,1121148635,1.05,
Department of Health,Salisbury NHS Foundation Trust,11/12/2020,SURGICAL INSTRUMENTS - DISPOSABLE,Musculo-Skeletal,NHS LOGISTICS,1121148635,27,
Department of Health,Salisbury NHS Foundation Trust,11/12/2020,DRESSINGS - PRE STERILE,Musculo-Skeletal,NHS LOGISTICS,1121148635,49.1,
Department of Health,Salisbury NHS Foundation Trust,11/12/2020,DRESSINGS - PRE STERILE,Musculo-Skeletal,NHS LOGISTICS,1121148635,91.1,
Department of Health,Salisbury NHS Foundation Trust,11/12/2020,DRESSINGS - PRE STERILE,Musculo-Skeletal,NHS LOGISTICS,1121148635,2.04,
Department of Health,Salisbury NHS Foundation Trust,11/12/2020,DRESSINGS - PRE STERILE,Musculo-Skeletal,NHS LOGISTICS,1121148635,6.88,
Department of Health,Salisbury NHS Foundation Trust,11/12/2020,DRESSINGS - PRE STERILE,Musculo-Skeletal,NHS LOGISTICS,1121148635,14.2,
Department of Health,Salisbury NHS Foundation Trust,11/12/2020,MEDSURGCONS-OTHER,Musculo-Skeletal,NHS LOGISTICS,1121148635,1.55,
Department of Health,Salisbury NHS Foundation Trust,11/12/2020,NON DISPOSABLE BED LINEN,Musculo-Skeletal,NHS LOGISTICS,1121148635,5.64,
Department of Health,Salisbury NHS Foundation Trust,11/12/2020,PATIENT APPLIANCES,Musculo-Skeletal,NHS LOGISTICS,1121148635,6,
Department of Health,Salisbury NHS Foundation Trust,11/12/2020,DISPOSABLE THEATRE DRAPES WIPES,Musculo-Skeletal,NHS LOGISTICS,1121148635,3.74,
Department of Health,Salisbury NHS Foundation Trust,11/12/2020,SOFT FURNISHINGS,Musculo-Skeletal,NHS LOGISTICS,1121148635,53.1,
Department of Health,Salisbury NHS Foundation Trust,11/12/2020,RENAL CONSUMEABLES,Musculo-Skeletal,NHS LOGISTICS,1121148635,39.53,
Department of Health,Salisbury NHS Foundation Trust,11/12/2020,OTHER MEDICAL SUPPLIES,Medicine,NHS LOGISTICS,1121148635,41.4,
Department of Health,Salisbury NHS Foundation Trust,11/12/2020,PATIENTS INCONTINENCE,Medicine,NHS LOGISTICS,1121148635,6.56,
Department of Health,Salisbury NHS Foundation Trust,11/12/2020,DRESSINGS - PRE STERILE,Medicine,NHS LOGISTICS,1121148635,0.68,
Department of Health,Salisbury NHS Foundation Trust,11/12/2020,DRESSINGS - PRE STERILE,Medicine,NHS LOGISTICS,1121148635,1.18,
Department of Health,Salisbury NHS Foundation Trust,11/12/2020,DRESSINGS - PRE STERILE,Medicine,NHS LOGISTICS,1121148635,3.82,
Department of Health,Salisbury NHS Foundation Trust,11/12/2020,M & S EQUIPELECTEQUIPINST - OTHER,Medicine,NHS LOGISTICS,1121148635,6.76,
Department of Health,Salisbury NHS Foundation Trust,11/12/2020,TUBES,Medicine,NHS LOGISTICS,1121148635,5.24,
Department of Health,Salisbury NHS Foundation Trust,11/12/2020,ELECTRICAL EQUIPMENT,Medicine,NHS LOGISTICS,1121148635,4.44,
Department of Health,Salisbury NHS Foundation Trust,11/12/2020,MEDSURGCONS-OTHER,Medicine,NHS LOGISTICS,1121148635,9.28,
Department of Health,Salisbury NHS Foundation Trust,11/12/2020,DRESSINGS - PRE STERILE,Medicine,NHS LOGISTICS,1121148635,23.8,
Department of Health,Salisbury NHS Foundation Trust,11/12/2020,MEDSURGCONS-OTHER,Medicine,NHS LOGISTICS,1121148635,7,
Department of Health,Salisbury NHS Foundation Trust,11/12/2020,MEDSURGCONS-OTHER,Medicine,NHS LOGISTICS,1121148635,25.4,
Department of Health,Salisbury NHS Foundation Trust,11/12/2020,MEDSURGCONS-OTHER,Medicine,NHS LOGISTICS,1121148635,42.75,
Department of Health,Salisbury NHS Foundation Trust,11/12/2020,M & S EQUIPELECTEQUIPINST - OTHER,Medicine,NHS LOGISTICS,1121148635,4.75,
Department of Health,Salisbury NHS Foundation Trust,11/12/2020,DRESSINGS - PRE STERILE,Medicine,NHS LOGISTICS,1121148635,2.13,
Department of Health,Salisbury NHS Foundation Trust,11/12/2020,ANAESTHETIC EQUIPMENT ACCESSORIES,Medicine,NHS LOGISTICS,1121148635,1.92,
Department of Health,Salisbury NHS Foundation Trust,11/12/2020,DRESSINGS  -  PROCEDURE PACKS,Medicine,NHS LOGISTICS,1121148635,3.24,
Department of Health,Salisbury NHS Foundation Trust,11/12/2020,M & S EQUIPELECTEQUIPINST - OTHER,Medicine,NHS LOGISTICS,1121148635,4.65,
Department of Health,Salisbury NHS Foundation Trust,11/12/2020,NON DISPOSABLE BED LINEN,Medicine,NHS LOGISTICS,1121148635,24.4,
Department of Health,Salisbury NHS Foundation Trust,11/12/2020,NON DISPOSABLE BED LINEN,Medicine,NHS LOGISTICS,1121148635,47.5,
Department of Health,Salisbury NHS Foundation Trust,11/12/2020,OTHER MEDICAL SUPPLIES,Medicine,NHS LOGISTICS,1121148635,14.24,
Department of Health,Salisbury NHS Foundation Trust,11/12/2020,OTHER MEDICAL SUPPLIES,Medicine,NHS LOGISTICS,1121148635,21.36,
Department of Health,Salisbury NHS Foundation Trust,11/12/2020,SURGICAL INSTRUMENTS - DISPOSABLE,Medicine,NHS LOGISTICS,1121148635,2.25,
Department of Health,Salisbury NHS Foundation Trust,11/12/2020,TOILETRIES PERSONAL HYGIENE PRODUCT,Medicine,NHS LOGISTICS,1121148635,2.15,
Department of Health,Salisbury NHS Foundation Trust,11/12/2020,PATIENTS INCONTINENCE,Medicine,NHS LOGISTICS,1121148635,2.81,
Department of Health,Salisbury NHS Foundation Trust,11/12/2020,MEDSURGCONS-OTHER,Medicine,NHS LOGISTICS,1121148635,3.53,
Department of Health,Salisbury NHS Foundation Trust,11/12/2020,MEDSURGCONS-OTHER,Medicine,NHS LOGISTICS,1121148635,16.8,
Department of Health,Salisbury NHS Foundation Trust,11/12/2020,MEDSURGCONS-OTHER,Medicine,NHS LOGISTICS,1121148635,3.1,
Department of Health,Salisbury NHS Foundation Trust,11/12/2020,NON DISPOSABLE BED LINEN,Medicine,NHS LOGISTICS,1121148635,2.82,
Department of Health,Salisbury NHS Foundation Trust,11/12/2020,PATIENT APPLIANCES,Medicine,NHS LOGISTICS,1121148635,9,
Department of Health,Salisbury NHS Foundation Trust,11/12/2020,MEDSURGCONS-OTHER,Medicine,NHS LOGISTICS,1121148635,0.2,
Department of Health,Salisbury NHS Foundation Trust,11/12/2020,MEDSURGCONS-OTHER,Medicine,NHS LOGISTICS,1121148635,0.16,
Department of Health,Salisbury NHS Foundation Trust,11/12/2020,MEDSURGCONS-OTHER,Medicine,NHS LOGISTICS,1121148635,1,
Department of Health,Salisbury NHS Foundation Trust,11/12/2020,DISPOSABLE THEATRE DRAPES WIPES,Medicine,NHS LOGISTICS,1121148635,39.02,
Department of Health,Salisbury NHS Foundation Trust,11/12/2020,DISPOSABLE THEATRE DRAPES WIPES,Medicine,NHS LOGISTICS,1121148635,6.83,
Department of Health,Salisbury NHS Foundation Trust,11/12/2020,OTHER MEDICAL SUPPLIES,Medicine,NHS LOGISTICS,1121148635,101,
Department of Health,Salisbury NHS Foundation Trust,11/12/2020,MEDSURGCONS-OTHER,Medicine,NHS LOGISTICS,1121148635,46,
Department of Health,Salisbury NHS Foundation Trust,11/12/2020,OTHER MEDICAL SUPPLIES,Medicine,NHS LOGISTICS,1121148635,140,
Department of Health,Salisbury NHS Foundation Trust,11/12/2020,OTHER MEDICAL SUPPLIES,Medicine,NHS LOGISTICS,1121148635,44.8,
Department of Health,Salisbury NHS Foundation Trust,11/12/2020,DRESSINGS - PRE STERILE,Medicine,NHS LOGISTICS,1121148635,7,
Department of Health,Salisbury NHS Foundation Trust,11/12/2020,DRESSINGS - PRE STERILE,Medicine,NHS LOGISTICS,1121148635,127.5,
Department of Health,Salisbury NHS Foundation Trust,11/12/2020,MEDSURGCONS-OTHER,Medicine,NHS LOGISTICS,1121148635,13.52,
Department of Health,Salisbury NHS Foundation Trust,11/12/2020,DRESSINGS  -  PROCEDURE PACKS,Medicine,NHS LOGISTICS,1121148635,1.4,
Department of Health,Salisbury NHS Foundation Trust,11/12/2020,OTHER MEDICAL SUPPLIES,Medicine,NHS LOGISTICS,1121148635,4.02,
Department of Health,Salisbury NHS Foundation Trust,11/12/2020,OTHER MEDICAL SUPPLIES,Medicine,NHS LOGISTICS,1121148635,1.71,
Department of Health,Salisbury NHS Foundation Trust,11/12/2020,MEDSURGCONS-OTHER,Medicine,NHS LOGISTICS,1121148635,3.24,
Department of Health,Salisbury NHS Foundation Trust,11/12/2020,DISPOSABLE THEATRE DRAPES WIPES,Medicine,NHS LOGISTICS,1121148635,3.74,
Department of Health,Salisbury NHS Foundation Trust,11/12/2020,DISPOSABLE THEATRE DRAPES WIPES,Medicine,NHS LOGISTICS,1121148635,19.51,
Department of Health,Salisbury NHS Foundation Trust,11/12/2020,MEDSURGCONS-OTHER,Medicine,NHS LOGISTICS,1121148635,510,
Department of Health,Salisbury NHS Foundation Trust,11/12/2020,MEDSURGCONS-OTHER,Medicine,NHS LOGISTICS,1121148635,525,
Department of Health,Salisbury NHS Foundation Trust,11/12/2020,DRESSINGS - PRE STERILE,Clinical Support,NHS LOGISTICS,1121148635,6.8,
Department of Health,Salisbury NHS Foundation Trust,11/12/2020,OTHER MEDICAL SUPPLIES,Clinical Support,NHS LOGISTICS,1121148635,36.84,
Department of Health,Salisbury NHS Foundation Trust,11/12/2020,OTHER MEDICAL SUPPLIES,Clinical Support,NHS LOGISTICS,1121148635,142.48,
Department of Health,Salisbury NHS Foundation Trust,11/12/2020,DRESSINGS - PRE STERILE,Clinical Support,NHS LOGISTICS,1121148635,11.9,
Department of Health,Salisbury NHS Foundation Trust,11/12/2020,TISSUES HAND TOWELS & TOILET PAPER,Clinical Support,NHS LOGISTICS,1121148635,1.48,
Department of Health,Salisbury NHS Foundation Trust,11/12/2020,M & S EQUIPELECTEQUIPINST - OTHER,Clinical Support,NHS LOGISTICS,1121148635,11.75,
Department of Health,Salisbury NHS Foundation Trust,11/12/2020,DRESSINGS - PRE STERILE,Clinical Support,NHS LOGISTICS,1121148635,1.42,
Department of Health,Salisbury NHS Foundation Trust,11/12/2020,DRESSINGS  -  PROCEDURE PACKS,Clinical Support,NHS LOGISTICS,1121148635,9.72,
Department of Health,Salisbury NHS Foundation Trust,11/12/2020,MEDSURGCONS-OTHER,Clinical Support,NHS LOGISTICS,1121148635,22.5,
Department of Health,Salisbury NHS Foundation Trust,11/12/2020,OTHER MEDICAL SUPPLIES,Clinical Support,NHS LOGISTICS,1121148635,7.12,
Department of Health,Salisbury NHS Foundation Trust,11/12/2020,DRESSINGS - PRE STERILE,Clinical Support,NHS LOGISTICS,1121148635,13.05,
Department of Health,Salisbury NHS Foundation Trust,11/12/2020,MEDSURGCONS-OTHER,Clinical Support,NHS LOGISTICS,1121148635,233.4,
Department of Health,Salisbury NHS Foundation Trust,11/12/2020,DRUGS,Clinical Support,NHS LOGISTICS,1121148635,10.8,
Department of Health,Salisbury NHS Foundation Trust,11/12/2020,DISPOSABLE THEATRE DRAPES WIPES,Clinical Support,NHS LOGISTICS,1121148635,19.51,
Department of Health,Salisbury NHS Foundation Trust,11/12/2020,DRESSINGS  -  PROCEDURE PACKS,Musculo-Skeletal,NHS LOGISTICS,1121148635,1,
Department of Health,Salisbury NHS Foundation Trust,11/12/2020,TUBES,Musculo-Skeletal,NHS LOGISTICS,1121148635,11.64,
Department of Health,Salisbury NHS Foundation Trust,11/12/2020,MEDSURGCONS-SUTURES,Musculo-Skeletal,NHS LOGISTICS,1121148635,83.14,
Department of Health,Salisbury NHS Foundation Trust,11/12/2020,MEDSURGCONS-SUTURES,Musculo-Skeletal,NHS LOGISTICS,1121148635,45.17,
Department of Health,Salisbury NHS Foundation Trust,11/12/2020,MEDSURGCONS-SUTURES,Musculo-Skeletal,NHS LOGISTICS,1121148635,31.5,
Department of Health,Salisbury NHS Foundation Trust,11/12/2020,TUBES,Musculo-Skeletal,NHS LOGISTICS,1121148635,9.2,
Department of Health,Salisbury NHS Foundation Trust,11/12/2020,MEDSURGCONS-OTHER,Clinical Support,NHS LOGISTICS,1121148635,15.5,
Department of Health,Salisbury NHS Foundation Trust,11/12/2020,PATIENTS BABY WEAR,Medicine,NHS LOGISTICS,1121148635,12.34,
Department of Health,Salisbury NHS Foundation Trust,11/12/2020,OTHER MEDICAL SUPPLIES,Medicine,NHS LOGISTICS,1121148635,82.8,
Department of Health,Salisbury NHS Foundation Trust,11/12/2020,DRESSINGS - PRE STERILE,Medicine,NHS LOGISTICS,1121148635,0.68,
Department of Health,Salisbury NHS Foundation Trust,11/12/2020,DRESSINGS - PRE STERILE,Medicine,NHS LOGISTICS,1121148635,1.18,
Department of Health,Salisbury NHS Foundation Trust,11/12/2020,DRESSINGS - PRE STERILE,Medicine,NHS LOGISTICS,1121148635,3.82,
Department of Health,Salisbury NHS Foundation Trust,11/12/2020,TOILETRIES PERSONAL HYGIENE PRODUCT,Medicine,NHS LOGISTICS,1121148635,3.22,
Department of Health,Salisbury NHS Foundation Trust,11/12/2020,TISSUES HAND TOWELS & TOILET PAPER,Medicine,NHS LOGISTICS,1121148635,1.22,
Department of Health,Salisbury NHS Foundation Trust,11/12/2020,PATIENTS INCONTINENCE,Medicine,NHS LOGISTICS,1121148635,2.36,
Department of Health,Salisbury NHS Foundation Trust,11/12/2020,M & S EQUIPELECTEQUIPINST - OTHER,Medicine,NHS LOGISTICS,1121148635,11.75,
Department of Health,Salisbury NHS Foundation Trust,11/12/2020,MEDSURGCONS-OTHER,Medicine,NHS LOGISTICS,1121148635,6.76,
Department of Health,Salisbury NHS Foundation Trust,11/12/2020,MEDSURGCONS-OTHER,Medicine,NHS LOGISTICS,1121148635,5.43,
Department of Health,Salisbury NHS Foundation Trust,11/12/2020,MEDSURGCONS-OTHER,Medicine,NHS LOGISTICS,1121148635,1.53,
Department of Health,Salisbury NHS Foundation Trust,11/12/2020,MEDSURGCONS-OTHER,Medicine,NHS LOGISTICS,1121148635,2.39,
Department of Health,Salisbury NHS Foundation Trust,11/12/2020,DRESSINGS - PRE STERILE,Medicine,NHS LOGISTICS,1121148635,1.42,
Department of Health,Salisbury NHS Foundation Trust,11/12/2020,M & S EQUIPELECTEQUIPINST - OTHER,Medicine,NHS LOGISTICS,1121148635,0.48,
Department of Health,Salisbury NHS Foundation Trust,11/12/2020,DRESSINGS  -  PROCEDURE PACKS,Medicine,NHS LOGISTICS,1121148635,5.25,
Department of Health,Salisbury NHS Foundation Trust,11/12/2020,MEDSURGCONS-OTHER,Medicine,NHS LOGISTICS,1121148635,22.5,
Department of Health,Salisbury NHS Foundation Trust,11/12/2020,MEDSURGCONS-OTHER,Medicine,NHS LOGISTICS,1121148635,10.2,
Department of Health,Salisbury NHS Foundation Trust,11/12/2020,OTHER MEDICAL SUPPLIES,Medicine,NHS LOGISTICS,1121148635,14.24,
Department of Health,Salisbury NHS Foundation Trust,11/12/2020,OTHER MEDICAL SUPPLIES,Medicine,NHS LOGISTICS,1121148635,1.34,
Department of Health,Salisbury NHS Foundation Trust,11/12/2020,OTHER MEDICAL SUPPLIES,Medicine,NHS LOGISTICS,1121148635,3.58,
Department of Health,Salisbury NHS Foundation Trust,11/12/2020,SURGICAL INSTRUMENTS - DISPOSABLE,Medicine,NHS LOGISTICS,1121148635,6.75,
Department of Health,Salisbury NHS Foundation Trust,11/12/2020,PATIENTS INCONTINENCE,Medicine,NHS LOGISTICS,1121148635,16.83,
Department of Health,Salisbury NHS Foundation Trust,11/12/2020,PATIENT APPLIANCES,Medicine,NHS LOGISTICS,1121148635,8,
Department of Health,Salisbury NHS Foundation Trust,11/12/2020,DRESSINGS - PRE STERILE,Medicine,NHS LOGISTICS,1121148635,2.3,
Department of Health,Salisbury NHS Foundation Trust,11/12/2020,DRESSINGS - PRE STERILE,Medicine,NHS LOGISTICS,1121148635,2.3,
Department of Health,Salisbury NHS Foundation Trust,11/12/2020,DRESSINGS - PRE STERILE,Medicine,NHS LOGISTICS,1121148635,4.08,
Department of Health,Salisbury NHS Foundation Trust,11/12/2020,MEDSURGCONS-OTHER,Medicine,NHS LOGISTICS,1121148635,3.53,
Department of Health,Salisbury NHS Foundation Trust,11/12/2020,MEDSURGCONS-OTHER,Medicine,NHS LOGISTICS,1121148635,11.2,
Department of Health,Salisbury NHS Foundation Trust,11/12/2020,TISSUES HAND TOWELS & TOILET PAPER,Medicine,NHS LOGISTICS,1121148635,1.12,
Department of Health,Salisbury NHS Foundation Trust,11/12/2020,MEDSURGCONS-OTHER,Medicine,NHS LOGISTICS,1121148635,1.55,
Department of Health,Salisbury NHS Foundation Trust,11/12/2020,TUBES,Medicine,NHS LOGISTICS,1121148635,6,
Department of Health,Salisbury NHS Foundation Trust,11/12/2020,DRESSINGS - PRE STERILE,Medicine,NHS LOGISTICS,1121148635,11.49,
Department of Health,Salisbury NHS Foundation Trust,11/12/2020,NON DISPOSABLE BED LINEN,Medicine,NHS LOGISTICS,1121148635,22.56,
Department of Health,Salisbury NHS Foundation Trust,11/12/2020,PATIENT APPLIANCES,Medicine,NHS LOGISTICS,1121148635,18,
Department of Health,Salisbury NHS Foundation Trust,11/12/2020,MEDSURGCONS-OTHER,Medicine,NHS LOGISTICS,1121148635,0.3,
Department of Health,Salisbury NHS Foundation Trust,11/12/2020,MEDSURGCONS-OTHER,Medicine,NHS LOGISTICS,1121148635,0.24,
Department of Health,Salisbury NHS Foundation Trust,11/12/2020,MEDSURGCONS-OTHER,Medicine,NHS LOGISTICS,1121148635,0.24,
Department of Health,Salisbury NHS Foundation Trust,11/12/2020,MEDSURGCONS-OTHER,Medicine,NHS LOGISTICS,1121148635,2,
Department of Health,Salisbury NHS Foundation Trust,11/12/2020,DISPOSABLE THEATRE DRAPES WIPES,Medicine,NHS LOGISTICS,1121148635,3.74,
Department of Health,Salisbury NHS Foundation Trust,11/12/2020,DISPOSABLE THEATRE DRAPES WIPES,Medicine,NHS LOGISTICS,1121148635,19.51,
Department of Health,Salisbury NHS Foundation Trust,11/12/2020,DRESSINGS - PRE STERILE,Musculo-Skeletal,NHS LOGISTICS,1121148635,7.56,
Department of Health,Salisbury NHS Foundation Trust,11/12/2020,DRESSINGS - PRE STERILE,Musculo-Skeletal,NHS LOGISTICS,1121148635,11.64,
Department of Health,Salisbury NHS Foundation Trust,11/12/2020,DRESSINGS - PRE STERILE,Musculo-Skeletal,NHS LOGISTICS,1121148635,6.3,
Department of Health,Salisbury NHS Foundation Trust,11/12/2020,DRESSINGS - PRE STERILE,Musculo-Skeletal,NHS LOGISTICS,1121148635,3.39,
Department of Health,Salisbury NHS Foundation Trust,11/12/2020,DRESSINGS - PRE STERILE,Musculo-Skeletal,NHS LOGISTICS,1121148635,27.83,
Department of Health,Salisbury NHS Foundation Trust,11/12/2020,DRESSINGS - PRE STERILE,Musculo-Skeletal,NHS LOGISTICS,1121148635,5,
Department of Health,Salisbury NHS Foundation Trust,11/12/2020,DRESSINGS - PRE STERILE,Musculo-Skeletal,NHS LOGISTICS,1121148635,21.48,
Department of Health,Salisbury NHS Foundation Trust,11/12/2020,DRESSINGS - PRE STERILE,Musculo-Skeletal,NHS LOGISTICS,1121148635,4.4,
Department of Health,Salisbury NHS Foundation Trust,11/12/2020,DRESSINGS - PRE STERILE,Musculo-Skeletal,NHS LOGISTICS,1121148635,1,
Department of Health,Salisbury NHS Foundation Trust,11/12/2020,DRESSINGS  -  PROCEDURE PACKS,Musculo-Skeletal,NHS LOGISTICS,1121148635,3.94,
Department of Health,Salisbury NHS Foundation Trust,11/12/2020,DRESSINGS  -  PROCEDURE PACKS,Musculo-Skeletal,NHS LOGISTICS,1121148635,0.1,
Department of Health,Salisbury NHS Foundation Trust,11/12/2020,DRESSINGS - PRE STERILE,Musculo-Skeletal,NHS LOGISTICS,1121148635,0.71,
Department of Health,Salisbury NHS Foundation Trust,11/12/2020,DRESSINGS - PRE STERILE,Musculo-Skeletal,NHS LOGISTICS,1121148635,24.85,
Department of Health,Salisbury NHS Foundation Trust,11/12/2020,DRESSINGS - PRE STERILE,Musculo-Skeletal,NHS LOGISTICS,1121148635,18,
Department of Health,Salisbury NHS Foundation Trust,11/12/2020,DRESSINGS - PRE STERILE,Musculo-Skeletal,NHS LOGISTICS,1121148635,20.75,
Department of Health,Salisbury NHS Foundation Trust,11/12/2020,DRESSINGS - PRE STERILE,Musculo-Skeletal,NHS LOGISTICS,1121148635,6.9,
Department of Health,Salisbury NHS Foundation Trust,11/12/2020,SURGICAL INSTRUMENTS - DISPOSABLE,Musculo-Skeletal,NHS LOGISTICS,1121148635,6.75,
Department of Health,Salisbury NHS Foundation Trust,11/12/2020,MEDSURGCONS-OTHER,Musculo-Skeletal,NHS LOGISTICS,1121148635,17.2,
Department of Health,Salisbury NHS Foundation Trust,11/12/2020,DISPOSABLE THEATRE DRAPES WIPES,Musculo-Skeletal,NHS LOGISTICS,1121148635,3.74,
Department of Health,Salisbury NHS Foundation Trust,11/12/2020,DRUGS,Surgery,NHS LOGISTICS,1121148635,323.24,
Department of Health,Salisbury NHS Foundation Trust,11/12/2020,MEDSURGCONS-OTHER,Surgery,NHS LOGISTICS,1121148635,78.76,
Department of Health,Salisbury NHS Foundation Trust,11/12/2020,MEDSURGCONS-OTHER,Surgery,NHS LOGISTICS,1121148635,78.76,
Department of Health,Salisbury NHS Foundation Trust,11/12/2020,MEDSURGCONS-OTHER,Surgery,NHS LOGISTICS,1121148635,78.76,
Department of Health,Salisbury NHS Foundation Trust,11/12/2020,MEDSURGCONS-SUTURES,Surgery,NHS LOGISTICS,1121148635,180.68,
Department of Health,Salisbury NHS Foundation Trust,11/12/2020,MEDSURGCONS-SUTURES,Surgery,NHS LOGISTICS,1121148635,94.5,
Department of Health,Salisbury NHS Foundation Trust,11/12/2020,MEDSURGCONS-SUTURES,Surgery,NHS LOGISTICS,1121148635,46.34,
Department of Health,Salisbury NHS Foundation Trust,11/12/2020,MEDSURGCONS-SUTURES,Surgery,NHS LOGISTICS,1121148635,139.33,
Department of Health,Salisbury NHS Foundation Trust,11/12/2020,PATIENT APPLIANCES,Musculo-Skeletal,NHS LOGISTICS,1121148635,4.65,
Department of Health,Salisbury NHS Foundation Trust,11/12/2020,PATIENT APPLIANCES,Musculo-Skeletal,NHS LOGISTICS,1121148635,4.65,
Department of Health,Salisbury NHS Foundation Trust,11/12/2020,TISSUES HAND TOWELS & TOILET PAPER,Musculo-Skeletal,NHS LOGISTICS,1121148635,0.81,
Department of Health,Salisbury NHS Foundation Trust,11/12/2020,MEDSURGCONS-OTHER,Musculo-Skeletal,NHS LOGISTICS,1121148635,3.38,
Department of Health,Salisbury NHS Foundation Trust,11/12/2020,MEDSURGCONS-OTHER,Musculo-Skeletal,NHS LOGISTICS,1121148635,22.5,
Department of Health,Salisbury NHS Foundation Trust,11/12/2020,DISPOSABLE THEATRE DRAPES WIPES,Musculo-Skeletal,NHS LOGISTICS,1121148635,3.74,
Department of Health,Salisbury NHS Foundation Trust,11/12/2020,DISPOSABLE THEATRE DRAPES WIPES,Musculo-Skeletal,NHS LOGISTICS,1121148635,19.51,
Department of Health,Salisbury NHS Foundation Trust,11/12/2020,DRESSINGS  -  PROCEDURE PACKS,Medicine,NHS LOGISTICS,1121148635,0.7,
Department of Health,Salisbury NHS Foundation Trust,11/12/2020,DRESSINGS  -  PROCEDURE PACKS,Medicine,NHS LOGISTICS,1121148635,2.1,
Department of Health,Salisbury NHS Foundation Trust,11/12/2020,OTHER MEDICAL SUPPLIES,Medicine,NHS LOGISTICS,1121148635,1.34,
Department of Health,Salisbury NHS Foundation Trust,11/12/2020,DISPOSABLE THEATRE DRAPES WIPES,Medicine,NHS LOGISTICS,1121148635,19.51,
Department of Health,Salisbury NHS Foundation Trust,11/12/2020,DRESSINGS - PRE STERILE,Surgery,NHS LOGISTICS,1121148635,7.56,
Department of Health,Salisbury NHS Foundation Trust,11/12/2020,DRESSINGS - PRE STERILE,Surgery,NHS LOGISTICS,1121148635,16.68,
Department of Health,Salisbury NHS Foundation Trust,11/12/2020,DRESSINGS - PRE STERILE,Surgery,NHS LOGISTICS,1121148635,3.1,
Department of Health,Salisbury NHS Foundation Trust,11/12/2020,DRESSINGS - PRE STERILE,Surgery,NHS LOGISTICS,1121148635,4.56,
Department of Health,Salisbury NHS Foundation Trust,11/12/2020,TISSUES HAND TOWELS & TOILET PAPER,Surgery,NHS LOGISTICS,1121148635,10.52,
Department of Health,Salisbury NHS Foundation Trust,11/12/2020,DRESSINGS - PRE STERILE,Surgery,NHS LOGISTICS,1121148635,7.15,
Department of Health,Salisbury NHS Foundation Trust,11/12/2020,DRESSINGS - PRE STERILE,Surgery,NHS LOGISTICS,1121148635,0.71,
Department of Health,Salisbury NHS Foundation Trust,11/12/2020,MEDSURGCONS-OTHER,Surgery,NHS LOGISTICS,1121148635,5.4,
Department of Health,Salisbury NHS Foundation Trust,11/12/2020,DRESSINGS - PRE STERILE,Surgery,NHS LOGISTICS,1121148635,7.25,
Department of Health,Salisbury NHS Foundation Trust,11/12/2020,ELECTRICAL EQUIPMENT,Medicine,NHS LOGISTICS,1121148635,2.96,
Department of Health,Salisbury NHS Foundation Trust,11/12/2020,MEDSURGCONS-OTHER,Medicine,NHS LOGISTICS,1121148635,57.6,
Department of Health,Salisbury NHS Foundation Trust,11/12/2020,DISPOSABLE THEATRE DRAPES WIPES,Medicine,NHS LOGISTICS,1121148635,7.48,
Department of Health,Salisbury NHS Foundation Trust,11/12/2020,TOILETRIES PERSONAL HYGIENE PRODUCT,Surgery,NHS LOGISTICS,1121148635,3.22,
Department of Health,Salisbury NHS Foundation Trust,11/12/2020,M & S EQUIPELECTEQUIPINST - OTHER,Surgery,NHS LOGISTICS,1121148635,11.75,
Department of Health,Salisbury NHS Foundation Trust,11/12/2020,DISPOSABLE THEATRE DRAPES WIPES,Surgery,NHS LOGISTICS,1121148635,19.51,
Department of Health,Salisbury NHS Foundation Trust,11/12/2020,DRESSINGS - PRE STERILE,Surgery,NHS LOGISTICS,1121148635,0.68,
Department of Health,Salisbury NHS Foundation Trust,11/12/2020,DRESSINGS - PRE STERILE,Surgery,NHS LOGISTICS,1121148635,3.82,
Department of Health,Salisbury NHS Foundation Trust,11/12/2020,TOILETRIES PERSONAL HYGIENE PRODUCT,Surgery,NHS LOGISTICS,1121148635,12.87,
Department of Health,Salisbury NHS Foundation Trust,11/12/2020,TOILETRIES PERSONAL HYGIENE PRODUCT,Surgery,NHS LOGISTICS,1121148635,15.46,
Department of Health,Salisbury NHS Foundation Trust,11/12/2020,M & S EQUIPELECTEQUIPINST - OTHER,Surgery,NHS LOGISTICS,1121148635,1.7,
Department of Health,Salisbury NHS Foundation Trust,11/12/2020,MED SURG EQUIP REP MAINT CLEANING,Surgery,NHS LOGISTICS,1121148635,43.05,
Department of Health,Salisbury NHS Foundation Trust,11/12/2020,PATIENTS INCONTINENCE,Surgery,NHS LOGISTICS,1121148635,4.72,
Department of Health,Salisbury NHS Foundation Trust,11/12/2020,MEDSURGCONS-OTHER,Surgery,NHS LOGISTICS,1121148635,25.4,
Department of Health,Salisbury NHS Foundation Trust,11/12/2020,MEDSURGCONS-OTHER,Surgery,NHS LOGISTICS,1121148635,42.75,
Department of Health,Salisbury NHS Foundation Trust,11/12/2020,MEDSURGCONS-OTHER,Surgery,NHS LOGISTICS,1121148635,6.76,
Department of Health,Salisbury NHS Foundation Trust,11/12/2020,MEDSURGCONS-OTHER,Surgery,NHS LOGISTICS,1121148635,5.43,
Department of Health,Salisbury NHS Foundation Trust,11/12/2020,MEDSURGCONS-OTHER,Surgery,NHS LOGISTICS,1121148635,9.56,
Department of Health,Salisbury NHS Foundation Trust,11/12/2020,M & S EQUIPELECTEQUIPINST - OTHER,Surgery,NHS LOGISTICS,1121148635,19,
Department of Health,Salisbury NHS Foundation Trust,11/12/2020,ANAESTHETIC EQUIPMENT ACCESSORIES,Surgery,NHS LOGISTICS,1121148635,1.44,
Department of Health,Salisbury NHS Foundation Trust,11/12/2020,DRESSINGS  -  PROCEDURE PACKS,Surgery,NHS LOGISTICS,1121148635,1.4,
Department of Health,Salisbury NHS Foundation Trust,11/12/2020,OTHER MEDICAL SUPPLIES,Surgery,NHS LOGISTICS,1121148635,7.12,
Department of Health,Salisbury NHS Foundation Trust,11/12/2020,SURGICAL INSTRUMENTS - DISPOSABLE,Surgery,NHS LOGISTICS,1121148635,4.5,
Department of Health,Salisbury NHS Foundation Trust,11/12/2020,PATIENTS INCONTINENCE,Surgery,NHS LOGISTICS,1121148635,14.03,
Department of Health,Salisbury NHS Foundation Trust,11/12/2020,PATIENT APPLIANCES,Surgery,NHS LOGISTICS,1121148635,5,
Department of Health,Salisbury NHS Foundation Trust,11/12/2020,PATIENT APPLIANCES,Surgery,NHS LOGISTICS,1121148635,8,
Department of Health,Salisbury NHS Foundation Trust,11/12/2020,TOILETRIES PERSONAL HYGIENE PRODUCT,Surgery,NHS LOGISTICS,1121148635,3.26,
Department of Health,Salisbury NHS Foundation Trust,11/12/2020,DRESSINGS - PRE STERILE,Surgery,NHS LOGISTICS,1121148635,4.08,
Department of Health,Salisbury NHS Foundation Trust,11/12/2020,MEDSURGCONS-OTHER,Surgery,NHS LOGISTICS,1121148635,4.38,
Department of Health,Salisbury NHS Foundation Trust,11/12/2020,MEDSURGCONS-OTHER,Surgery,NHS LOGISTICS,1121148635,3.53,
Department of Health,Salisbury NHS Foundation Trust,11/12/2020,MEDSURGCONS-OTHER,Surgery,NHS LOGISTICS,1121148635,6.16,
Department of Health,Salisbury NHS Foundation Trust,11/12/2020,MEDSURGCONS-OTHER,Surgery,NHS LOGISTICS,1121148635,11.2,
Department of Health,Salisbury NHS Foundation Trust,11/12/2020,DENTAL SURGERY SUNDRIES,Surgery,NHS LOGISTICS,1121148635,2.52,
Department of Health,Salisbury NHS Foundation Trust,11/12/2020,TUBES,Surgery,NHS LOGISTICS,1121148635,1.01,
Department of Health,Salisbury NHS Foundation Trust,11/12/2020,TUBES,Surgery,NHS LOGISTICS,1121148635,6,
Department of Health,Salisbury NHS Foundation Trust,11/12/2020,DRESSINGS - PRE STERILE,Surgery,NHS LOGISTICS,1121148635,3.83,
Department of Health,Salisbury NHS Foundation Trust,11/12/2020,NON DISPOSABLE BED LINEN,Surgery,NHS LOGISTICS,1121148635,5.64,
Department of Health,Salisbury NHS Foundation Trust,11/12/2020,PATIENT APPLIANCES,Surgery,NHS LOGISTICS,1121148635,12,
Department of Health,Salisbury NHS Foundation Trust,11/12/2020,MEDSURGCONS-OTHER,Surgery,NHS LOGISTICS,1121148635,2.38,
Department of Health,Salisbury NHS Foundation Trust,11/12/2020,DISPOSABLE THEATRE DRAPES WIPES,Surgery,NHS LOGISTICS,1121148635,39.02,
Department of Health,Salisbury NHS Foundation Trust,11/12/2020,M & S EQUIPELECTEQUIPINST - OTHER,Surgery,NHS LOGISTICS,1121148635,110,
Department of Health,Salisbury NHS Foundation Trust,11/12/2020,OPTICAL - OTHER,Surgery,NHS LOGISTICS,1121148635,452,
Department of Health,Salisbury NHS Foundation Trust,11/12/2020,MED SURG EQUIP REP MAINT CLEANING,Surgery,NHS LOGISTICS,1121148635,419.1,
Department of Health,Salisbury NHS Foundation Trust,11/12/2020,DRESSINGS - PRE STERILE,Musculo-Skeletal,NHS LOGISTICS,1121148635,146.4,
Department of Health,Salisbury NHS Foundation Trust,11/12/2020,DRESSINGS - PRE STERILE,Surgery,NHS LOGISTICS,1121148635,10.05,
Department of Health,Salisbury NHS Foundation Trust,11/12/2020,TISSUES HAND TOWELS & TOILET PAPER,Surgery,NHS LOGISTICS,1121148635,3.66,
Department of Health,Salisbury NHS Foundation Trust,11/12/2020,TISSUES HAND TOWELS & TOILET PAPER,Surgery,NHS LOGISTICS,1121148635,10.52,
Department of Health,Salisbury NHS Foundation Trust,11/12/2020,DRESSINGS - PRE STERILE,Surgery,NHS LOGISTICS,1121148635,3.34,
Department of Health,Salisbury NHS Foundation Trust,11/12/2020,MEDSURGCONS-OTHER,Surgery,NHS LOGISTICS,1121148635,5.43,
Department of Health,Salisbury NHS Foundation Trust,11/12/2020,MEDSURGCONS-OTHER,Surgery,NHS LOGISTICS,1121148635,2.39,
Department of Health,Salisbury NHS Foundation Trust,11/12/2020,MEDSURGCONS-OTHER,Surgery,NHS LOGISTICS,1121148635,22.5,
Department of Health,Salisbury NHS Foundation Trust,11/12/2020,SURGICAL INSTRUMENTS - DISPOSABLE,Surgery,NHS LOGISTICS,1121148635,2.25,
Department of Health,Salisbury NHS Foundation Trust,11/12/2020,SURGICAL INSTRUMENTS - GENERAL,Surgery,NHS LOGISTICS,1121148635,2.07,
Department of Health,Salisbury NHS Foundation Trust,11/12/2020,DRESSINGS - PRE STERILE,Surgery,NHS LOGISTICS,1121148635,2.64,
Department of Health,Salisbury NHS Foundation Trust,11/12/2020,SURGICAL INSTRUMENTS - GENERAL,Surgery,NHS LOGISTICS,1121148635,300,
Department of Health,Salisbury NHS Foundation Trust,11/12/2020,MEDSURGCONS-OTHER,Surgery,NHS LOGISTICS,1121148635,79.92,
Department of Health,Salisbury NHS Foundation Trust,11/12/2020,MEDSURGCONS-OTHER,Surgery,NHS LOGISTICS,1121148635,240,
Department of Health,Salisbury NHS Foundation Trust,11/12/2020,OTHER MEDICAL SUPPLIES,Surgery,NHS LOGISTICS,1121148635,307.5,
Department of Health,Salisbury NHS Foundation Trust,11/12/2020,OTHER MEDICAL SUPPLIES,Musculo-Skeletal,NHS LOGISTICS,1121148635,9.28,
Department of Health,Salisbury NHS Foundation Trust,11/12/2020,MEDSURGCONS-OTHER,Musculo-Skeletal,NHS LOGISTICS,1121148635,3.38,
Department of Health,Salisbury NHS Foundation Trust,11/12/2020,DRESSINGS - PRE STERILE,Musculo-Skeletal,NHS LOGISTICS,1121148635,1.42,
Department of Health,Salisbury NHS Foundation Trust,11/12/2020,DRESSINGS  -  PROCEDURE PACKS,Musculo-Skeletal,NHS LOGISTICS,1121148635,2.1,
Department of Health,Salisbury NHS Foundation Trust,11/12/2020,SURGICAL INSTRUMENTS - DISPOSABLE,Musculo-Skeletal,NHS LOGISTICS,1121148635,4.5,
Department of Health,Salisbury NHS Foundation Trust,11/12/2020,MEDSURGCONS-OTHER,Musculo-Skeletal,NHS LOGISTICS,1121148635,4.38,
Department of Health,Salisbury NHS Foundation Trust,11/12/2020,MEDSURGCONS-OTHER,Musculo-Skeletal,NHS LOGISTICS,1121148635,3.53,
Department of Health,Salisbury NHS Foundation Trust,11/12/2020,M & S EQUIPELECTEQUIPINST - OTHER,Musculo-Skeletal,NHS LOGISTICS,1121148635,13.52,
Department of Health,Salisbury NHS Foundation Trust,11/12/2020,ELECTRICAL EQUIPMENT,Musculo-Skeletal,NHS LOGISTICS,1121148635,2.96,
Department of Health,Salisbury NHS Foundation Trust,11/12/2020,MEDSURGCONS-OTHER,Musculo-Skeletal,NHS LOGISTICS,1121148635,15.8,
Department of Health,Salisbury NHS Foundation Trust,11/12/2020,TOILETRIES PERSONAL HYGIENE PRODUCT,Musculo-Skeletal,NHS LOGISTICS,1121148635,25.65,
Department of Health,Salisbury NHS Foundation Trust,11/12/2020,TISSUES HAND TOWELS & TOILET PAPER,Musculo-Skeletal,NHS LOGISTICS,1121148635,9.81,
Department of Health,Salisbury NHS Foundation Trust,11/12/2020,CLEANING MATERIAL PRODUCTS SUNDRIES,Musculo-Skeletal,NHS LOGISTICS,1121148635,7.84,
Department of Health,Salisbury NHS Foundation Trust,11/12/2020,TISSUES HAND TOWELS & TOILET PAPER,Musculo-Skeletal,NHS LOGISTICS,1121148635,0.59,
Department of Health,Salisbury NHS Foundation Trust,11/12/2020,M & S EQUIPELECTEQUIPINST - OTHER,Musculo-Skeletal,NHS LOGISTICS,1121148635,35.25,
Department of Health,Salisbury NHS Foundation Trust,11/12/2020,DRESSINGS  -  PROCEDURE PACKS,Musculo-Skeletal,NHS LOGISTICS,1121148635,29.4,
Department of Health,Salisbury NHS Foundation Trust,11/12/2020,NON DISPOSABLE BED LINEN,Musculo-Skeletal,NHS LOGISTICS,1121148635,14.6,
Department of Health,Salisbury NHS Foundation Trust,11/12/2020,OTHER MEDICAL SUPPLIES,Musculo-Skeletal,NHS LOGISTICS,1121148635,14.24,
Department of Health,Salisbury NHS Foundation Trust,11/12/2020,MEDSURGCONS-OTHER,Musculo-Skeletal,NHS LOGISTICS,1121148635,19.8,
Department of Health,Salisbury NHS Foundation Trust,11/12/2020,SERVICES FROM NHS BODIES,Musculo-Skeletal,NHS LOGISTICS,1121148635,17.8,
Department of Health,Salisbury NHS Foundation Trust,11/12/2020,DRESSINGS - PRE STERILE,Musculo-Skeletal,NHS LOGISTICS,1121148635,6.9,
Department of Health,Salisbury NHS Foundation Trust,11/12/2020,DRESSINGS - PRE STERILE,Musculo-Skeletal,NHS LOGISTICS,1121148635,11.5,
Department of Health,Salisbury NHS Foundation Trust,11/12/2020,MEDSURGCONS-OTHER,Musculo-Skeletal,NHS LOGISTICS,1121148635,11.2,
Department of Health,Salisbury NHS Foundation Trust,11/12/2020,NON DISPOSABLE BED LINEN,Musculo-Skeletal,NHS LOGISTICS,1121148635,45.12,
Department of Health,Salisbury NHS Foundation Trust,11/12/2020,PATIENT APPLIANCES,Musculo-Skeletal,NHS LOGISTICS,1121148635,65.1,
Department of Health,Salisbury NHS Foundation Trust,11/12/2020,DISPOSABLE THEATRE DRAPES WIPES,Musculo-Skeletal,NHS LOGISTICS,1121148635,18.7,
Department of Health,Salisbury NHS Foundation Trust,11/12/2020,DISPOSABLE THEATRE DRAPES WIPES,Musculo-Skeletal,NHS LOGISTICS,1121148635,39.02,
Department of Health,Salisbury NHS Foundation Trust,11/12/2020,TISSUES HAND TOWELS & TOILET PAPER,Surgery,NHS LOGISTICS,1121148635,2.43,
Department of Health,Salisbury NHS Foundation Trust,11/12/2020,MEDSURGCONS-OTHER,Surgery,NHS LOGISTICS,1121148635,3.38,
Department of Health,Salisbury NHS Foundation Trust,11/12/2020,DRESSINGS  -  PROCEDURE PACKS,Surgery,NHS LOGISTICS,1121148635,12.4,
Department of Health,Salisbury NHS Foundation Trust,11/12/2020,DRESSINGS  -  PROCEDURE PACKS,Surgery,NHS LOGISTICS,1121148635,1.05,
Department of Health,Salisbury NHS Foundation Trust,11/12/2020,SURGICAL INSTRUMENTS - DISPOSABLE,Surgery,NHS LOGISTICS,1121148635,6.75,
Department of Health,Salisbury NHS Foundation Trust,11/12/2020,PATIENTS INCONTINENCE,Surgery,NHS LOGISTICS,1121148635,2.25,
Department of Health,Salisbury NHS Foundation Trust,11/12/2020,MEDSURGCONS-OTHER,Surgery,NHS LOGISTICS,1121148635,78.76,
Department of Health,Salisbury NHS Foundation Trust,11/12/2020,NON DISPOSABLE BED LINEN,Surgery,NHS LOGISTICS,1121148635,4.64,
Department of Health,Salisbury NHS Foundation Trust,11/12/2020,SURGICAL INSTRUMENTS - GENERAL,Surgery,NHS LOGISTICS,1121148635,90,
Department of Health,Salisbury NHS Foundation Trust,11/12/2020,MED SURG EQUIP REP MAINT CLEANING,Medicine,NHS LOGISTICS,1121148635,150,
Department of Health,Salisbury NHS Foundation Trust,11/12/2020,MEDSURGCONS-OTHER,Medicine,NHS LOGISTICS,1121148635,850,
Department of Health,Salisbury NHS Foundation Trust,11/12/2020,MEDSURGCONS-OTHER,Medicine,NHS LOGISTICS,1121148635,25,
Department of Health,Salisbury NHS Foundation Trust,11/12/2020,MEDSURGCONS-OTHER,Medicine,NHS LOGISTICS,1121148635,25,
Department of Health,Salisbury NHS Foundation Trust,11/12/2020,MEDSURGCONS-OTHER,Medicine,NHS LOGISTICS,1121148635,850,
Department of Health,Salisbury NHS Foundation Trust,11/12/2020,MEDSURGCONS-OTHER,Medicine,NHS LOGISTICS,1121148635,47.5,
Department of Health,Salisbury NHS Foundation Trust,11/12/2020,MEDSURGCONS-OTHER,Medicine,NHS LOGISTICS,1121148635,67,
Department of Health,Salisbury NHS Foundation Trust,11/12/2020,MEDSURGCONS-OTHER,Medicine,NHS LOGISTICS,1121148635,95,
Department of Health,Salisbury NHS Foundation Trust,11/12/2020,MEDSURGCONS-OTHER,Medicine,NHS LOGISTICS,1121148635,175,
Department of Health,Salisbury NHS Foundation Trust,11/12/2020,MEDSURGCONS-OTHER,Medicine,NHS LOGISTICS,1121148635,395,
Department of Health,Salisbury NHS Foundation Trust,11/12/2020,MEDSURGCONS-OTHER,Surgery,NHS LOGISTICS,1121148635,3.1,
Department of Health,Salisbury NHS Foundation Trust,11/12/2020,DISPOSABLE THEATRE DRAPES WIPES,Surgery,NHS LOGISTICS,1121148635,19.51,
Department of Health,Salisbury NHS Foundation Trust,11/12/2020,TISSUES HAND TOWELS & TOILET PAPER,Clinical Support,NHS LOGISTICS,1121148635,6.09,
Department of Health,Salisbury NHS Foundation Trust,11/12/2020,TISSUES HAND TOWELS & TOILET PAPER,Clinical Support,NHS LOGISTICS,1121148635,0.54,
Department of Health,Salisbury NHS Foundation Trust,11/12/2020,DRESSINGS  -  PROCEDURE PACKS,Clinical Support,NHS LOGISTICS,1121148635,6,
Department of Health,Salisbury NHS Foundation Trust,11/12/2020,SERVICES FROM NHS BODIES,Clinical Support,NHS LOGISTICS,1121148635,4.54,
Department of Health,Salisbury NHS Foundation Trust,11/12/2020,NON DISPOSABLE BED LINEN,Clinical Support,NHS LOGISTICS,1121148635,11.28,
Department of Health,Salisbury NHS Foundation Trust,11/12/2020,MED PROSTH - PACEMAKERS,Medicine,NHS LOGISTICS,1121148635,400,
Department of Health,Salisbury NHS Foundation Trust,11/12/2020,MED PROSTH - PACEMAKERS,Medicine,NHS LOGISTICS,1121148635,660,
Department of Health,Salisbury NHS Foundation Trust,11/12/2020,MED SURG EQUIP REP MAINT CLEANING,Surgery,NHS LOGISTICS,1121148635,71.82,
Department of Health,Salisbury NHS Foundation Trust,11/12/2020,MEDPROST-TRAUMA PRODUCTS,Musculo-Skeletal,NHS LOGISTICS,1121148635,67,
Department of Health,Salisbury NHS Foundation Trust,11/12/2020,MEDPROST-TRAUMA PRODUCTS,Musculo-Skeletal,NHS LOGISTICS,1121148635,107,
Department of Health,Salisbury NHS Foundation Trust,11/12/2020,MEDPROST-TRAUMA PRODUCTS,Musculo-Skeletal,NHS LOGISTICS,1121148635,107,
Department of Health,Salisbury NHS Foundation Trust,11/12/2020,MEDPROST-TRAUMA PRODUCTS,Musculo-Skeletal,NHS LOGISTICS,1121148635,184,
Department of Health,Salisbury NHS Foundation Trust,11/12/2020,MEDSURGCONS-OTHER,Clinical Support,NHS LOGISTICS,1121148635,510,
Department of Health,Salisbury NHS Foundation Trust,11/12/2020,MEDSURGCONS-OTHER,Clinical Support,NHS LOGISTICS,1121148635,525,
Department of Health,Salisbury NHS Foundation Trust,11/12/2020,PATIENTS BABY WEAR,Facilities,NHS LOGISTICS,1121148635,13.32,
Department of Health,Salisbury NHS Foundation Trust,11/12/2020,PATIENTS BABY WEAR,Facilities,NHS LOGISTICS,1121148635,6.17,
Department of Health,Salisbury NHS Foundation Trust,11/12/2020,PATIENTS INCONTINENCE,Facilities,NHS LOGISTICS,1121148635,6.56,
Department of Health,Salisbury NHS Foundation Trust,11/12/2020,TUBES,Facilities,NHS LOGISTICS,1121148635,5.24,
Department of Health,Salisbury NHS Foundation Trust,11/12/2020,TOILETRIES PERSONAL HYGIENE PRODUCT,Facilities,NHS LOGISTICS,1121148635,12.87,
Department of Health,Salisbury NHS Foundation Trust,11/12/2020,M & S EQUIPELECTEQUIPINST - OTHER,Facilities,NHS LOGISTICS,1121148635,11.75,
Department of Health,Salisbury NHS Foundation Trust,11/12/2020,MEDSURGCONS-OTHER,Facilities,NHS LOGISTICS,1121148635,3.38,
Department of Health,Salisbury NHS Foundation Trust,11/12/2020,OTHER MEDICAL SUPPLIES,Facilities,NHS LOGISTICS,1121148635,5.36,
Department of Health,Salisbury NHS Foundation Trust,11/12/2020,SURGICAL INSTRUMENTS - DISPOSABLE,Facilities,NHS LOGISTICS,1121148635,4.5,
Department of Health,Salisbury NHS Foundation Trust,11/12/2020,TUBES,Facilities,NHS LOGISTICS,1121148635,12,
Department of Health,Salisbury NHS Foundation Trust,11/12/2020,NON DISPOSABLE BED LINEN,Facilities,NHS LOGISTICS,1121148635,2.82,
Department of Health,Salisbury NHS Foundation Trust,11/12/2020,PATIENT APPLIANCES,Facilities,NHS LOGISTICS,1121148635,15,
Department of Health,Salisbury NHS Foundation Trust,11/12/2020,MEDSURGCONS-OTHER,Facilities,NHS LOGISTICS,1121148635,1.83,
Department of Health,Salisbury NHS Foundation Trust,11/12/2020,MEDSURGCONS-OTHER,Facilities,NHS LOGISTICS,1121148635,1.05,
Department of Health,Salisbury NHS Foundation Trust,11/12/2020,MEDSURGCONS-OTHER,Facilities,NHS LOGISTICS,1121148635,7.14,
Department of Health,Salisbury NHS Foundation Trust,11/12/2020,DISPOSABLE THEATRE DRAPES WIPES,Facilities,NHS LOGISTICS,1121148635,19.51,
Department of Health,Salisbury NHS Foundation Trust,11/12/2020,OTHER MEDICAL SUPPLIES,Medicine,NHS LOGISTICS,1121148635,4.88,
Department of Health,Salisbury NHS Foundation Trust,11/12/2020,OTHER MEDICAL SUPPLIES,Medicine,NHS LOGISTICS,1121148635,41.4,
Department of Health,Salisbury NHS Foundation Trust,11/12/2020,DRESSINGS - PRE STERILE,Medicine,NHS LOGISTICS,1121148635,1.36,
Department of Health,Salisbury NHS Foundation Trust,11/12/2020,DRESSINGS - PRE STERILE,Medicine,NHS LOGISTICS,1121148635,1.46,
Department of Health,Salisbury NHS Foundation Trust,11/12/2020,ANAESTHETIC EQUIPMENT ACCESSORIES,Medicine,NHS LOGISTICS,1121148635,37.8,
Department of Health,Salisbury NHS Foundation Trust,11/12/2020,MEDSURGCONS-OTHER,Medicine,NHS LOGISTICS,1121148635,9.28,
Department of Health,Salisbury NHS Foundation Trust,11/12/2020,PATIENT APPLIANCES,Medicine,NHS LOGISTICS,1121148635,81.91,
Department of Health,Salisbury NHS Foundation Trust,11/12/2020,DRESSINGS - PRE STERILE,Medicine,NHS LOGISTICS,1121148635,1,
Department of Health,Salisbury NHS Foundation Trust,11/12/2020,DRESSINGS - PRE STERILE,Medicine,NHS LOGISTICS,1121148635,23.8,
Department of Health,Salisbury NHS Foundation Trust,11/12/2020,TISSUES HAND TOWELS & TOILET PAPER,Medicine,NHS LOGISTICS,1121148635,2.96,
Department of Health,Salisbury NHS Foundation Trust,11/12/2020,PATIENTS INCONTINENCE,Medicine,NHS LOGISTICS,1121148635,2.29,
Department of Health,Salisbury NHS Foundation Trust,11/12/2020,PATIENTS INCONTINENCE,Medicine,NHS LOGISTICS,1121148635,1.98,
Department of Health,Salisbury NHS Foundation Trust,11/12/2020,MEDSURGCONS-OTHER,Medicine,NHS LOGISTICS,1121148635,25.4,
Department of Health,Salisbury NHS Foundation Trust,11/12/2020,MEDSURGCONS-OTHER,Medicine,NHS LOGISTICS,1121148635,42.75,
Department of Health,Salisbury NHS Foundation Trust,11/12/2020,M & S EQUIPELECTEQUIPINST - OTHER,Medicine,NHS LOGISTICS,1121148635,11.75,
Department of Health,Salisbury NHS Foundation Trust,11/12/2020,MEDSURGCONS-OTHER,Medicine,NHS LOGISTICS,1121148635,6.76,
Department of Health,Salisbury NHS Foundation Trust,11/12/2020,MEDSURGCONS-OTHER,Medicine,NHS LOGISTICS,1121148635,2.39,
Department of Health,Salisbury NHS Foundation Trust,11/12/2020,DRESSINGS  -  PROCEDURE PACKS,Medicine,NHS LOGISTICS,1121148635,8.48,
Department of Health,Salisbury NHS Foundation Trust,11/12/2020,M & S EQUIPELECTEQUIPINST - OTHER,Medicine,NHS LOGISTICS,1121148635,4.75,
Department of Health,Salisbury NHS Foundation Trust,11/12/2020,DRESSINGS - PRE STERILE,Medicine,NHS LOGISTICS,1121148635,2.13,
Department of Health,Salisbury NHS Foundation Trust,11/12/2020,OTHER MEDICAL SUPPLIES,Medicine,NHS LOGISTICS,1121148635,2.8,
Department of Health,Salisbury NHS Foundation Trust,11/12/2020,PATIENT APPLIANCES,Medicine,NHS LOGISTICS,1121148635,7,
Department of Health,Salisbury NHS Foundation Trust,11/12/2020,PATIENT APPLIANCES,Medicine,NHS LOGISTICS,1121148635,7,
Department of Health,Salisbury NHS Foundation Trust,11/12/2020,DRESSINGS  -  PROCEDURE PACKS,Medicine,NHS LOGISTICS,1121148635,7,
Department of Health,Salisbury NHS Foundation Trust,11/12/2020,TOILETRIES PERSONAL HYGIENE PRODUCT,Medicine,NHS LOGISTICS,1121148635,1.77,
Department of Health,Salisbury NHS Foundation Trust,11/12/2020,MEDSURGCONS-OTHER,Medicine,NHS LOGISTICS,1121148635,22.5,
Department of Health,Salisbury NHS Foundation Trust,11/12/2020,MEDSURGCONS-OTHER,Medicine,NHS LOGISTICS,1121148635,69,
Department of Health,Salisbury NHS Foundation Trust,11/12/2020,OTHER MEDICAL SUPPLIES,Medicine,NHS LOGISTICS,1121148635,2.68,
Department of Health,Salisbury NHS Foundation Trust,11/12/2020,OTHER MEDICAL SUPPLIES,Medicine,NHS LOGISTICS,1121148635,7.16,
Department of Health,Salisbury NHS Foundation Trust,11/12/2020,SURGICAL INSTRUMENTS - DISPOSABLE,Medicine,NHS LOGISTICS,1121148635,6.75,
Department of Health,Salisbury NHS Foundation Trust,11/12/2020,DRUGS,Medicine,NHS LOGISTICS,1121148635,20.82,
Department of Health,Salisbury NHS Foundation Trust,11/12/2020,DRESSINGS - PRE STERILE,Medicine,NHS LOGISTICS,1121148635,26.67,
Department of Health,Salisbury NHS Foundation Trust,11/12/2020,MEDSURGCONS-SUTURES,Medicine,NHS LOGISTICS,1121148635,37.54,
Department of Health,Salisbury NHS Foundation Trust,11/12/2020,MEDSURGCONS-OTHER,Medicine,NHS LOGISTICS,1121148635,4.38,
Department of Health,Salisbury NHS Foundation Trust,11/12/2020,DRESSINGS - PRE STERILE,Medicine,NHS LOGISTICS,1121148635,9,
Department of Health,Salisbury NHS Foundation Trust,11/12/2020,MEDSURGCONS-OTHER,Medicine,NHS LOGISTICS,1121148635,22.37,
Department of Health,Salisbury NHS Foundation Trust,11/12/2020,MEDSURGCONS-OTHER,Medicine,NHS LOGISTICS,1121148635,11.63,
Department of Health,Salisbury NHS Foundation Trust,11/12/2020,TUBES,Medicine,NHS LOGISTICS,1121148635,3.02,
Department of Health,Salisbury NHS Foundation Trust,11/12/2020,MEDSURGCONS-OTHER,Medicine,NHS LOGISTICS,1121148635,3.24,
Department of Health,Salisbury NHS Foundation Trust,11/12/2020,TUBES,Medicine,NHS LOGISTICS,1121148635,9,
Department of Health,Salisbury NHS Foundation Trust,11/12/2020,NON DISPOSABLE BED LINEN,Medicine,NHS LOGISTICS,1121148635,5.64,
Department of Health,Salisbury NHS Foundation Trust,11/12/2020,DISPOSABLE THEATRE DRAPES WIPES,Medicine,NHS LOGISTICS,1121148635,3.74,
Department of Health,Salisbury NHS Foundation Trust,11/12/2020,DISPOSABLE THEATRE DRAPES WIPES,Medicine,NHS LOGISTICS,1121148635,78.04,
Department of Health,Salisbury NHS Foundation Trust,11/12/2020,PATIENT APPLIANCES,Medicine,NHS LOGISTICS,1121148635,65.9,
Department of Health,Salisbury NHS Foundation Trust,11/12/2020,OTHER MEDICAL SUPPLIES,Clinical Support,NHS LOGISTICS,1121148635,29.75,
Department of Health,Salisbury NHS Foundation Trust,11/12/2020,OTHER MEDICAL SUPPLIES,Clinical Support,NHS LOGISTICS,1121148635,13.92,
Department of Health,Salisbury NHS Foundation Trust,11/12/2020,DRESSINGS - PRE STERILE,Clinical Support,NHS LOGISTICS,1121148635,1.36,
Department of Health,Salisbury NHS Foundation Trust,11/12/2020,DRESSINGS - PRE STERILE,Clinical Support,NHS LOGISTICS,1121148635,1,
Department of Health,Salisbury NHS Foundation Trust,11/12/2020,M & S EQUIPELECTEQUIPINST - OTHER,Clinical Support,NHS LOGISTICS,1121148635,6.76,
Department of Health,Salisbury NHS Foundation Trust,11/12/2020,SURGICAL INSTRUMENTS - GENERAL,Clinical Support,NHS LOGISTICS,1121148635,5.5,
Department of Health,Salisbury NHS Foundation Trust,11/12/2020,OTHER MEDICAL SUPPLIES,Clinical Support,NHS LOGISTICS,1121148635,41.4,
Department of Health,Salisbury NHS Foundation Trust,11/12/2020,M & S EQUIPELECTEQUIPINST - OTHER,Clinical Support,NHS LOGISTICS,1121148635,18.84,
Department of Health,Salisbury NHS Foundation Trust,11/12/2020,DRESSINGS  -  PROCEDURE PACKS,Clinical Support,NHS LOGISTICS,1121148635,0.2,
Department of Health,Salisbury NHS Foundation Trust,11/12/2020,MEDSURGCONS-OTHER,Clinical Support,NHS LOGISTICS,1121148635,5.43,
Department of Health,Salisbury NHS Foundation Trust,11/12/2020,MEDSURGCONS-OTHER,Clinical Support,NHS LOGISTICS,1121148635,4.78,
Department of Health,Salisbury NHS Foundation Trust,11/12/2020,DRESSINGS  -  PROCEDURE PACKS,Clinical Support,NHS LOGISTICS,1121148635,39.9,
Department of Health,Salisbury NHS Foundation Trust,11/12/2020,MEDSURGCONS-OTHER,Clinical Support,NHS LOGISTICS,1121148635,5,
Department of Health,Salisbury NHS Foundation Trust,11/12/2020,MEDSURGCONS-OTHER,Clinical Support,NHS LOGISTICS,1121148635,22.5,
Department of Health,Salisbury NHS Foundation Trust,11/12/2020,OTHER MEDICAL SUPPLIES,Clinical Support,NHS LOGISTICS,1121148635,6.63,
Department of Health,Salisbury NHS Foundation Trust,11/12/2020,OTHER MEDICAL SUPPLIES,Clinical Support,NHS LOGISTICS,1121148635,3.58,
Department of Health,Salisbury NHS Foundation Trust,11/12/2020,OTHER MEDICAL SUPPLIES,Clinical Support,NHS LOGISTICS,1121148635,137.37,
Department of Health,Salisbury NHS Foundation Trust,11/12/2020,SERVICES FROM NHS BODIES,Clinical Support,NHS LOGISTICS,1121148635,4.54,
Department of Health,Salisbury NHS Foundation Trust,11/12/2020,SERVICES FROM NHS BODIES,Clinical Support,NHS LOGISTICS,1121148635,3.56,
Department of Health,Salisbury NHS Foundation Trust,11/12/2020,DRESSINGS - PRE STERILE,Clinical Support,NHS LOGISTICS,1121148635,4.6,
Department of Health,Salisbury NHS Foundation Trust,11/12/2020,DRESSINGS - PRE STERILE,Clinical Support,NHS LOGISTICS,1121148635,2.3,
Department of Health,Salisbury NHS Foundation Trust,11/12/2020,DRESSINGS - PRE STERILE,Clinical Support,NHS LOGISTICS,1121148635,4.6,
Department of Health,Salisbury NHS Foundation Trust,11/12/2020,DRESSINGS - PRE STERILE,Clinical Support,NHS LOGISTICS,1121148635,2.3,
Department of Health,Salisbury NHS Foundation Trust,11/12/2020,MEDSURGCONS-SUTURES,Clinical Support,NHS LOGISTICS,1121148635,36.37,
Department of Health,Salisbury NHS Foundation Trust,11/12/2020,MEDSURGCONS-SUTURES,Clinical Support,NHS LOGISTICS,1121148635,73,
Department of Health,Salisbury NHS Foundation Trust,11/12/2020,DRESSINGS - PRE STERILE,Clinical Support,NHS LOGISTICS,1121148635,18.86,
Department of Health,Salisbury NHS Foundation Trust,11/12/2020,HABERDASHERY,Clinical Support,NHS LOGISTICS,1121148635,8.88,
Department of Health,Salisbury NHS Foundation Trust,11/12/2020,MEDSURGCONS-OTHER,Clinical Support,NHS LOGISTICS,1121148635,16.8,
Department of Health,Salisbury NHS Foundation Trust,11/12/2020,MEDSURGCONS-OTHER,Clinical Support,NHS LOGISTICS,1121148635,3.24,
Department of Health,Salisbury NHS Foundation Trust,11/12/2020,MED SURG EQUIP REP MAINT CLEANING,Clinical Support,NHS LOGISTICS,1121148635,8.99,
Department of Health,Salisbury NHS Foundation Trust,11/12/2020,NON DISPOSABLE BED LINEN,Clinical Support,NHS LOGISTICS,1121148635,39.48,
Department of Health,Salisbury NHS Foundation Trust,11/12/2020,PATIENT APPLIANCES,Clinical Support,NHS LOGISTICS,1121148635,12,
Department of Health,Salisbury NHS Foundation Trust,11/12/2020,DISPOSABLE THEATRE DRAPES WIPES,Clinical Support,NHS LOGISTICS,1121148635,3.74,
Department of Health,Salisbury NHS Foundation Trust,11/12/2020,DISPOSABLE THEATRE DRAPES WIPES,Clinical Support,NHS LOGISTICS,1121148635,19.51,
Department of Health,Salisbury NHS Foundation Trust,11/12/2020,DRESSINGS - PRE STERILE,Clinical Support,NHS LOGISTICS,1121148635,0.68,
Department of Health,Salisbury NHS Foundation Trust,11/12/2020,DRESSINGS - PRE STERILE,Clinical Support,NHS LOGISTICS,1121148635,7.08,
Department of Health,Salisbury NHS Foundation Trust,11/12/2020,TISSUES HAND TOWELS & TOILET PAPER,Clinical Support,NHS LOGISTICS,1121148635,10.52,
Department of Health,Salisbury NHS Foundation Trust,11/12/2020,SURGICAL INSTRUMENTS - DISPOSABLE,Clinical Support,NHS LOGISTICS,1121148635,11.25,
Department of Health,Salisbury NHS Foundation Trust,11/12/2020,SURGICAL INSTRUMENTS - DISPOSABLE,Clinical Support,NHS LOGISTICS,1121148635,11.25,
Department of Health,Salisbury NHS Foundation Trust,11/12/2020,DRESSINGS - PRE STERILE,Medicine,NHS LOGISTICS,1121148635,1.46,
Department of Health,Salisbury NHS Foundation Trust,11/12/2020,DRESSINGS - PRE STERILE,Medicine,NHS LOGISTICS,1121148635,3.82,
Department of Health,Salisbury NHS Foundation Trust,11/12/2020,DRESSINGS - PRE STERILE,Medicine,NHS LOGISTICS,1121148635,6.3,
Department of Health,Salisbury NHS Foundation Trust,11/12/2020,DRESSINGS - PRE STERILE,Medicine,NHS LOGISTICS,1121148635,3.39,
Department of Health,Salisbury NHS Foundation Trust,11/12/2020,M & S EQUIPELECTEQUIPINST - OTHER,Medicine,NHS LOGISTICS,1121148635,6.76,
Department of Health,Salisbury NHS Foundation Trust,11/12/2020,OTHER MEDICAL SUPPLIES,Medicine,NHS LOGISTICS,1121148635,7.12,
Department of Health,Salisbury NHS Foundation Trust,11/12/2020,TOILETRIES PERSONAL HYGIENE PRODUCT,Medicine,NHS LOGISTICS,1121148635,3.26,
Department of Health,Salisbury NHS Foundation Trust,11/12/2020,MEDSURGCONS-OTHER,Medicine,NHS LOGISTICS,1121148635,5.6,
Department of Health,Salisbury NHS Foundation Trust,11/12/2020,M & S EQUIPELECTEQUIPINST - OTHER,Medicine,NHS LOGISTICS,1121148635,1.42,
Department of Health,Salisbury NHS Foundation Trust,11/12/2020,NON DISPOSABLE BED LINEN,Medicine,NHS LOGISTICS,1121148635,5.64,
Department of Health,Salisbury NHS Foundation Trust,11/12/2020,OTHER MEDICAL SUPPLIES,Clinical Support,NHS LOGISTICS,1121148635,29.75,
Department of Health,Salisbury NHS Foundation Trust,11/12/2020,DRESSINGS - PRE STERILE,Clinical Support,NHS LOGISTICS,1121148635,0.68,
Department of Health,Salisbury NHS Foundation Trust,11/12/2020,TISSUES HAND TOWELS & TOILET PAPER,Clinical Support,NHS LOGISTICS,1121148635,21.03,
Department of Health,Salisbury NHS Foundation Trust,11/12/2020,OTHER MEDICAL SUPPLIES,Clinical Support,NHS LOGISTICS,1121148635,6.63,
Department of Health,Salisbury NHS Foundation Trust,11/12/2020,MEDSURGCONS-OTHER,Clinical Support,NHS LOGISTICS,1121148635,7.78,
Department of Health,Salisbury NHS Foundation Trust,11/12/2020,DRUGS,Clinical Support,NHS LOGISTICS,1121148635,1.38,
Department of Health,Salisbury NHS Foundation Trust,11/12/2020,DRESSINGS - PRE STERILE,Clinical Support,NHS LOGISTICS,1121148635,2.72,
Department of Health,Salisbury NHS Foundation Trust,11/12/2020,SERVICES FROM NHS BODIES,Clinical Support,NHS LOGISTICS,1121148635,26,
Department of Health,Salisbury NHS Foundation Trust,11/12/2020,MEDSURGCONS-OTHER,Clinical Support,NHS LOGISTICS,1121148635,6.2,
Department of Health,Salisbury NHS Foundation Trust,11/12/2020,TISSUES HAND TOWELS & TOILET PAPER,Clinical Support,NHS LOGISTICS,1121148635,1.18,
Department of Health,Salisbury NHS Foundation Trust,11/12/2020,DRESSINGS  -  PROCEDURE PACKS,Clinical Support,NHS LOGISTICS,1121148635,0.5,
Department of Health,Salisbury NHS Foundation Trust,11/12/2020,DRESSINGS  -  PROCEDURE PACKS,Clinical Support,NHS LOGISTICS,1121148635,0.6,
Department of Health,Salisbury NHS Foundation Trust,11/12/2020,M & S EQUIPELECTEQUIPINST - OTHER,Clinical Support,NHS LOGISTICS,1121148635,11.75,
Department of Health,Salisbury NHS Foundation Trust,11/12/2020,MEDSURGCONS-OTHER,Clinical Support,NHS LOGISTICS,1121148635,1.53,
Department of Health,Salisbury NHS Foundation Trust,11/12/2020,M & S EQUIPELECTEQUIPINST - OTHER,Clinical Support,NHS LOGISTICS,1121148635,4.75,
Department of Health,Salisbury NHS Foundation Trust,11/12/2020,OTHER MEDICAL SUPPLIES,Clinical Support,NHS LOGISTICS,1121148635,6.63,
Department of Health,Salisbury NHS Foundation Trust,11/12/2020,OTHER MEDICAL SUPPLIES,Clinical Support,NHS LOGISTICS,1121148635,137.37,
Department of Health,Salisbury NHS Foundation Trust,11/12/2020,SURGICAL INSTRUMENTS - DISPOSABLE,Clinical Support,NHS LOGISTICS,1121148635,2.25,
Department of Health,Salisbury NHS Foundation Trust,11/12/2020,SERVICES FROM NHS BODIES,Clinical Support,NHS LOGISTICS,1121148635,3.56,
Department of Health,Salisbury NHS Foundation Trust,11/12/2020,SERVICES FROM NHS BODIES,Clinical Support,NHS LOGISTICS,1121148635,17.67,
Department of Health,Salisbury NHS Foundation Trust,11/12/2020,SERVICES FROM NHS BODIES,Clinical Support,NHS LOGISTICS,1121148635,14.91,
Department of Health,Salisbury NHS Foundation Trust,11/12/2020,MEDSURGCONS-OTHER,Clinical Support,NHS LOGISTICS,1121148635,11.2,
Department of Health,Salisbury NHS Foundation Trust,11/12/2020,NON DISPOSABLE BED LINEN,Clinical Support,NHS LOGISTICS,1121148635,8.46,
Department of Health,Salisbury NHS Foundation Trust,11/12/2020,DISPOSABLE THEATRE DRAPES WIPES,Clinical Support,NHS LOGISTICS,1121148635,3.74,
Department of Health,Salisbury NHS Foundation Trust,11/12/2020,DRESSINGS - PRE STERILE,Medicine,NHS LOGISTICS,1121148635,5.52,
Department of Health,Salisbury NHS Foundation Trust,11/12/2020,DRESSINGS - PRE STERILE,Medicine,NHS LOGISTICS,1121148635,7.14,
Department of Health,Salisbury NHS Foundation Trust,11/12/2020,DRESSINGS - PRE STERILE,Medicine,NHS LOGISTICS,1121148635,5.52,
Department of Health,Salisbury NHS Foundation Trust,11/12/2020,DRESSINGS - PRE STERILE,Medicine,NHS LOGISTICS,1121148635,7.14,
Department of Health,Salisbury NHS Foundation Trust,11/12/2020,DRESSINGS - PRE STERILE,Medicine,NHS LOGISTICS,1121148635,5.52,
Department of Health,Salisbury NHS Foundation Trust,11/12/2020,DRESSINGS - PRE STERILE,Medicine,NHS LOGISTICS,1121148635,7.14,
Department of Health,Salisbury NHS Foundation Trust,11/12/2020,DRESSINGS - PRE STERILE,Medicine,NHS LOGISTICS,1121148635,5.52,
